Transaction Reference,Supplier Name,Line Value,Department,Category,Transaction Date,Year/Period,SME,Cost Centre,Subjective,Costs split between Babergh & Mid Suffolk District Councils Y/N,% of transaction apportioned to Mid Suffolk District Council
0000377633,127 TRADING LTD,"1,316.67",Devt Management - Apps,Food & Drink,21 Mar 2024,2324/12,SME,M3101,H3028,N,
0000423857,2ND EYE RAINBOWS,688.62,Bring Sites,Contributions & Donations,19 Mar 2024,2324/12,SME,M4504,H3082,N,
0000375037,3 POINT PROPERTY MANAGEMENT LTD,595.00,Guaranteed Rent Scheme,Rent Payable,02 Jan 2024,2324/10,SME,M1414,H2023,N,
0000375069,3 POINT PROPERTY MANAGEMENT LTD,895.00,Guaranteed Rent Scheme,Rent Payable,02 Jan 2024,2324/10,SME,M1414,H2023,N,
0000376092,3 POINT PROPERTY MANAGEMENT LTD,595.00,Guaranteed Rent Scheme,Rent Payable,05 Feb 2024,2324/11,SME,M1414,H2023,N,
0000376120,3 POINT PROPERTY MANAGEMENT LTD,895.00,Guaranteed Rent Scheme,Rent Payable,05 Feb 2024,2324/11,SME,M1414,H2023,N,
0000376953,3 POINT PROPERTY MANAGEMENT LTD,595.00,Guaranteed Rent Scheme,Rent Payable,04 Mar 2024,2324/12,SME,M1414,H2023,N,
0000376982,3 POINT PROPERTY MANAGEMENT LTD,895.00,Guaranteed Rent Scheme,Rent Payable,04 Mar 2024,2324/12,SME,M1414,H2023,N,
0000376122,4PRINCIPLES CONSTRUCTION LTD,"4,480.72",Mand Disabled Facilities Grant,Grants,05 Feb 2024,2324/11,SME,M7001,H3081,N,
0000377003,4PRINCIPLES CONSTRUCTION LTD,"5,854.09",Mand Disabled Facilities Grant,Grants,05 Mar 2024,2324/12,SME,M7001,H3081,N,
0000376659,A ABERCROMBIE LIMITED,"7,500.00",Mand Disabled Facilities Grant,Grants,23 Feb 2024,2324/11,SME,M7001,H3081,N,
0000375650,A C LEIGH (NORWICH) LTD,"1,338.72",Building Services,"Equipment, Tools & Materials",16 Jan 2024,2324/10,SME,M8199,H3031,N,
0000376165,A C LEIGH (NORWICH) LTD,"1,534.08",Building Services,"Equipment, Tools & Materials",01 Feb 2024,2324/11,SME,M8199,H3031,N,
0000376173,A C LEIGH (NORWICH) LTD,"1,140.20",Building Services,"Equipment, Tools & Materials",05 Feb 2024,2324/11,SME,M8199,H3031,N,
0000377701,A C LEIGH (NORWICH) LTD,779.00,Building Services,"Equipment, Tools & Materials",19 Mar 2024,2324/12,SME,M8199,H3031,N,
0000375164,A PORCH & SONS BUILDERS LTD,"5,998.61",Current Assets,Debtors -  CIL,04 Jan 2024,2324/10,SME,M9002,ZG063,N,
0000376806,AARON SERVICES LTD,"6,443.26",Central Heating,Repairs,29 Feb 2024,2324/12,SME,M7604,H2010,N,
0000423731,AARON SERVICES LTD,500.66,Planned Maint - Heating,Property Servicing,09 Jan 2024,2324/10,SME,M8103,H2009,N,
0000423897,AARON SERVICES LTD,"3,501.40",Planned Maint - Heating,Property Servicing,21 Mar 2024,2324/12,SME,M8103,H2009,N,
0000375947,ABBEYCROFT LEISURE,"1,155.40",Holiday Activity Fund,"Equipment, Tools & Materials",31 Jan 2024,2324/11,LGE,M2113,H3031,N,
0000375963,ABBEYCROFT LEISURE,"3,392.80",Holiday Activity Fund,"Equipment, Tools & Materials",31 Jan 2024,2324/11,LGE,M2113,H3031,N,
0000377466,ABBEYCROFT LEISURE,577.70,Holiday Activity Fund,"Equipment, Tools & Materials",15 Mar 2024,2324/12,LGE,M2113,H3031,N,
0000377589,ABBEYCROFT LEISURE,"3,125.75",Holiday Activity Fund,"Equipment, Tools & Materials",20 Mar 2024,2324/12,LGE,M2113,H3031,N,
0000377590,ABBEYCROFT LEISURE,838.00,Holiday Activity Fund,"Equipment, Tools & Materials",20 Mar 2024,2324/12,LGE,M2113,H3031,N,
0000376556,ABBOT FIRE GROUP,"6,155.00",Fire Risk Assessment (Flats),Repairs,14 Feb 2024,2324/11,SME,M7635,H2010,N,
0000376985,ACCESS PAY SUITE,"8,354.31",Bank Chgs,Bank Charges,09 Feb 2024,2324/12,LGE,M6102,H3046,Y,50%
0000377172,ACCESS PAY SUITE,"4,620.94",Bank Chgs,Bank Charges,08 Mar 2024,2324/12,LGE,M6102,H3046,Y,50%
0000375222,ACTIVLIVES,"10,692.00",Wellbeing CCG Funding,"Equipment, Tools & Materials",08 Jan 2024,2324/10,SME,M2200,A3031,Y,50%
0000375053,ACUITY RESEARCH & PRACTICE LTD,"3,226.45",Regulatory & Support Services,Subscriptions,31 Dec 2023,2324/10,SME,M8802,A3054,Y,50%
0000375054,ACUITY RESEARCH & PRACTICE LTD,"1,120.00",Regulatory & Support Services,Subscriptions,31 Dec 2023,2324/10,SME,M8802,H3054,Y,50%
0000375964,ACUITY RESEARCH & PRACTICE LTD,619.05,Regulatory & Support Services,Subscriptions,31 Jan 2024,2324/11,SME,M8802,H3054,Y,50%
0000376721,ACUITY RESEARCH & PRACTICE LTD,682.50,Regulatory & Support Services,Subscriptions,28 Feb 2024,2324/11,SME,M8802,A3054,Y,50%
0000377496,ACUITY RESEARCH & PRACTICE LTD,632.50,Regulatory & Support Services,Subscriptions,13 Mar 2024,2324/12,SME,M8802,H3054,Y,50%
0000377497,ACUITY RESEARCH & PRACTICE LTD,"3,251.50",Regulatory & Support Services,Subscriptions,13 Mar 2024,2324/12,SME,M8802,H3054,Y,50%
0000377099,AE WHITE SURFACING,"1,445.00",C Parks General,Repairs,04 Jan 2024,2324/12,SME,M4410,H2010,N,
0000377100,AE WHITE SURFACING,"1,095.00",C Parks General,Contracted Services,05 Feb 2024,2324/12,SME,M4410,H3042,N,
0000377127,AGROCO TRAILERS,545.00,Open Spaces,Plant & Vehicle - Other costs,12 Feb 2024,2324/12,SME,M4404,H4015,N,
0000375502,ALL STAR TRAINING,680.00,Organisational Devt,Health & Safety Training,10 Jan 2024,2324/10,SME,M5100,A1046,Y,50%
0000375967,ALL STAR TRAINING,595.00,Building Services,Training,31 Jan 2024,2324/12,SME,M8199,H1043,Y,50%
0000376354,ALLEN CARR EASYWAY (INTERNATIONAL LTD,"6,877.00",Healthy Behaviours Partnership,"Equipment, Tools & Materials",31 Jan 2024,2324/11,SME,M2120,H3031,N,
0000377077,ALLEN CARR EASYWAY (INTERNATIONAL LTD,"2,392.00",Healthy Behaviours Partnership,"Equipment, Tools & Materials",29 Feb 2024,2324/12,SME,M2120,H3031,N,
0000423699,ALLSTAR BUSINESS SOLUTIONS LTD,69.56,Housing Options,Plant & Vehicle Fuel,31 Dec 2023,2324/10,SME,M8200,H4014,Y,50%
0000423699,ALLSTAR BUSINESS SOLUTIONS LTD,"9,676.50",Building Services,Plant & Vehicle Fuel,31 Dec 2023,2324/10,SME,M8199,H4014,Y,50%
0000423745,ALLSTAR BUSINESS SOLUTIONS LTD,69.53,Housing Options,Plant & Vehicle Fuel,31 Jan 2024,2324/11,SME,M8200,H4014,Y,50%
0000423745,ALLSTAR BUSINESS SOLUTIONS LTD,"11,763.20",Building Services,Plant & Vehicle Fuel,31 Jan 2024,2324/11,SME,M8199,H4014,Y,50%
0000423799,ALLSTAR BUSINESS SOLUTIONS LTD,243.12,Housing Options,Plant & Vehicle Fuel,29 Feb 2024,2324/12,SME,M8200,H4014,Y,50%
0000423799,ALLSTAR BUSINESS SOLUTIONS LTD,"10,976.52",Building Services,Plant & Vehicle Fuel,29 Feb 2024,2324/12,SME,M8199,A4014,Y,50%
0000375225,PRIVATE LANDLORD,925.00,Guaranteed Rent Scheme,Rent Payable,08 Jan 2024,2324/10,ST,M1414,H2023,N,
0000376108,PRIVATE LANDLORD,925.00,Guaranteed Rent Scheme,Rent Payable,05 Feb 2024,2324/11,ST,M1414,H2023,N,
0000376950,PRIVATE LANDLORD,925.00,Guaranteed Rent Scheme,Rent Payable,04 Mar 2024,2324/12,ST,M1414,H2023,N,
0000377567,ANGLIA CAR CHARGING,629.41,EV Charge Points Car parks,Misc Supplies & Services Costs,29 Aug 2023,2324/12,SME,M7058,H3106,Y,50%
0000377568,ANGLIA CAR CHARGING,626.51,EV Charge Points Car parks,Misc Supplies & Services Costs,06 Oct 2023,2324/12,SME,M7058,H3106,Y,50%
0000377569,ANGLIA CAR CHARGING,615.39,EV Charge Points Car parks,Misc Supplies & Services Costs,29 Aug 2023,2324/12,SME,M7058,H3106,Y,50%
0000377570,ANGLIA CAR CHARGING,629.41,EV Charge Points Car parks,Misc Supplies & Services Costs,29 Aug 2023,2324/12,SME,M7058,H3106,Y,50%
0000374676,ANGLIA COMMERCIAL FLOORING LTD,"1,003.90",Voids Maintenance,Repairs,05 Dec 2023,2324/10,SME,M8105,H2010,N,
0000374677,ANGLIA COMMERCIAL FLOORING LTD,548.15,Voids Maintenance,Repairs,05 Dec 2023,2324/10,SME,M8105,H2010,N,
0000374820,ANGLIA COMMERCIAL FLOORING LTD,"1,265.63",Insulation Imps,Repairs,20 Dec 2023,2324/10,SME,M7616,H2010,N,
0000375119,ANGLIA COMMERCIAL FLOORING LTD,619.30,Voids Maintenance,Repairs,15 Dec 2023,2324/10,SME,M8105,H2010,N,
0000375120,ANGLIA COMMERCIAL FLOORING LTD,"1,349.39",Voids Maintenance,Repairs,20 Dec 2023,2324/10,SME,M8105,H2010,N,
0000375121,ANGLIA COMMERCIAL FLOORING LTD,674.67,Voids Maintenance,Repairs,20 Dec 2023,2324/10,SME,M8105,H2010,N,
0000375122,ANGLIA COMMERCIAL FLOORING LTD,901.89,Voids Maintenance,Repairs,20 Dec 2023,2324/10,SME,M8105,H2010,N,
0000375171,ANGLIA COMMERCIAL FLOORING LTD,528.77,Building Services,Repairs,04 Jan 2024,2324/10,SME,M8199,H2010,N,
0000375483,ANGLIA COMMERCIAL FLOORING LTD,868.38,Voids Maintenance,Repairs,12 Jan 2024,2324/10,SME,M8105,H2010,N,
0000375485,ANGLIA COMMERCIAL FLOORING LTD,"1,333.93",Building Services,Repairs,05 Dec 2023,2324/10,SME,M8199,H2010,N,
0000375618,ANGLIA COMMERCIAL FLOORING LTD,528.77,Building Services,Repairs,19 Jan 2024,2324/10,SME,M8199,H2010,N,
0000375704,ANGLIA COMMERCIAL FLOORING LTD,991.95,Building Services,Repairs,23 Jan 2024,2324/10,SME,M8199,H2010,N,
0000375705,ANGLIA COMMERCIAL FLOORING LTD,507.62,Building Services,Repairs,23 Jan 2024,2324/10,SME,M8199,H2010,N,
0000375707,ANGLIA COMMERCIAL FLOORING LTD,933.07,Voids Maintenance,Repairs,19 Jan 2024,2324/10,SME,M8105,H2010,N,
0000375708,ANGLIA COMMERCIAL FLOORING LTD,970.18,Voids Maintenance,Repairs,05 Jan 2024,2324/10,SME,M8105,H2010,N,
0000376192,ANGLIA COMMERCIAL FLOORING LTD,675.84,Building Services,Repairs,07 Feb 2024,2324/11,SME,M8199,H2010,N,
0000376193,ANGLIA COMMERCIAL FLOORING LTD,601.26,Building Services,Repairs,07 Feb 2024,2324/11,SME,M8199,H2010,N,
0000376306,ANGLIA COMMERCIAL FLOORING LTD,998.09,Voids Maintenance,Repairs,07 Feb 2024,2324/11,SME,M8105,H2010,N,
0000376307,ANGLIA COMMERCIAL FLOORING LTD,608.07,Voids Maintenance,Repairs,07 Feb 2024,2324/11,SME,M8105,H2010,N,
0000376457,ANGLIA COMMERCIAL FLOORING LTD,576.64,Building Services,Repairs,16 Feb 2024,2324/11,SME,M8199,H2010,N,
0000376458,ANGLIA COMMERCIAL FLOORING LTD,"1,666.81",Building Services,Repairs,16 Feb 2024,2324/11,SME,M8199,H2010,N,
0000376516,ANGLIA COMMERCIAL FLOORING LTD,"1,020.35",Voids Maintenance,Repairs,16 Feb 2024,2324/11,SME,M8105,H2010,N,
0000376579,ANGLIA COMMERCIAL FLOORING LTD,539.35,Building Services,Repairs,20 Feb 2024,2324/12,SME,M8199,H2010,N,
0000376681,ANGLIA COMMERCIAL FLOORING LTD,"1,188.73",Building Services,Repairs,19 Feb 2024,2324/12,SME,M8199,H2010,N,
0000376881,ANGLIA COMMERCIAL FLOORING LTD,851.73,Building Services,Repairs,23 Feb 2024,2324/12,SME,M8199,H2010,N,
0000377070,ANGLIA COMMERCIAL FLOORING LTD,517.08,Voids Maintenance,Repairs,26 Jan 2024,2324/12,SME,M8105,H2010,N,
0000377103,ANGLIA COMMERCIAL FLOORING LTD,583.22,Voids Maintenance,Repairs,29 Feb 2024,2324/12,SME,M8105,H2010,N,
0000377104,ANGLIA COMMERCIAL FLOORING LTD,"1,246.86",Voids Maintenance,Repairs,29 Feb 2024,2324/12,SME,M8105,H2010,N,
0000377105,ANGLIA COMMERCIAL FLOORING LTD,688.91,Voids Maintenance,Repairs,29 Feb 2024,2324/12,SME,M8105,H2010,N,
0000377382,ANGLIA COMMERCIAL FLOORING LTD,634.30,Building Services,Repairs,01 Mar 2024,2324/12,SME,M8199,H2010,N,
0000377504,ANGLIA COMMERCIAL FLOORING LTD,571.07,Voids Maintenance,Repairs,15 Mar 2024,2324/12,SME,M8105,H2010,N,
0000377690,ANGLIA COMMERCIAL FLOORING LTD,565.78,Building Services,Repairs,22 Mar 2024,2324/12,SME,M8199,H2010,N,
0000374782,ANGLIAN WATER,"1,226.31",Sheltered Accommodation,Water Rates - Metered,12 Dec 2023,2324/10,LGE,M8410,H2034,N,
0000375667,ANGLIAN WATER,742.22,Sheltered Accommodation,Water Rates - Metered,14 Jan 2024,2324/11,LGE,M8407,H2034,N,
0000376270,ANGLIAN WATER,599.27,Tenancy Services,Water Rates - Metered,06 Feb 2024,2324/11,LGE,M8500,H2034,N,
0000376672,ANGLIAN WATER,"1,138.48",Sheltered Accommodation,Water Rates - Metered,19 Feb 2024,2324/11,LGE,M8402,H2034,N,
0000376712,ANGLIAN WATER,617.41,Sheltered Accommodation,Water Rates - Metered,20 Feb 2024,2324/11,LGE,M8405,H2034,N,
0000376877,ANGLIAN WATER,960.88,Sheltered Accommodation,Water Rates - Metered,26 Feb 2024,2324/12,LGE,M8410,H2034,N,
0000423776,ANGLIAN WATER BUS (NAT) LTD T/A WAVE,899.93,Creeting Rd Depot,Water Rates - Metered,12 Jan 2024,2324/11,LGE,M1103,H2034,Y,50%
0000423776,ANGLIAN WATER BUS (NAT) LTD T/A WAVE,116.39,Headquarters General,Water Rates - Metered,12 Jan 2024,2324/11,LGE,M1102,H2034,N,
0000423776,ANGLIAN WATER BUS (NAT) LTD T/A WAVE,17.10,HRA Strategic Property,Water Rates - Metered,12 Jan 2024,2324/11,LGE,M8001,H2034,N,
0000423776,ANGLIAN WATER BUS (NAT) LTD T/A WAVE,304.47,Open Spaces,Water Rates - Metered,12 Jan 2024,2324/11,LGE,M4404,H2034,N,
0000423776,ANGLIAN WATER BUS (NAT) LTD T/A WAVE,179.12,Public Conveniences,Water Rates - Metered,12 Jan 2024,2324/11,LGE,M4401,H2034,N,
0000423776,ANGLIAN WATER BUS (NAT) LTD T/A WAVE,8.57,Recycling Centre,Water Rates - Metered,12 Jan 2024,2324/11,LGE,M4508,H2034,N,
0000423776,ANGLIAN WATER BUS (NAT) LTD T/A WAVE,6.92,Sewage Treatment Works,Water Rates - Metered,12 Jan 2024,2324/11,LGE,M8115,H2034,N,
0000423776,ANGLIAN WATER BUS (NAT) LTD T/A WAVE,"1,512.78",Sheltered Accommodation,Water Rates - Metered,12 Jan 2024,2324/11,LGE,M8413,H2034,N,
0000423776,ANGLIAN WATER BUS (NAT) LTD T/A WAVE,21.11,Tacon Close Eye TDP,Water Rates - Metered,12 Jan 2024,2324/11,LGE,M8804,H2034,N,
0000423776,ANGLIAN WATER BUS (NAT) LTD T/A WAVE,175.75,Temporary Accommodation,Water Rates - Metered,12 Jan 2024,2324/11,LGE,M8498,H2034,N,
0000423776,ANGLIAN WATER BUS (NAT) LTD T/A WAVE,16.61,Tenancy Services,Water Rates - Metered,12 Jan 2024,2324/11,LGE,M8500,H2034,N,
0000423776,ANGLIAN WATER BUS (NAT) LTD T/A WAVE,26.46,Wingfield Barns,Water Rates - Metered,12 Jan 2024,2324/11,LGE,M2102,H2034,N,
0000423783,ANGLIAN WATER BUS (NAT) LTD T/A WAVE,688.16,Creeting Rd Depot,Water Rates - Metered,12 Feb 2024,2324/11,LGE,M1103,A2034,Y,50%
0000423783,ANGLIAN WATER BUS (NAT) LTD T/A WAVE,"1,595.64",Headquarters General,Water Rates - Metered,12 Feb 2024,2324/11,LGE,M1102,H2034,N,
0000423783,ANGLIAN WATER BUS (NAT) LTD T/A WAVE,17.10,HRA Strategic Property,Water Rates - Metered,12 Feb 2024,2324/11,LGE,M8001,H2034,N,
0000423783,ANGLIAN WATER BUS (NAT) LTD T/A WAVE,203.20,Open Spaces,Water Rates - Metered,12 Feb 2024,2324/11,LGE,M4404,H2034,N,
0000423783,ANGLIAN WATER BUS (NAT) LTD T/A WAVE,175.58,Public Conveniences,Water Rates - Metered,12 Feb 2024,2324/11,LGE,M4401,H2034,N,
0000423783,ANGLIAN WATER BUS (NAT) LTD T/A WAVE,5.27,Recycling Centre,Water Rates - Metered,12 Feb 2024,2324/11,LGE,M4508,H2034,N,
0000423783,ANGLIAN WATER BUS (NAT) LTD T/A WAVE,6.92,Sewage Treatment Works,Water Rates - Metered,12 Feb 2024,2324/11,LGE,M8115,H2034,N,
0000423783,ANGLIAN WATER BUS (NAT) LTD T/A WAVE,"2,510.56",Sheltered Accommodation,Water Rates - Metered,12 Feb 2024,2324/11,LGE,M8413,H2034,N,
0000423783,ANGLIAN WATER BUS (NAT) LTD T/A WAVE,17.63,Tacon Close Eye TDP,Water Rates - Metered,12 Feb 2024,2324/11,LGE,M8804,H2034,N,
0000423783,ANGLIAN WATER BUS (NAT) LTD T/A WAVE,63.62,Temporary Accommodation,Water Rates - Metered,12 Feb 2024,2324/11,LGE,M8498,H2034,N,
0000423783,ANGLIAN WATER BUS (NAT) LTD T/A WAVE,16.61,Tenancy Services,Water Rates - Metered,12 Feb 2024,2324/11,LGE,M8500,H2034,N,
0000423783,ANGLIAN WATER BUS (NAT) LTD T/A WAVE,24.81,Wingfield Barns,Water Rates - Metered,12 Feb 2024,2324/11,LGE,M2102,H2034,N,
0000423810,ANGLIAN WATER BUS (NAT) LTD T/A WAVE,643.95,Creeting Rd Depot,Water Rates - Metered,12 Mar 2024,2324/12,LGE,M1103,H2034,Y,50%
0000423810,ANGLIAN WATER BUS (NAT) LTD T/A WAVE,"-1,372.21",Headquarters General,Water Rates - Metered,12 Mar 2024,2324/12,LGE,M1102,H2034,N,
0000423810,ANGLIAN WATER BUS (NAT) LTD T/A WAVE,15.98,HRA Strategic Property,Water Rates - Metered,12 Mar 2024,2324/12,LGE,M8001,H2034,N,
0000423810,ANGLIAN WATER BUS (NAT) LTD T/A WAVE,190.19,Open Spaces,Water Rates - Metered,12 Mar 2024,2324/12,LGE,M4404,H2034,N,
0000423810,ANGLIAN WATER BUS (NAT) LTD T/A WAVE,166.50,Public Conveniences,Water Rates - Metered,12 Mar 2024,2324/12,LGE,M4401,H2034,N,
0000423810,ANGLIAN WATER BUS (NAT) LTD T/A WAVE,6.47,Recycling Centre,Water Rates - Metered,12 Mar 2024,2324/12,LGE,M4508,H2034,N,
0000423810,ANGLIAN WATER BUS (NAT) LTD T/A WAVE,6.47,Sewage Treatment Works,Water Rates - Metered,12 Mar 2024,2324/12,LGE,M8115,H2034,N,
0000423810,ANGLIAN WATER BUS (NAT) LTD T/A WAVE,"1,507.87",Sheltered Accommodation,Water Rates - Metered,12 Mar 2024,2324/12,LGE,M8413,H2034,N,
0000423810,ANGLIAN WATER BUS (NAT) LTD T/A WAVE,16.48,Tacon Close Eye TDP,Water Rates - Metered,12 Mar 2024,2324/12,LGE,M8804,H2034,N,
0000423810,ANGLIAN WATER BUS (NAT) LTD T/A WAVE,62.54,Temporary Accommodation,Water Rates - Metered,12 Mar 2024,2324/12,LGE,M8498,H2034,N,
0000423810,ANGLIAN WATER BUS (NAT) LTD T/A WAVE,15.53,Tenancy Services,Water Rates - Metered,12 Mar 2024,2324/12,LGE,M8500,H2034,N,
0000423810,ANGLIAN WATER BUS (NAT) LTD T/A WAVE,7.75,Wingfield Barns,Water Rates - Metered,12 Mar 2024,2324/12,LGE,M2102,H2034,N,
0000376619,APEX ROOFERS & REPAIRS LTD,550.00,Building Services,Repairs,13 Feb 2024,2324/11,SME,M8199,H2010,N,
0000376661,APEX ROOFERS & REPAIRS LTD,"3,450.00",Building Services,Repairs,13 Feb 2024,2324/11,SME,M8199,H2010,N,
0000377813,APEX ROOFERS & REPAIRS LTD,"27,500.00",Roofing,Improvements,26 Mar 2024,2324/12,SME,M7602,H2051,N,
0000001092,APEX ROOFERS LTD,-300.00,Building Services,Repairs,11 Mar 2024,2324/12,SME,M8199,H2010,N,
0000374646,APEX ROOFERS LTD,"4,000.00",Roofing,Repairs,10 Dec 2023,2324/10,SME,M7602,H2010,N,
0000374651,APEX ROOFERS LTD,"2,050.00",Building Services,Repairs,10 Dec 2023,2324/10,SME,M8199,H2010,N,
0000374654,APEX ROOFERS LTD,800.00,Building Services,Repairs,11 Sep 2023,2324/10,SME,M8199,H2010,N,
0000374655,APEX ROOFERS LTD,"2,750.00",Building Services,Repairs,31 Oct 2023,2324/10,SME,M8199,H2010,N,
0000374656,APEX ROOFERS LTD,950.00,Building Services,Repairs,15 Nov 2023,2324/10,SME,M8199,H2010,N,
0000374657,APEX ROOFERS LTD,"1,100.00",Building Services,Repairs,28 Nov 2023,2324/10,SME,M8199,H2010,N,
0000374658,APEX ROOFERS LTD,"2,705.00",Building Services,Repairs,28 Nov 2023,2324/10,SME,M8199,H2010,N,
0000374659,APEX ROOFERS LTD,"3,445.00",Building Services,Repairs,28 Nov 2023,2324/10,SME,M8199,H2010,N,
0000374798,APEX ROOFERS LTD,550.00,Building Services,Repairs,20 Dec 2023,2324/10,SME,M8199,H2010,N,
0000374800,APEX ROOFERS LTD,895.00,Building Services,Repairs,13 Dec 2023,2324/10,SME,M8199,H2010,N,
0000375238,APEX ROOFERS LTD,900.00,Building Services,Repairs,15 Nov 2023,2324/10,SME,M8199,H2010,N,
0000375436,APEX ROOFERS LTD,"1,300.00",Building Services,Repairs,13 Dec 2023,2324/10,SME,M8199,H2010,N,
0000375443,APEX ROOFERS LTD,"13,925.00",Roofing,Repairs,13 Dec 2023,2324/11,SME,M7602,H2010,N,
0000375454,APEX ROOFERS LTD,550.00,Building Services,Repairs,15 Jan 2024,2324/10,SME,M8199,H2010,N,
0000376048,APEX ROOFERS LTD,520.00,Building Services,Repairs,31 Jan 2024,2324/11,SME,M8199,H2010,N,
0000374520,APTL ENTERPRISES LTD,"1,957.00",Roofing,Repairs,12 Dec 2023,2324/10,SME,M7602,H2010,N,
0000374947,APTL ENTERPRISES LTD,"4,326.67",Major Imps,Repairs,31 Oct 2023,2324/10,SME,M7617,H2010,N,
0000374948,APTL ENTERPRISES LTD,"4,326.67",Major Imps,Repairs,30 Nov 2023,2324/10,SME,M7617,H2010,N,
0000374954,APTL ENTERPRISES LTD,"10,945.00",Major Imps,Repairs,31 Oct 2023,2324/10,SME,M7617,H2010,N,
0000374955,APTL ENTERPRISES LTD,"17,890.00",Major Imps,Repairs,30 Nov 2023,2324/10,SME,M7617,H2010,N,
0000376204,APTL ENTERPRISES LTD,"5,925.00",Major Imps,Repairs,31 Dec 2023,2324/11,SME,M7617,H2010,N,
0000376308,APTL ENTERPRISES LTD,"4,326.67",Major Imps,Repairs,31 Dec 2023,2324/12,SME,M7617,H2010,N,
0000376522,APTL ENTERPRISES LTD,"2,020.00",Building Services,Repairs,19 Feb 2024,2324/12,SME,M8199,H2010,N,
0000376678,APTL ENTERPRISES LTD,"6,115.00",Rewiring,Repairs,31 Jan 2024,2324/11,SME,M7601,H2010,N,
0000376679,APTL ENTERPRISES LTD,"4,326.67",Rewiring,Repairs,31 Jan 2024,2324/11,SME,M7601,H2010,N,
0000377271,APTL ENTERPRISES LTD,"4,326.67",Rewiring,Repairs,29 Feb 2024,2324/12,SME,M7601,H2010,N,
0000377274,APTL ENTERPRISES LTD,830.00,Building Services,Repairs,12 Mar 2024,2324/12,SME,M8199,H2010,N,
0000377328,APTL ENTERPRISES LTD,510.00,Building Services,Repairs,14 Mar 2024,2324/12,SME,M8199,H2010,N,
0000377473,APTL ENTERPRISES LTD,"1,780.00",Building Services,Repairs,18 Mar 2024,2324/12,SME,M8199,H2010,N,
0000374958,AQUAJET CLEANING EQUIPMENT LTD,"7,500.00",Creeting Rd Depot,"Equipment, Tools & Materials",22 Dec 2023,2324/10,SME,M1103,H3031,Y,50%
0000376955,AQUAJET CLEANING EQUIPMENT LTD,985.00,Creeting Rd Depot,Grounds & Site Maintenance,01 Mar 2024,2324/12,SME,M1103,H2003,Y,50%
0000375157,AQUASAMPLERS,705.00,Water Sampling,Sampling & Analysis,30 Nov 2023,2324/10,SME,M4106,H3043,N,
0000377577,AQUASAMPLERS,894.00,Water Sampling,Sampling & Analysis,29 Feb 2024,2324/12,SME,M4106,H3043,N,
0000374710,ARAN INSULATION LTD,"4,922.39",Insulation Imps,Major Contracts,18 Dec 2023,2324/10,SME,M7616,H6001,N,
0000374711,ARAN INSULATION LTD,"5,297.39",Insulation Imps,Major Contracts,18 Dec 2023,2324/10,SME,M7616,H6001,N,
0000374801,ARAN INSULATION LTD,"3,576.96",Insulation Imps,Repairs,20 Dec 2023,2324/10,SME,M7616,H2010,N,
0000375072,ARAN INSULATION LTD,"6,152.60",Insulation Imps,Major Contracts,02 Jan 2024,2324/10,SME,M7616,H6001,N,
0000375073,ARAN INSULATION LTD,851.86,Insulation Imps,Major Contracts,02 Jan 2024,2324/10,SME,M7616,H6001,N,
0000375074,ARAN INSULATION LTD,"5,398.79",Insulation Imps,Improvements,02 Jan 2024,2324/10,SME,M7616,H2051,N,
0000375075,ARAN INSULATION LTD,"6,971.24",Insulation Imps,Major Contracts,02 Jan 2024,2324/10,SME,M7616,H6001,N,
0000375076,ARAN INSULATION LTD,"3,912.86",Insulation Imps,Major Contracts,02 Jan 2024,2324/10,SME,M7616,H6001,N,
0000375077,ARAN INSULATION LTD,"2,322.00",Insulation Imps,Repairs,02 Jan 2024,2324/10,SME,M7616,H2010,N,
0000375103,ARAN INSULATION LTD,843.75,Building Services,Repairs,02 Jan 2024,2324/10,SME,M8199,H2010,N,
0000375155,ARAN INSULATION LTD,"6,678.80",Insulation Imps,Major Contracts,04 Jan 2024,2324/10,SME,M7616,H6001,N,
0000375156,ARAN INSULATION LTD,"6,436.69",Insulation Imps,Major Contracts,04 Jan 2024,2324/10,SME,M7616,H6001,N,
0000375559,ARAN INSULATION LTD,"1,212.29",Insulation Imps,Major Contracts,18 Jan 2024,2324/11,SME,M7616,H6001,N,
0000375936,ARAN INSULATION LTD,"1,329.89",Insulation Imps,Major Contracts,31 Jan 2024,2324/11,SME,M7616,H6001,N,
0000376175,ARAN INSULATION LTD,"1,905.00",Insulation Imps,Major Contracts,07 Feb 2024,2324/11,SME,M7616,H6001,N,
0000376235,ARAN INSULATION LTD,"7,661.62",Insulation Imps,Major Contracts,08 Feb 2024,2324/11,SME,M7616,H6001,N,
0000376240,ARAN INSULATION LTD,"1,457.86",Dampness,Repairs,08 Feb 2024,2324/11,SME,M7611,H2010,N,
0000376320,ARAN INSULATION LTD,"5,297.39",Insulation Imps,Major Contracts,12 Feb 2024,2324/11,SME,M7616,H6001,N,
0000376384,ARAN INSULATION LTD,"6,418.86",Insulation Imps,Improvements,14 Feb 2024,2324/11,SME,M7616,H2051,N,
0000376385,ARAN INSULATION LTD,"3,773.28",Insulation Imps,Repairs,14 Feb 2024,2324/11,SME,M7616,H2010,N,
0000376779,ARAN INSULATION LTD,"4,057.89","Fences, Gates and Walls",Repairs,28 Feb 2024,2324/12,SME,M7607,H2010,N,
0000376780,ARAN INSULATION LTD,"6,125.74",Insulation Imps,Repairs,28 Feb 2024,2324/11,SME,M7616,H2010,N,
0000377142,ARAN INSULATION LTD,"6,418.19",Insulation Imps,Major Contracts,07 Mar 2024,2324/12,SME,M7616,H6001,N,
0000377143,ARAN INSULATION LTD,"2,317.02",Insulation Imps,Major Contracts,07 Mar 2024,2324/12,SME,M7616,H6001,N,
0000377284,ARAN INSULATION LTD,"1,313.18",Insulation Imps,Major Contracts,12 Mar 2024,2324/12,SME,M7616,H6001,N,
0000377285,ARAN INSULATION LTD,"1,263.08",Insulation Imps,Major Contracts,12 Mar 2024,2324/12,SME,M7616,H6001,N,
0000377289,ARAN INSULATION LTD,"2,587.96",Insulation Imps,Repairs,13 Mar 2024,2324/12,SME,M7616,H2010,N,
0000377290,ARAN INSULATION LTD,"4,751.00",Insulation Imps,Repairs,13 Mar 2023,2324/12,SME,M7616,H2010,N,
0000377619,ARAN INSULATION LTD,"1,200.22",Insulation Imps,Repairs,21 Mar 2024,2324/12,SME,M7616,H2010,N,
0000377628,ARAN INSULATION LTD,"1,327.28",Insulation Imps,Repairs,21 Mar 2024,2324/12,SME,M7616,H2010,N,
0000377634,ARAN INSULATION LTD,"1,470.00",Insulation Imps,Major Contracts,21 Mar 2024,2324/12,SME,M7616,H6001,N,
0000377784,ARAN INSULATION LTD,"1,349.50",Insulation Imps,Repairs,26 Mar 2024,2324/12,SME,M7616,H2010,N,
0000375487,ARMSTRONG YORK ASBESTOS ENVIRONMENTAL,"3,560.21",Asbestos Survey & Reinspection,Prof & Consultancy Fees,29 Dec 2023,2324/10,SME,M8128,H3041,N,
0000376317,ARMSTRONG YORK ASBESTOS ENVIRONMENTAL,"5,794.67",Asbestos Survey & Reinspection,Prof & Consultancy Fees,31 Jan 2024,2324/12,SME,M8128,H3041,N,
0000377089,ARMSTRONG YORK ASBESTOS ENVIRONMENTAL,"3,914.70",Asbestos Survey & Reinspection,Prof & Consultancy Fees,29 Feb 2024,2324/12,SME,M8128,H3041,N,
0000375730,ARTISAN PLANNING & PROPERTY SERVICES LTD,"2,050.00",Devt Management - Appeals,Costs allowed to appellant,23 Jan 2024,2324/10,SME,M3102,H3162,N,
0000377066,ASCP GROUP LTD,"8,835.00",Building Services Compliance,Training,08 Feb 2024,2324/12,SME,M8107,H1043,Y,50%
0000375024,ASPECT CONTRACTS LTD,"6,100.00",Asbestos,Improvements,12 Dec 2023,2324/10,LGE,M7625,H2051,N,
0000375439,ASPECT CONTRACTS LTD,"11,799.00",Asbestos,Improvements,12 Jan 2024,2324/10,LGE,M7625,H2051,N,
0000377283,ASPECT CONTRACTS LTD,"2,898.00",Asbestos,Repairs,16 Feb 2024,2324/12,LGE,M7625,H2010,N,
0000375167,ASSOCIATION OF ELECTORAL ADMINISTRATORS,"16,611.02",Electoral Registration,Salaries,07 Dec 2023,2324/10,SME,M5301,A1001,Y,50%
0000375194,ASSOCIATION OF ELECTORAL ADMINISTRATORS,"13,189.42",Electoral Registration,Salaries,05 Jan 2024,2324/12,SME,M5301,H1001,Y,50%
0000376314,ASSOCIATION OF ELECTORAL ADMINISTRATORS,"9,677.52",Electoral Registration,Salaries,06 Feb 2024,2324/12,SME,M5301,H1001,Y,50%
0000377774,ASSOCIATION OF ELECTORAL ADMINISTRATORS,"12,693.03",Electoral Registration,Salaries,05 Mar 2024,2324/12,SME,M5301,H1001,Y,50%
0000375479,ASTOR BANNERMAN (MEDICAL) LTD,"7,450.00",Mand Disabled Facilities Grant,Grants,15 Jan 2024,2324/10,SME,M7001,H3081,N,
0000423748,BACTON PARISH COUNCIL,677.30,Street & Major Road Cleansing,Contributions to other Bodies,06 Feb 2024,2324/11,SME,M4402,H3083,N,
0000376631,BACTON UNITED 89 FOOTBALL CLUB,"1,118.99",Grants & Contrbns,Grants,22 Feb 2024,2324/11,SME,M2107,H3081,N,
0000377814,BADWELL ASH PARISH COUNCIL,"8,502.40",CIL Funded REFCUS,Grants,26 Mar 2024,2324/12,SME,M7161,H3081,N,
0000377820,BADWELL ASH PARISH COUNCIL,"3,605.95",S106 Open Spaces Expenditure,Grants,26 Mar 2024,2324/12,SME,M7126,H3081,N,
0000375629,BADWELL ASH VILLAGE HALL,"2,500.00",Grants & Contrbns,Grants,22 Jan 2024,2324/10,SME,M2107,H3081,N,
0000375948,BADWELL ASH VILLAGE HALL,800.00,Grants & Contrbns,Contributions & Donations,31 Jan 2024,2324/11,SME,M2107,H3082,N,
0000000289,BAILEYS HEATING COMPANY LTD,"-3,501.40",Planned Maint - Heating,Property Servicing,22 Mar 2024,2324/12,SME,M8103,H2009,N,
0000374110,BAILEYS HEATING COMPANY LTD,"11,034.32",Central Heating,Major Contracts,24 Oct 2023,2324/10,SME,M7604,H6001,N,
0000374533,BAILEYS HEATING COMPANY LTD,"9,330.00",Central Heating,Improvements,12 Dec 2023,2324/10,SME,M7604,H2051,N,
0000375007,BAILEYS HEATING COMPANY LTD,-28.01,Planned Maint - Heating,Property Servicing,23 Nov 2023,2324/10,SME,M8103,H2009,N,
0000375008,BAILEYS HEATING COMPANY LTD,-117.66,Planned Maint - Heating,Property Servicing,23 Nov 2023,2324/10,SME,M8103,H2009,N,
0000375124,BAILEYS HEATING COMPANY LTD,"55,688.75",Planned Maint - Heating,Repairs,30 Dec 2023,2324/10,SME,M8103,H2010,N,
0000375437,BAILEYS HEATING COMPANY LTD,-37.53,Planned Maint - Heating,Property Servicing,10 Jan 2024,2324/10,SME,M8103,H2009,N,
0000375666,BAILEYS HEATING COMPANY LTD,-32.97,Planned Maint - Heating,Property Servicing,29 Dec 2023,2324/10,SME,M8103,H2009,N,
0000375675,BAILEYS HEATING COMPANY LTD,"11,750.00",Central Heating,Repairs,16 Jan 2024,2324/11,SME,M7604,H2010,N,
0000375676,BAILEYS HEATING COMPANY LTD,729.99,Central Heating,Repairs,10 Jan 2024,2324/10,SME,M7604,H2010,N,
0000375820,BAILEYS HEATING COMPANY LTD,513.17,Voids Maintenance,Repairs,25 Jan 2024,2324/10,SME,M8105,H2010,N,
0000375820,BAILEYS HEATING COMPANY LTD,882.78,Planned Maint - Heating,Property Servicing,25 Jan 2024,2324/10,SME,M8103,H2009,N,
0000375891,BAILEYS HEATING COMPANY LTD,"55,688.75",Planned Maint - Heating,Repairs,30 Jan 2024,2324/11,SME,M8103,H2010,N,
0000376002,BAILEYS HEATING COMPANY LTD,"9,774.00",Central Heating,Repairs,01 Feb 2024,2324/11,SME,M7604,H2010,N,
0000376003,BAILEYS HEATING COMPANY LTD,"7,938.50",Central Heating,Repairs,01 Feb 2024,2324/11,SME,M7604,H2010,N,
0000376257,BAILEYS HEATING COMPANY LTD,689.99,Central Heating,Repairs,08 Feb 2024,2324/11,SME,M7604,H2010,N,
0000376421,BAILEYS HEATING COMPANY LTD,"1,528.35",Central Heating,Repairs,15 Feb 2024,2324/12,SME,M7604,H2010,N,
0000376534,BAILEYS HEATING COMPANY LTD,"8,137.50",Central Heating,Repairs,19 Feb 2024,2324/12,SME,M7604,H2010,N,
0000376564,BAILEYS HEATING COMPANY LTD,"-8,137.50",Central Heating,Repairs,20 Feb 2024,2324/11,SME,M7604,H2010,N,
0000376567,BAILEYS HEATING COMPANY LTD,"-1,615.84",Central Heating,Major Contracts,23 Nov 2023,2324/11,SME,M7604,H6001,N,
0000376805,BAILEYS HEATING COMPANY LTD,"55,688.75",Planned Maint - Heating,Repairs,29 Feb 2024,2324/12,SME,M8103,H2010,N,
0000377154,BAILEYS HEATING COMPANY LTD,867.83,Planned Maint - Heating,Property Servicing,27 Feb 2024,2324/12,SME,M8103,H2009,N,
0000377554,BAILEYS HEATING COMPANY LTD,"55,688.75",Central Heating,Repairs,15 Mar 2024,2324/12,SME,M7604,H2010,N,
0000377782,BAILEYS HEATING COMPANY LTD,"-8,137.50",Central Heating,Repairs,26 Mar 2024,2324/12,SME,M7604,H2010,N,
0000423704,BAILEYS HEATING COMPANY LTD,"2,499.92",Planned Maint - Heating,Property Servicing,04 Jan 2024,2324/10,SME,M8103,H2009,N,
0000423705,BAILEYS HEATING COMPANY LTD,-52.61,Planned Maint - Heating,Property Servicing,04 Jan 2024,2324/10,SME,M8103,H2009,N,
0000423706,BAILEYS HEATING COMPANY LTD,255.59,Voids Maintenance,Repairs,04 Jan 2024,2324/10,SME,M8105,H2010,N,
0000423706,BAILEYS HEATING COMPANY LTD,"5,477.00",Planned Maint - Heating,Property Servicing,04 Jan 2024,2324/10,SME,M8103,H2009,N,
0000423707,BAILEYS HEATING COMPANY LTD,"-5,423.91",Planned Maint - Heating,Property Servicing,04 Jan 2024,2324/10,SME,M8103,H2009,N,
0000423707,BAILEYS HEATING COMPANY LTD,-43.11,Voids Maintenance,Repairs,04 Jan 2024,2324/10,SME,M8105,H2010,N,
0000423720,BAILEYS HEATING COMPANY LTD,"1,031.19",Voids Maintenance,Repairs,29 Dec 2023,2324/10,SME,M8105,H2010,N,
0000423720,BAILEYS HEATING COMPANY LTD,"7,150.45",Planned Maint - Heating,Property Servicing,29 Dec 2023,2324/10,SME,M8103,H2009,N,
0000423721,BAILEYS HEATING COMPANY LTD,241.35,Voids Maintenance,Repairs,29 Dec 2023,2324/10,SME,M8105,H2010,N,
0000423721,BAILEYS HEATING COMPANY LTD,"31,319.18",Planned Maint - Heating,Property Servicing,29 Dec 2023,2324/10,SME,M8103,H2009,N,
0000423722,BAILEYS HEATING COMPANY LTD,"-31,197.69",Planned Maint - Heating,Property Servicing,29 Dec 2023,2324/10,SME,M8103,H2009,N,
0000423722,BAILEYS HEATING COMPANY LTD,-86.22,Voids Maintenance,Repairs,29 Dec 2023,2324/10,SME,M8105,H2010,N,
0000423723,BAILEYS HEATING COMPANY LTD,43.11,Voids Maintenance,Repairs,23 Jan 2024,2324/10,SME,M8105,H2010,N,
0000423723,BAILEYS HEATING COMPANY LTD,"1,300.79",Planned Maint - Heating,Property Servicing,23 Jan 2024,2324/10,SME,M8103,H2009,N,
0000423724,BAILEYS HEATING COMPANY LTD,"-1,300.79",Planned Maint - Heating,Property Servicing,23 Jan 2024,2324/10,SME,M8103,H2009,N,
0000423724,BAILEYS HEATING COMPANY LTD,-43.11,Voids Maintenance,Repairs,23 Jan 2024,2324/10,SME,M8105,H2010,N,
0000423725,BAILEYS HEATING COMPANY LTD,"3,334.55",Planned Maint - Heating,Property Servicing,29 Dec 2023,2324/10,SME,M8103,H2009,N,
0000423726,BAILEYS HEATING COMPANY LTD,-959.27,Planned Maint - Heating,Property Servicing,29 Dec 2023,2324/10,SME,M8103,H2009,N,
0000423727,BAILEYS HEATING COMPANY LTD,247.88,Voids Maintenance,Repairs,17 Jan 2024,2324/10,SME,M8105,H2010,N,
0000423727,BAILEYS HEATING COMPANY LTD,"9,246.33",Planned Maint - Heating,Property Servicing,17 Jan 2024,2324/10,SME,M8103,H2009,N,
0000423728,BAILEYS HEATING COMPANY LTD,"-4,835.15",Planned Maint - Heating,Property Servicing,17 Jan 2024,2324/10,SME,M8103,H2009,N,
0000423728,BAILEYS HEATING COMPANY LTD,-145.84,Voids Maintenance,Repairs,17 Jan 2024,2324/10,SME,M8105,H2010,N,
0000423729,BAILEYS HEATING COMPANY LTD,326.50,Voids Maintenance,Repairs,17 Jan 2024,2324/10,SME,M8105,H2010,N,
0000423729,BAILEYS HEATING COMPANY LTD,"4,705.60",Planned Maint - Heating,Property Servicing,17 Jan 2024,2324/10,SME,M8103,H2009,Y,50%
0000423730,BAILEYS HEATING COMPANY LTD,"-1,989.46",Planned Maint - Heating,Property Servicing,17 Jan 2024,2324/10,SME,M8103,H2009,N,
0000423733,BAILEYS HEATING COMPANY LTD,-272.69,Planned Maint - Heating,Property Servicing,25 Jan 2024,2324/10,SME,M8103,H2009,N,
0000423733,BAILEYS HEATING COMPANY LTD,-94.82,Voids Maintenance,Repairs,25 Jan 2024,2324/10,SME,M8105,H2010,N,
0000423734,BAILEYS HEATING COMPANY LTD,129.33,Voids Maintenance,Repairs,04 Jan 2024,2324/10,SME,M8105,H2010,N,
0000423734,BAILEYS HEATING COMPANY LTD,"3,153.65",Planned Maint - Heating,Property Servicing,04 Jan 2024,2324/10,SME,M8103,H2009,N,
0000423735,BAILEYS HEATING COMPANY LTD,"-2,654.65",Planned Maint - Heating,Property Servicing,04 Jan 2024,2324/10,SME,M8103,H2009,N,
0000423735,BAILEYS HEATING COMPANY LTD,-43.11,Voids Maintenance,Repairs,04 Jan 2024,2324/10,SME,M8105,H2010,N,
0000423736,BAILEYS HEATING COMPANY LTD,296.68,Voids Maintenance,Repairs,31 Dec 2023,2324/10,SME,M8105,H2010,N,
0000423736,BAILEYS HEATING COMPANY LTD,"8,212.20",Planned Maint - Heating,Property Servicing,31 Dec 2023,2324/10,SME,M8103,H2009,N,
0000423737,BAILEYS HEATING COMPANY LTD,"-6,240.30",Planned Maint - Heating,Property Servicing,04 Jan 2024,2324/10,SME,M8103,H2009,N,
0000423737,BAILEYS HEATING COMPANY LTD,-172.44,Voids Maintenance,Repairs,04 Jan 2024,2324/10,SME,M8105,H2010,N,
0000423739,BAILEYS HEATING COMPANY LTD,"-3,664.03",Planned Maint - Heating,Property Servicing,29 Dec 2023,2324/10,SME,M8103,H2009,N,
0000423739,BAILEYS HEATING COMPANY LTD,-789.29,Voids Maintenance,Repairs,29 Dec 2023,2324/10,SME,M8105,H2010,N,
0000423778,BAILEYS HEATING COMPANY LTD,-424.42,Planned Maint - Heating,Property Servicing,08 Feb 2024,2324/11,SME,M8103,H2009,N,
0000423779,BAILEYS HEATING COMPANY LTD,163.25,Voids Maintenance,Repairs,08 Feb 2024,2324/11,SME,M8105,H2010,N,
0000423779,BAILEYS HEATING COMPANY LTD,"28,811.05",Planned Maint - Heating,Property Servicing,08 Feb 2024,2324/11,SME,M8103,H2009,N,
0000423780,BAILEYS HEATING COMPANY LTD,43.11,Voids Maintenance,Repairs,31 Jan 2024,2324/11,SME,M8105,H2010,N,
0000423780,BAILEYS HEATING COMPANY LTD,"17,871.11",Planned Maint - Heating,Property Servicing,31 Jan 2024,2324/11,SME,M8103,H2009,N,
0000423781,BAILEYS HEATING COMPANY LTD,"-4,326.38",Planned Maint - Heating,Property Servicing,01 Feb 2024,2324/11,SME,M8103,H2009,N,
0000423781,BAILEYS HEATING COMPANY LTD,-43.11,Voids Maintenance,Repairs,01 Feb 2024,2324/11,SME,M8105,H2010,N,
0000423785,BAILEYS HEATING COMPANY LTD,102.04,Voids Maintenance,Repairs,14 Feb 2024,2324/11,SME,M8105,H2010,N,
0000423785,BAILEYS HEATING COMPANY LTD,"9,820.07",Planned Maint - Heating,Property Servicing,14 Feb 2024,2324/11,SME,M8103,H2009,N,
0000423786,BAILEYS HEATING COMPANY LTD,-537.85,Planned Maint - Heating,Property Servicing,14 Feb 2024,2324/11,SME,M8103,H2009,N,
0000423787,BAILEYS HEATING COMPANY LTD,"10,420.15",Planned Maint - Heating,Property Servicing,21 Feb 2024,2324/11,SME,M8103,A2009,Y,<.01%
0000423788,BAILEYS HEATING COMPANY LTD,-579.98,Planned Maint - Heating,Property Servicing,21 Feb 2024,2324/11,SME,M8103,H2009,Y,0.05%
0000423793,BAILEYS HEATING COMPANY LTD,-102.14,Planned Maint - Heating,Property Servicing,29 Feb 2024,2324/11,SME,M8103,H2009,N,
0000423811,BAILEYS HEATING COMPANY LTD,204.08,Voids Maintenance,Repairs,06 Mar 2024,2324/12,SME,M8105,H2010,N,
0000423811,BAILEYS HEATING COMPANY LTD,"9,803.90",Planned Maint - Heating,Property Servicing,06 Mar 2024,2324/12,SME,M8103,H2009,N,
0000423812,BAILEYS HEATING COMPANY LTD,-259.64,Planned Maint - Heating,Property Servicing,06 Mar 2024,2324/12,SME,M8103,H2009,N,
0000423892,BAILEYS HEATING COMPANY LTD,89.00,Responsive maintenance,Repairs,15 Mar 2024,2324/12,SME,M8102,H2010,N,
0000423892,BAILEYS HEATING COMPANY LTD,102.04,Voids Maintenance,Repairs,15 Mar 2024,2324/12,SME,M8105,H2010,N,
0000423892,BAILEYS HEATING COMPANY LTD,"4,888.40",Planned Maint - Heating,Property Servicing,15 Mar 2024,2324/12,SME,M8103,H2009,N,
0000423895,BAILEYS HEATING COMPANY LTD,489.75,Voids Maintenance,Repairs,21 Mar 2024,2324/12,SME,M8105,H2010,N,
0000423895,BAILEYS HEATING COMPANY LTD,"32,414.56",Planned Maint - Heating,Property Servicing,21 Mar 2024,2324/12,SME,M8103,H2009,N,
0000423896,BAILEYS HEATING COMPANY LTD,"3,501.40",Planned Maint - Heating,Property Servicing,21 Mar 2024,2324/12,SME,M8103,H2009,N,
0000423900,BAILEYS HEATING COMPANY LTD,153.06,Voids Maintenance,Repairs,27 Mar 2024,2324/12,SME,M8105,H2010,N,
0000423900,BAILEYS HEATING COMPANY LTD,"11,202.09",Planned Maint - Heating,Property Servicing,27 Mar 2024,2324/12,SME,M8103,H2009,N,
0000376967,BALDWIN HOME IMPROVEMENTS LTD,"2,436.00",Renovation/Home Repair Grants,Grants,01 Mar 2024,2324/12,SME,M7005,H3081,N,
0000423749,BARHAM PARISH COUNCIL,677.30,Street & Major Road Cleansing,Contributions to other Bodies,06 Feb 2024,2324/11,SME,M4402,H3083,N,
0000375219,BARHAM PICNIC SITE COMMUNITY PROJECT,"8,000.00",Communities,Grants,08 Jan 2024,2324/10,SME,M2309,H3081,N,
0000376844,BATTISFORD & DISTRICT CRICKET CLUB,"1,253.47",Grants & Contrbns,Contributions & Donations,29 Feb 2024,2324/12,SME,M2107,H3082,N,
0000376358,BATTISFORD VILLAGE HALL MGT COMMITTEE,"8,509.40",Community Fund Projects-Grants,Grants,13 Feb 2024,2324/11,SME,M7115,H3081,N,
0000376546,BATTISFORD VILLAGE HALL MGT COMMITTEE,"3,282.38",CIL Funded REFCUS,Grants,20 Feb 2024,2324/11,SME,M7161,H3081,N,
0000377252,BATTISFORD VILLAGE HALL MGT COMMITTEE,"1,490.60",Community Fund Projects-Grants,Grants,11 Mar 2024,2324/12,SME,M7115,H3081,N,
0000377707,BAYLHAM VILLAGE HALL,"6,000.00",Grants & Contrbns,Contributions & Donations,22 Mar 2024,2324/12,SME,M2107,H3082,N,
0000375059,BEDFIELD & MONK SOHAM COMMUNITY CLUB,743.00,VCSE Resilience,"Equipment, Tools & Materials",02 Jan 2024,2324/10,SME,M2310,H3031,N,
0000374690,BELL DECORATING GROUP LTD,"7,038.65",Planned Maint - Ext Painting,External Painting,30 Nov 2023,2324/10,LGE,M8104,H2008,N,
0000374843,BELL DECORATING GROUP LTD,"4,768.75",Planned Maint - Ext Painting,External Painting,21 Dec 2023,2324/10,LGE,M8104,H2008,N,
0000376144,BELL DECORATING GROUP LTD,"9,125.78",Planned Maint - Ext Painting,External Painting,31 Jan 2024,2324/11,LGE,M8104,H2008,N,
0000377663,BELL DECORATING GROUP LTD,"7,962.02",Planned Maint - Ext Painting,External Painting,29 Feb 2024,2324/12,LGE,M8104,H2008,N,
0000375385,BELLWAY HOMES LIMITED (ESSEX DIVISION),"133,288.97",Loraine Way Bramford  S106,Purchase of Land & Buildings,11 Jan 2024,2324/10,LGE,M7712,H3120,N,
0000376379,BELLWAY HOMES LIMITED (ESSEX DIVISION),"594,976.25",Loraine Way Bramford  S106,Purchase of Land & Buildings,13 Feb 2024,2324/11,LGE,M7712,H3120,N,
0000376448,BELLWAY HOMES LIMITED (ESSEX DIVISION),"51,942.45",Eves Meadow Haughley S106,Prof & Consultancy Fees,12 Feb 2024,2324/11,LGE,M7698,H3041,N,
0000377138,BELLWAY HOMES LIMITED (ESSEX DIVISION),"744,138.29",Loraine Way Bramford  S106,Purchase of Land & Buildings,05 Mar 2024,2324/12,LGE,M7712,H3120,N,
0000377816,BELLWAY HOMES LIMITED (ESSEX DIVISION),"177,858.54",Loraine Way Bramford  S106,Purchase of Land & Buildings,26 Mar 2024,2324/12,LGE,M7712,H3120,N,
0000375768,BEN BURGESS GARDEN EQUIPMENT,"1,500.00",Open Spaces,"Equipment, Tools & Materials",25 Jan 2024,2324/10,SME,M4404,H3031,N,
0000375899,BEN BURGESS GARDEN EQUIPMENT,"1,500.00",Open Spaces,"Equipment, Tools & Materials",21 Dec 2023,2324/11,SME,M4404,H3031,Y,50%
0000375049,BENICIA PROPERTIES LTD,685.00,Guaranteed Rent Scheme,Rent Payable,02 Jan 2024,2324/10,SME,M1414,H2023,N,
0000375259,BENICIA PROPERTIES LTD,600.00,Guaranteed Rent Scheme,Rent Payable,09 Jan 2024,2324/10,SME,M1414,H2023,N,
0000375847,BENICIA PROPERTIES LTD,685.00,Guaranteed Rent Scheme,Rent Payable,29 Jan 2024,2324/10,SME,M1414,H2023,N,
0000376332,BENICIA PROPERTIES LTD,600.00,Guaranteed Rent Scheme,Rent Payable,12 Feb 2024,2324/11,SME,M1414,H2023,N,
0000376734,BENICIA PROPERTIES LTD,685.00,Guaranteed Rent Scheme,Rent Payable,27 Feb 2024,2324/11,SME,M1414,H2023,N,
0000377207,BENICIA PROPERTIES LTD,600.00,Guaranteed Rent Scheme,Rent Payable,11 Mar 2024,2324/12,SME,M1414,H2023,N,
0000376980,BEVAN BRITTAN LLP,"1,500.00",HRA General Management,Prof & Consultancy Fees,07 Nov 2023,2324/12,LGE,M8000,H3041,N,
0000376065,BEYOND THE WALL,700.00,Grants & Contrbns,Contributions & Donations,02 Feb 2024,2324/11,SME,M2107,H3082,N,
0000374946,BINDER LTD,810.00,Sewage Treatment Works,Contracted Services,21 Dec 2023,2324/10,SME,M8115,H3042,N,
0000376125,BINDER LTD,826.60,Sewage Treatment Works,Contracted Services,31 Jan 2024,2324/11,SME,M8115,H3042,N,
0000377265,BINDER LTD,506.25,Sewage Treatment Works,Contracted Services,29 Feb 2024,2324/12,SME,M8115,H3042,N,
0000377266,BINDER LTD,961.72,Sewage Treatment Works,Contracted Services,29 Feb 2024,2324/12,SME,M8115,H3042,N,
0000375351,BIRKETTS LLP,"4,031.00",Organisational Devt,Specialist Legal Expenses,18 Oct 2023,2324/10,LGE,M5100,A3047,Y,50%
0000375795,BIRKETTS LLP,"5,908.00",Organisational Devt,Legal Expenses,17 Jan 2024,2324/10,LGE,M5100,H3047,Y,50%
0000375797,BIRKETTS LLP,"1,500.00",Organisational Devt,Specialist Legal Expenses,15 Jan 2024,2324/10,LGE,M5100,A3047,Y,50%
0000376254,BIRKETTS LLP,"2,982.00",Stowmarket Middle School,Legal Expenses,06 Feb 2024,2324/11,LGE,M7696,H3047,N,
0000376776,BIRKETTS LLP,"2,586.00",Organisational Devt,Legal Expenses,30 Jan 2024,2324/12,LGE,M5100,H3047,Y,50%
0000376777,BIRKETTS LLP,"3,260.00",Organisational Devt,Legal Expenses,11 Jan 2024,2324/12,LGE,M5100,H3047,Y,50%
0000377146,BIRKETTS LLP,"1,019.00",Organisational Devt,Legal Expenses,13 Feb 2024,2324/12,LGE,M5100,H3047,Y,50%
0000377282,BIRKETTS LLP,"3,484.50",Organisational Devt,Legal Expenses,29 Feb 2024,2324/12,LGE,M5100,H3047,Y,50%
0000377343,BIRKETTS LLP,"1,500.00",CIL,Misc Legal Expenses,14 Mar 2024,2324/12,LGE,M0907,H3055,N,
0000377681,BIRKETTS LLP,"2,484.00",Organisational Devt,Legal Expenses,20 Mar 2024,2324/12,LGE,M5100,H3047,Y,50%
0000377655,BOTESDALE VILLAGE HALL MANAGEMENT COMMIT,"4,000.00",Grants & Contrbns,Contributions & Donations,21 Mar 2024,2324/12,SME,M2107,H3082,N,
0000375158,BOWER FULLER,"2,917.95",MSM Sustainable Travel,"Equipment, Tools & Materials",04 Jan 2024,2324/10,SME,M3559,H3031,N,
0000376097,BOWER FULLER,"2,175.00",Building Services,Repairs,31 Jan 2024,2324/11,SME,M8199,H2010,N,
0000376099,BOWER FULLER,"2,100.00",Rewiring,Repairs,31 Jan 2024,2324/12,SME,M7601,H2010,N,
0000376345,BOWER FULLER,"2,735.48",Open Spaces,"Equipment, Tools & Materials",13 Feb 2024,2324/12,SME,M4404,H3031,N,
0000376346,BOWER FULLER,"1,117.00",Rewiring,Repairs,13 Feb 2024,2324/11,SME,M7601,H2010,N,
0000376973,BOWER FULLER,630.00,Creeting Rd Depot,Grounds & Site Maintenance,29 Feb 2024,2324/12,SME,M1103,H2003,Y,50%
0000376975,BOWER FULLER,"2,247.13",Electrical Works,Repairs,29 Feb 2024,2324/12,SME,M7629,H2010,N,
0000376978,BOWER FULLER,779.32,Public Conveniences,Repairs,29 Feb 2024,2324/12,SME,M4401,H2010,N,
0000377338,BOWER FULLER,"1,457.53",Rewiring,Repairs,13 Mar 2024,2324/12,SME,M7601,H2010,N,
0000377339,BOWER FULLER,"1,457.53",Rewiring,Repairs,13 Mar 2024,2324/12,SME,M7601,H2010,N,
0000377362,BOWER FULLER,579.03,Sheltered Accommodation,Legionella Testing,14 Mar 2024,2324/12,SME,M8401,H2044,N,
0000377491,BOWER FULLER,658.90,Tenancy Services,Legionella Testing,18 Mar 2024,2324/12,SME,M8500,H2044,N,
0000377493,BOWER FULLER,604.08,Sheltered Accommodation,Legionella Testing,18 Mar 2024,2324/12,SME,M8402,H2044,N,
0000377616,BOWER FULLER,"6,631.65",C Parks General,"Equipment, Tools & Materials",21 Mar 2024,2324/12,SME,M4410,H3031,N,
0000377474,BRAMFORD LORAINE VICTORY HALL,"6,337.00",Grants & Contrbns,Contributions & Donations,15 Mar 2024,2324/12,SME,M2107,H3082,N,
0000423752,BRAMFORD PARISH COUNCIL,677.30,Street & Major Road Cleansing,Contributions to other Bodies,06 Feb 2024,2324/11,SME,M4402,H3083,N,
0000376584,BRAMFORD TENNIS CLUB,"22,801.33",S106 Open Spaces Expenditure,Grants,21 Feb 2024,2324/11,SME,M7126,H3081,N,
0000375283,BRAMFORD UNITED FOOTBALL CLUB,"25,447.34",S106 Open Spaces Expenditure,Grants,09 Jan 2024,2324/10,SME,M7126,H3081,N,
0000375765,BRITISH GEOLOGICAL SURVEY,"1,575.54",ICT,Software Licnse (Line of Bus) ,24 Jan 2024,2324/10,SME,M6200,H3003,Y,50%
0000423746,BRITISH RED CROSS,-165.00,Organisational Devt,Health & Safety Training,09 Jan 2024,2324/11,SME,M5100,H1046,N,
0000376187,BROADOAK CONSTRUCTION LTD,"7,450.00",Mand Disabled Facilities Grant,Grants,07 Feb 2024,2324/11,SME,M7001,H3081,N,
0000375512,PRIVATE LANDLORD,895.00,Guaranteed Rent Scheme,Rent Payable,17 Jan 2024,2324/10,ST,M1414,H2023,N,
0000376333,PRIVATE LANDLORD,895.00,Guaranteed Rent Scheme,Rent Payable,12 Feb 2024,2324/11,ST,M1414,H2023,N,
0000377203,PRIVATE LANDLORD,895.00,Guaranteed Rent Scheme,Rent Payable,11 Mar 2024,2324/12,ST,M1414,H2023,N,
0000377041,BSI,652.00,Bldg Regs Chargeable Serv,Prof & Consultancy Fees,01 Mar 2024,2324/12,LGE,M3301,H3041,N,
0000374983,BT PAYMENT SERVICES,"5,013.61",ICT,Telephone Costs,21 Dec 2023,2324/10,LGE,M6200,H3011,N,
0000377713,BT PAYMENT SERVICES,"18,926.20",ICT,Telephone Costs,21 Mar 2024,2324/12,LGE,M6200,H3011,N,
0000375281,BUCHER MUNICIPAL LTD,509.71,Street & Major Road Cleansing,Plant & Vehicle - Other costs,08 Jan 2024,2324/10,LGE,M4402,H4015,N,
0000375767,BUCHER MUNICIPAL LTD,794.14,Street & Major Road Cleansing,Plant & Vehicle - Other costs,25 Jan 2024,2324/10,LGE,M4402,H4015,N,
0000376275,BUCHER MUNICIPAL LTD,509.71,Street & Major Road Cleansing,Plant & Vehicle - Other costs,06 Feb 2024,2324/11,LGE,M4402,H4015,N,
0000377224,BUCHER MUNICIPAL LTD,509.71,Street & Major Road Cleansing,Plant & Vehicle - Other costs,07 Mar 2024,2324/12,LGE,M4402,H4015,N,
0000375063,BUXHALL VILLAGE HALL COMMITTEE,"1,638.79",VCSE Resilience,"Equipment, Tools & Materials",02 Jan 2024,2324/10,SME,M2310,H3031,N,
0000375680,BUXHALL VILLAGE HALL COMMITTEE,"10,000.00",Community Fund Projects-Grants,Grants,23 Jan 2024,2324/10,SME,M7115,H3081,N,
0000375746,BUXHALL VILLAGE HALL COMMITTEE,"1,030.26",S106 Open Spaces Expenditure,Grants,24 Jan 2024,2324/10,SME,M7126,H3081,N,
0000375917,CALL POINT FIRE LTD,880.00,Sheltered Accommodation,Fire Prevention,15 Jan 2024,2324/12,SME,M8405,H2048,N,
0000375918,CALL POINT FIRE LTD,590.00,Sheltered Accommodation,Fire Prevention,15 Jan 2024,2324/12,SME,M8403,H2048,N,
0000375919,CALL POINT FIRE LTD,590.00,Sheltered Accommodation,Fire Prevention,15 Jan 2024,2324/12,SME,M8404,H2048,N,
0000375920,CALL POINT FIRE LTD,590.00,Sheltered Accommodation,Fire Prevention,15 Jan 2024,2324/12,SME,M8409,H2048,N,
0000375921,CALL POINT FIRE LTD,720.00,Sheltered Accommodation,Fire Prevention,15 Jan 2024,2324/12,SME,M8401,H2048,N,
0000375922,CALL POINT FIRE LTD,"1,200.00",Sheltered Accommodation,Fire Prevention,15 Jan 2024,2324/12,SME,M8407,H2048,N,
0000375923,CALL POINT FIRE LTD,"2,320.00",Sheltered Accommodation,Fire Prevention,15 Jan 2024,2324/12,SME,M8402,H2048,N,
0000377021,CALL POINT FIRE LTD,"1,300.00",Sheltered Accommodation,Fire Prevention,15 Jan 2024,2324/12,SME,M8410,H2048,N,
0000377023,CALL POINT FIRE LTD,"1,950.00",Sheltered Accommodation,Fire Prevention,15 Jan 2024,2324/12,SME,M8411,H2048,N,
0000377024,CALL POINT FIRE LTD,800.00,Sheltered Accommodation,Fire Prevention,05 Mar 2024,2324/12,SME,M8406,H2048,N,
0000377025,CALL POINT FIRE LTD,720.00,Sheltered Accommodation,Fire Prevention,05 Mar 2024,2324/12,SME,M8408,H2048,N,
0000375451,CARD PROCESSING ADVISORY SERVICE LTD,"1,196.78",Bank Chgs,Contracted Services,28 Nov 2023,2324/10,SME,M6102,H3042,N,
0000377140,CATCH22,"13,060.00",Community Safety-General,Contributions & Donations,07 Mar 2024,2324/12,LGE,M2302,H3082,Y,50%
0000375663,CEDARS HOTEL LTD,"43,402.00",Homelessness Private Sector,B&B Costs,22 Jan 2024,2324/11,SME,M1401,A3050,Y,50%
0000377377,CEDARS HOTEL LTD,"1,026.00",Homelessness Private Sector,B&B Costs,14 Mar 2024,2324/12,SME,M1401,H3050,Y,50%
0000377510,CEDARS PARK COMMUNITY CENTRE,550.80,Grants & Contrbns,Contributions & Donations,18 Mar 2024,2324/12,SME,M2107,H3082,N,
0000377226,CHAPTER 82,"2,350.00",Grants & Contrbns,Grants,11 Mar 2024,2324/12,SME,M2107,H3081,N,
0000376410,CHARTERED INSTITUTE OF HOUSING,620.00,Homelessness Private Sector,Training,13 Feb 2024,2324/11,LGE,M1401,A1043,Y,50%
0000376997,CHARTERED INSTITUTE OF HOUSING,"1,975.00",Organisational Devt,Training,05 Mar 2024,2324/12,LGE,M5100,H1043,Y,50%
0000377026,CHARTERED INSTITUTE OF HOUSING,"1,975.00",Organisational Devt,Training,05 Mar 2024,2324/12,LGE,M5100,H1043,Y,50%
0000375105,CHIPSIDE LTD,"1,224.00",C Parks General,Contracted Services,31 Dec 2023,2324/11,SME,M4410,H3042,N,
0000376161,CHIPSIDE LTD,"1,070.00",C Parks General,Contracted Services,31 Jan 2024,2324/11,SME,M4410,H3042,N,
0000377031,CHIPSIDE LTD,"1,113.17",C Parks General,Contracted Services,29 Feb 2024,2324/12,SME,M4410,H3042,N,
0000377185,CHRIS GROSE TRAINING & CONSULTANCY,"4,500.00",Tenants Forum,Prof & Consultancy Fees,08 Mar 2024,2324/12,SME,M8701,H3041,Y,50%
0000375026,CHUBB - PENDANT & LANYARD ONLY,861.80,Sheltered Accommodation,"Equipment, Tools & Materials",18 Dec 2023,2324/11,LGE,M8411,H3031,N,
0000376995,CIPFA BUSINESS LTD,"4,260.00",Financial Servs,Books & Periodicals,28 Feb 2024,2324/12,LGE,M6100,H3021,Y,50%
0000377556,CIRRUS RESEARCH PLC,575.00,Environmental Protection,Contracted Services,20 Mar 2024,2324/12,SME,M4301,A3042,Y,
0000376404,CITIZENLAB NV,"9,200.00",PP&I,Contracted Services,11 Jan 2024,2324/11,SME,M5200,A3042,Y,50%
0000375491,CIVICA ELECTION SERVICES,"2,965.05",Electoral Registration,Returning Officer Fees,12 Jan 2024,2324/10,LGE,M5301,H3093,N,
0000377576,CIVICA ELECTION SERVICES,"4,986.93",Electoral Registration,Returning Officer Fees,20 Mar 2024,2324/12,LGE,M5301,H3093,N,
0000375266,CLARION HOUSING ASSOCIATION LTD,"2,500.00",Household Support Grant,Misc Supplies & Services Costs,09 Jan 2024,2324/10,LGE,M1418,H3106,N,
0000423753,CLAYDON & WHITTON PARISH COUNCIL,"1,354.60",Street & Major Road Cleansing,Contributions to other Bodies,06 Feb 2024,2324/11,SME,M4402,H3083,N,
0000375916,CLAYDON FOOTBALL CLUB,"24,648.00",S106 Open Spaces Expenditure,Grants,30 Jan 2024,2324/11,SME,M7126,H3081,N,
0000377519,CLAYDON FOOTBALL CLUB,"20,550.00",S106 Open Spaces Expenditure,Grants,18 Mar 2024,2324/12,SME,M7126,H3081,N,
0000376730,CODDENHAM COMMUNITY GROUP,"1,202.00",Grants & Contrbns,Contributions & Donations,27 Feb 2024,2324/11,SME,M2107,H3082,N,
0000375968,COLCHESTER AMPHORA ENERGY LTD,"4,355.00",Heat Network,Prof & Consultancy Fees,31 Jan 2024,2324/11,SME,M4309,H3041,N,
0000377096,COMMUNITIES TOGETHER EAST ANGLIA,"1,515.00",Grants & Contrbns,Contributions & Donations,07 Mar 2024,2324/12,SME,M2107,H3082,N,
0000423703,COMPUTERSHARE ,627.00,Current Assets,ChildCare Vouchers-Control,28 Dec 2023,2324/10,LGE,M9002,ZG006,N,
0000423743,COMPUTERSHARE ,627.00,Current Assets,ChildCare Vouchers-Control,29 Jan 2024,2324/11,LGE,M9002,ZG006,N,
0000423794,COMPUTERSHARE ,507.00,Current Assets,ChildCare Vouchers-Control,27 Feb 2024,2324/12,LGE,M9002,ZG006,N,
0000376418,CONCERTUS DESIGN & PROPERTY CONSULTANTS,"1,402.63",Public Conveniences,Repairs,31 Jan 2024,2324/11,SME,M4401,H2010,N,
0000374189,CORNERSTONE BARRISTERS,"2,000.00",Devt Management - Apps,Legal Expenses,29 Nov 2023,2324/10,SME,M3101,H3047,N,
0000375023,CORNERSTONE BARRISTERS,"4,000.00",Devt Management - Appeals,Legal Expenses,19 Dec 2023,2324/10,SME,M3102,H3047,N,
0000376026,CORNERSTONE BARRISTERS,"30,000.00",Devt Management - Appeals,Legal ex-Crt challenge related,02 Feb 2024,2324/11,SME,M3102,A3160,Y,100%
0000376027,CORNERSTONE BARRISTERS,"9,000.00",Devt Management - Appeals,Legal ex - Crt challenge relat,02 Feb 2024,2324/11,SME,M3102,H3160,N,
0000376998,CORNERSTONE BARRISTERS,"1,000.00",Devt Management - Appeals,Legal ex - Appeal related,01 Mar 2024,2324/12,SME,M3102,H3159,N,
0000377060,CORNERSTONE BARRISTERS,"1,250.00",Devt Management - Apps,Legal Expenses,16 Feb 2024,2324/12,SME,M3101,H3047,N,
0000377190,CORNERSTONE BARRISTERS,"2,500.00",Cost of Democracy,Prof & Consultancy Fees,08 Mar 2024,2324/12,SME,M5701,H3041,N,
0000375474,COTTON VILLAGE HALL,"5,368.80",Community Fund Projects-Grants,Grants,15 Jan 2024,2324/10,SME,M7115,H3081,N,
0000375249,COUNTRYSTYLE RECYCLING LTD,"4,888.40",Bring Sites,Contracted Services,31 Dec 2023,2324/10,SME,M4504,H3042,N,
0000376112,COUNTRYSTYLE RECYCLING LTD,"5,871.15",Bring Sites,Contracted Services,31 Jan 2024,2324/11,SME,M4504,H3042,N,
0000377090,COUNTRYSTYLE RECYCLING LTD,"4,612.42",Bring Sites,Contracted Services,29 Feb 2024,2324/12,SME,M4504,H3042,N,
0000375453,CREDITSAFE BUSINESS SOLUTIONS LTD,550.00,Commissioning & Procurement,Subscriptions,24 Oct 2023,2324/10,SME,M6500,H3054,Y,50%
0000375861,CROWFIELD PARISH COUNCIL,"2,500.00",Grants & Contrbns,Contributions & Donations,29 Jan 2024,2324/10,SME,M2107,H3082,N,
0000377761,CROWFIELD PARISH COUNCIL,"12,449.22",S106 Open Spaces Expenditure,Grants,26 Mar 2024,2324/12,SME,M7126,H3081,N,
0000377835,CROWFIELD PARISH COUNCIL,"18,058.87",CIL Funded REFCUS,Grants,26 Mar 2024,2324/12,SME,M7161,H3081,N,
0000375405,D W ADAMS LTD,"1,916.00",Voids Maintenance,Repairs,12 Jan 2024,2324/11,SME,M8105,H2010,N,
0000375807,D W ADAMS LTD,"3,885.00",Building Services,Repairs,26 Jan 2024,2324/10,SME,M8199,H2010,N,
0000377007,D W ADAMS LTD,557.00,Building Services,Repairs,04 Mar 2024,2324/12,SME,M8199,H2010,N,
0000377065,D W ADAMS LTD,545.00,Building Services,Repairs,05 Mar 2024,2324/12,SME,M8199,H2010,N,
0000375493,DDS (INTERNATIONAL) LTD,"3,093.32",Sheltered Accommodation,Fire Prevention,16 Jan 2024,2324/10,SME,M8426,H2048,N,
0000375661,DDS (INTERNATIONAL) LTD,"1,112.37",Tenancy Services,Fire Prevention,18 Jan 2024,2324/11,SME,M8500,H2048,N,
0000377507,DDS (INTERNATIONAL) LTD,700.59,Tenancy Services,Fire Prevention,14 Mar 2024,2324/12,SME,M8500,H2048,N,
0000376890,DEBENHAM FIRST RESPONDERS,"2,094.00",Grants & Contrbns,Contributions & Donations,01 Mar 2024,2324/12,SME,M2107,H3082,N,
0000423754,DEBENHAM PARISH COUNCIL,"2,404.42",Street & Major Road Cleansing,Contributions to other Bodies,06 Feb 2024,2324/11,SME,M4402,H3083,N,
0000377028,DEBENHAM VILLAGE HALL & PLAYING FIELD TR,"2,594.38",Community Fund Projects-Grants,Grants,05 Mar 2024,2324/12,SME,M7115,H3081,N,
0000377094,DEBENHAM VILLAGE HALL & PLAYING FIELD TR,"5,482.25",S106 Open Spaces Expenditure,Grants,06 Mar 2024,2324/12,SME,M7126,H3081,N,
0000377245,DEBENHAM VILLAGE HALL & PLAYING FIELD TR,"15,971.96",Policy & Strategy (H & W),Contributions & Donations,08 Mar 2024,2324/12,SME,M2202,H3082,N,
0000423816,DEBENHAM VILLAGE HALL & PLAYING FIELD TR,798.91,Bring Sites,Contributions & Donations,19 Mar 2024,2324/12,SME,M4504,H3082,N,
0000375761,DEF SOFTWARE LTD,"7,440.00",Devt Policy & Local Plans,Line of Business Applications,24 Jan 2024,2324/10,SME,M3401,A3003,Y,50%
0000375762,DEF SOFTWARE LTD,"17,525.00",Devt Policy & Local Plans,Software Licnse (Line of Bus) ,24 Jan 2024,2324/11,SME,M3401,H3003,Y,50%
0000377599,DELTA SIMONS LTD,"4,100.00",Paddock House Eye,Prof & Consultancy Fees,01 Feb 2024,2324/12,SME,M7686,H3041,N,
0000377384,DEMOCRACY COUNTS LTD,"10,000.00",Electoral Registration,Returning Officer Fees,31 Dec 2023,2324/12,SME,M5301,H3093,N,
0000377385,DEMOCRACY COUNTS LTD,"5,750.00",Electoral Registration,Returning Officer Fees,30 Nov 2023,2324/12,SME,M5301,H3093,N,
0000377386,DEMOCRACY COUNTS LTD,"3,350.00",Electoral Registration,Returning Officer Fees,22 Feb 2024,2324/12,SME,M5301,H3093,N,
0000377113,DENHAM COMMUNITY COUNCIL,"1,000.00",Grants & Contrbns,Contributions & Donations,07 Mar 2024,2324/12,SME,M2107,H3082,N,
0000377227,DENHAM COMMUNITY COUNCIL,"2,433.99",Grants & Contrbns,Grants,11 Mar 2024,2324/12,SME,M2107,H3081,N,
0000375083,DGL QUALITY MANAGEMENT LTD,"1,092.00",Stowmarket Middle School,Prof & Consultancy Fees,31 Dec 2023,2324/10,SME,M7696,H3041,N,
0000376119,DGL QUALITY MANAGEMENT LTD,"1,092.00",Stowmarket Middle School,Prof & Consultancy Fees,31 Jan 2024,2324/11,SME,M7696,H3041,N,
0000376838,DGL QUALITY MANAGEMENT LTD,"1,092.00",Stowmarket Middle School,Prof & Consultancy Fees,29 Feb 2024,2324/12,SME,M7696,H3041,N,
0000375091,DOLPHIN STAIRLIFTS (EAST ANGLIA) LTD,"5,684.00",Mand Disabled Facilities Grant,Grants,02 Jan 2024,2324/10,SME,M7001,H3081,N,
0000375883,DOLPHIN STAIRLIFTS (EAST ANGLIA) LTD,"5,687.00",Mand Disabled Facilities Grant,Grants,30 Jan 2024,2324/10,SME,M7001,H3081,N,
0000377812,DOT TO DOT TECHNICAL LTD,750.00,Community Safety-General,Training,26 Mar 2024,2324/12,SME,M2302,H1043,Y,50%
0000377762,DRISCOLL KINGSTON SOLICITORS,"5,500.00",Building Services,Payments to Tenants,26 Mar 2024,2324/12,SME,M8199,H7021,N,
0000377518,E.ON NEXT,800.86,Tenancy Services,Electricity,08 Mar 2024,2324/12,LGE,M8500,H2031,N,
0000375885,EAST ANGLIA CLEANING SERVICES LTD,"1,604.54",Jnt Waste Contract,General Cleaning,30 Jan 2024,2324/10,SME,M4501,H2011,Y,50%
0000376693,EAST ANGLIA CLEANING SERVICES LTD,"1,604.54",Jnt Waste Contract,General Cleaning,26 Feb 2024,2324/11,SME,M4501,A2011,Y,50%
0000377837,EAST ANGLIA CLEANING SERVICES LTD,"1,604.54",Jnt Waste Contract,General Cleaning,27 Mar 2024,2324/12,SME,M4501,H2011,Y,50%
0000375438,EAST OF ENGLAND AMBULANCE SERVICE NHS TR,"5,250.00",Grants & Contrbns,Contributions & Donations,12 Jan 2024,2324/10,SME,M2107,H3082,N,
0000375849,EAST OF ENGLAND CO-OPERATIVE SOCIETY LTD,"1,495.00",Publice Health Funerals,Contracted Services,29 Nov 2023,2324/10,LGE,M1306,H3042,N,
0000375850,EAST OF ENGLAND CO-OPERATIVE SOCIETY LTD,"1,495.00",Publice Health Funerals,Contracted Services,29 Nov 2023,2324/10,LGE,M1306,H3042,N,
0000377739,EAST OF ENGLAND CO-OPERATIVE SOCIETY LTD,"1,495.00",Publice Health Funerals,Contracted Services,08 Feb 2024,2324/12,LGE,M1306,H3042,N,
0000376181,EAST OF ENGLAND LGA,"1,500.00",Commissioning & Procurement,Prof & Consultancy Fees,05 Feb 2024,2324/11,SME,M6500,A3041,Y,50%
0000376732,EAST OF ENGLAND LGA,"4,125.00",Organisational Devt,Professional Subs (Staff),26 Feb 2024,2324/12,SME,M5100,H1042,Y,50%
0000375221,EAST SUFFOLK COUNCIL,"12,967.88",Shared Prosperity Fund,Prof & Consultancy Fees,04 Jan 2024,2324/10,LGE,M3566,H3041,N,
0000375662,EAST SUFFOLK COUNCIL,"15,000.00",Community Wellbeing,Contributions & Donations,22 Jan 2024,2324/10,LGE,M2308,H3082,N,
0000375668,EAST SUFFOLK COUNCIL,"5,027.96",Bldg Regs Chargeable Serv,Subscriptions,22 Jan 2024,2324/10,LGE,M3301,H3054,N,
0000377270,EAST SUFFOLK COUNCIL,"12,967.88",Shared Prosperity Fund,Prof & Consultancy Fees,12 Mar 2024,2324/12,LGE,M3566,H3041,N,
0000373718,EASTEC UK LTD,"2,790.00",Open Spaces,Training,10 Nov 2023,2324/10,SME,M4404,H1043,N,
0000375118,EASTEC UK LTD,"1,335.00",Open Spaces,Training,03 Jan 2024,2324/10,SME,M4404,H1043,N,
0000376412,ECOLYTIK LTD,"3,012.00",Devt Management - Apps,Environmental  Consultancy,14 Feb 2024,2324/11,SME,M3101,H3156,N,
0000376963,ECOLYTIK LTD,"2,065.00",Devt Management - Apps,Environmental  Consultancy,04 Mar 2024,2324/12,SME,M3101,H3156,N,
0000375227,ECOSYSTEMS TREE & GROUNDS CARE,"1,885.60",Public Tree Programme,Tree felling/maintenance,07 Jan 2024,2324/10,SME,M4405,H2004,N,
0000423732,EDF ENERGY,798.93,C Parks General,Electricity,15 Jan 2024,2324/10,LGE,M4410,H2031,N,
0000423732,EDF ENERGY,"1,703.36",Climate Change and Sustainabil,Electricity,15 Jan 2024,2324/10,LGE,M4306,H2031,N,
0000423732,EDF ENERGY,"1,043.43",Creeting Rd Depot,Electricity,15 Jan 2024,2324/10,LGE,M1103,A2031,Y,50%
0000423732,EDF ENERGY,241.89,Headquarters General,Electricity,15 Jan 2024,2324/10,LGE,M1102,H2031,N,
0000423732,EDF ENERGY,"126,678.21",Leisure Contract,Electricity,15 Jan 2024,2324/10,LGE,M2203,H2031,N,
0000423732,EDF ENERGY,142.47,Needham Market Middle School,Electricity,15 Jan 2024,2324/10,LGE,M6410,H2031,N,
0000423732,EDF ENERGY,207.10,Open Spaces,Electricity,15 Jan 2024,2324/10,LGE,M4404,H2031,N,
0000423732,EDF ENERGY,31.23,Other HRA Temp Accommodation,Electricity,15 Jan 2024,2324/10,LGE,M8499,H2031,N,
0000423732,EDF ENERGY,577.25,Public Conveniences,Electricity,15 Jan 2024,2324/10,LGE,M4401,H2031,N,
0000423732,EDF ENERGY,202.67,Pure Gym & Adjacent Building,Electricity,15 Jan 2024,2324/10,LGE,M6427,H2031,N,
0000423732,EDF ENERGY,66.98,Recycling Centre,Electricity,15 Jan 2024,2324/10,LGE,M4508,H2031,N,
0000423732,EDF ENERGY,839.99,Sewage Treatment Works,Electricity,15 Jan 2024,2324/10,LGE,M8115,H2031,N,
0000423732,EDF ENERGY,"20,766.07",Sheltered Accommodation,Electricity,15 Jan 2024,2324/10,LGE,M8420,H2031,N,
0000423732,EDF ENERGY,181.24,Tacon Close Eye TDP,Electricity,15 Jan 2024,2324/10,LGE,M8804,H2031,N,
0000423732,EDF ENERGY,734.95,Temporary Accommodation,Electricity,15 Jan 2024,2324/10,LGE,M8498,H2031,N,
0000423732,EDF ENERGY,"2,853.47",Tenancy Services,Electricity,15 Jan 2024,2324/10,LGE,M8500,H2031,N,
0000423732,EDF ENERGY,"2,885.99",Wingfield Barns,Electricity,15 Jan 2024,2324/10,LGE,M2102,H2031,N,
0000423784,EDF ENERGY,813.88,C Parks General,Electricity,15 Feb 2024,2324/11,LGE,M4410,H2031,N,
0000423784,EDF ENERGY,"1,445.21",Climate Change and Sustainabil,Electricity,15 Feb 2024,2324/11,LGE,M4306,H2031,N,
0000423784,EDF ENERGY,"1,197.85",Creeting Rd Depot,Electricity,15 Feb 2024,2324/11,LGE,M1103,A2031,Y,50%
0000423784,EDF ENERGY,199.76,Headquarters General,Electricity,15 Feb 2024,2324/11,LGE,M1102,H2031,N,
0000423784,EDF ENERGY,"35,212.83",Leisure Contract,Electricity,15 Feb 2024,2324/11,LGE,M2203,H2031,N,
0000423784,EDF ENERGY,149.85,Needham Market Middle School,Electricity,15 Feb 2024,2324/11,LGE,M6410,H2031,N,
0000423784,EDF ENERGY,519.06,Open Spaces,Electricity,15 Feb 2024,2324/11,LGE,M4404,H2031,N,
0000423784,EDF ENERGY,30.06,Other HRA Temp Accommodation,Electricity,15 Feb 2024,2324/11,LGE,M8499,H2031,N,
0000423784,EDF ENERGY,353.51,Public Conveniences,Electricity,15 Feb 2024,2324/11,LGE,M4401,H2031,N,
0000423784,EDF ENERGY,223.48,Pure Gym & Adjacent Building,Electricity,15 Feb 2024,2324/11,LGE,M6427,H2031,N,
0000423784,EDF ENERGY,47.75,Recycling Centre,Electricity,15 Feb 2024,2324/11,LGE,M4508,H2031,N,
0000423784,EDF ENERGY,609.57,Sewage Treatment Works,Electricity,15 Feb 2024,2324/11,LGE,M8115,H2031,N,
0000423784,EDF ENERGY,"24,190.38",Sheltered Accommodation,Electricity,15 Feb 2024,2324/11,LGE,M8420,H2031,N,
0000423784,EDF ENERGY,367.67,Tacon Close Eye TDP,Electricity,15 Feb 2024,2324/11,LGE,M8804,H2031,N,
0000423784,EDF ENERGY,205.43,Temporary Accommodation,Electricity,15 Feb 2024,2324/11,LGE,M8498,H2031,N,
0000423784,EDF ENERGY,567.39,Temporary Accommodation,Electricity,15 Feb 2024,2324/11,LGE,M1409,H2031,N,
0000423784,EDF ENERGY,"2,881.47",Tenancy Services,Electricity,15 Feb 2024,2324/11,LGE,M8500,H2031,N,
0000423784,EDF ENERGY,"2,257.96",Wingfield Barns,Electricity,15 Feb 2024,2324/11,LGE,M2102,H2031,N,
0000423893,EDF ENERGY,70.18,"11 Market Place, Stowmarket",Electricity,15 Mar 2024,2324/12,LGE,M6420,H2031,N,
0000423893,EDF ENERGY,"-1,243.73",C Parks General,Electricity,15 Mar 2024,2324/12,LGE,M4410,H2031,N,
0000423893,EDF ENERGY,"1,183.15",Climate Change and Sustainabil,Electricity,15 Mar 2024,2324/12,LGE,M4306,H2031,N,
0000423893,EDF ENERGY,"1,037.23",Creeting Rd Depot,Electricity,15 Mar 2024,2324/12,LGE,M1103,A2031,Y,50%
0000423893,EDF ENERGY,131.45,Headquarters General,Electricity,15 Mar 2024,2324/12,LGE,M1102,H2031,N,
0000423893,EDF ENERGY,"29,538.69",Leisure Contract,Electricity,15 Mar 2024,2324/12,LGE,M2203,H2031,N,
0000423893,EDF ENERGY,139.55,Needham Market Middle School,Electricity,15 Mar 2024,2324/12,LGE,M6410,H2031,N,
0000423893,EDF ENERGY,169.89,Open Spaces,Electricity,15 Mar 2024,2324/12,LGE,M4404,H2031,N,
0000423893,EDF ENERGY,28.82,Other HRA Temp Accommodation,Electricity,15 Mar 2024,2324/12,LGE,M8499,H2031,N,
0000423893,EDF ENERGY,"1,331.88",Public Conveniences,Electricity,15 Mar 2024,2324/12,LGE,M4401,H2031,N,
0000423893,EDF ENERGY,164.83,Pure Gym & Adjacent Building,Electricity,15 Mar 2024,2324/12,LGE,M6427,H2031,N,
0000423893,EDF ENERGY,40.20,Recycling Centre,Electricity,15 Mar 2024,2324/12,LGE,M4508,H2031,N,
0000423893,EDF ENERGY,533.06,Sewage Treatment Works,Electricity,15 Mar 2024,2324/12,LGE,M8115,H2031,N,
0000423893,EDF ENERGY,"20,456.31",Sheltered Accommodation,Electricity,15 Mar 2024,2324/12,LGE,M8420,H2031,N,
0000423893,EDF ENERGY,366.05,Tacon Close Eye TDP,Electricity,15 Mar 2024,2324/12,LGE,M8804,H2031,N,
0000423893,EDF ENERGY,665.72,Temporary Accommodation,Electricity,15 Mar 2024,2324/12,LGE,M8498,H2031,N,
0000423893,EDF ENERGY,"3,055.63",Tenancy Services,Electricity,15 Mar 2024,2324/12,LGE,M8500,H2031,N,
0000423893,EDF ENERGY,"2,071.17",Wingfield Barns,Electricity,15 Mar 2024,2324/12,LGE,M2102,H2031,N,
0000375214,PRIVATE LANDLORD,620.00,Guaranteed Rent Scheme,Rent Payable,08 Jan 2024,2324/10,ST,M1414,H2023,N,
0000376110,PRIVATE LANDLORD,620.00,Guaranteed Rent Scheme,Rent Payable,05 Feb 2024,2324/11,ST,M1414,H2023,N,
0000376947,PRIVATE LANDLORD,620.00,Guaranteed Rent Scheme,Rent Payable,04 Mar 2024,2324/12,ST,M1414,H2023,N,
0000375514,ELLISONS SOLICITORS,"5,534.00",Assets & Development,Prof & Consultancy Fees,16 Jan 2024,2324/10,SME,M6400,H3041,N,
0000375307,ELMHURST ENERGY SYSTEMS LTD,"1,484.00",Bldg Regs Chargeable Serv,Training,27 Nov 2023,2324/10,SME,M3301,A1043,Y,50%
0000375308,ELMSWELL BAPTIST CHURCH,"2,000.00",Grants & Contrbns,Contributions & Donations,10 Jan 2024,2324/10,SME,M2107,H3082,N,
0000375115,ELMSWELL FOX BOWLS CLUB,925.50,Grants & Contrbns,Contributions & Donations,03 Jan 2024,2324/10,SME,M2107,H3082,N,
0000423891,ELMSWELL PARISH COUNCIL,754.89,Bring Sites,Contributions & Donations,19 Mar 2024,2324/12,SME,M4504,H3082,N,
0000377659,EMBRIDGE CONSULTING (UK) LTD,"6,000.00",Financial Servs,Agency Staff,31 Dec 2023,2324/12,SME,M6100,H1031,Y,50%
0000377661,EMBRIDGE CONSULTING (UK) LTD,"19,600.00",Financial Servs,Agency Staff,31 Jan 2024,2324/12,SME,M6100,H1031,Y,50%
0000377662,EMBRIDGE CONSULTING (UK) LTD,"20,200.00",Financial Servs,Agency Staff,29 Feb 2024,2324/12,SME,M6100,H1031,Y,50%
0000375239,ENGLISH SECURITY,525.36,Fire Risk Assessment (Flats),Repairs,12 Oct 2023,2324/10,SME,M7635,H2010,N,
0000376001,ENGLISH SECURITY,"14,710.14",Smoke Alarms (Bbgh Standard),Repairs,30 Jan 2024,2324/12,SME,M7615,H2010,N,
0000376273,ENGLISH SECURITY,"1,170.18",Fire Risk Assessment (Flats),Fire Prevention,09 Feb 2024,2324/11,SME,M7635,H2048,N,
0000376724,ENGLISH SECURITY,773.08,Sheltered Accommodation,Fire Prevention,26 Feb 2024,2324/11,SME,M8410,H2048,N,
0000377312,ENGLISH SECURITY,"4,727.36",Smoke Alarms (Bbgh Standard),Repairs,12 Mar 2024,2324/12,SME,M7615,H2010,N,
0000377317,ENGLISH SECURITY,545.99,Sheltered Accommodation,Fire Prevention,12 Mar 2024,2324/12,SME,M8406,H2048,N,
0000377321,ENGLISH SECURITY,592.29,Sheltered Accommodation,Fire Prevention,13 Mar 2024,2324/12,SME,M8405,H2048,N,
0000377398,ENGLISH SECURITY,"1,570.70",Sheltered Accommodation,Fire Prevention,14 Mar 2024,2324/12,SME,M8406,H2048,N,
0000377399,ENGLISH SECURITY,574.01,Sheltered Accommodation,Fire Prevention,14 Mar 2024,2324/12,SME,M8411,H2048,N,
0000377453,ENGLISH SECURITY,561.10,Sheltered Accommodation,Fire Prevention,15 Mar 2024,2324/12,SME,M8405,H2048,N,
0000377583,ENGLISH SECURITY,"15,775.26",Cedars Park,Fire Prevention,20 Mar 2024,2324/12,SME,M6413,H2048,N,
0000376054,ENSORS,"2,410.00",BMS Invest,Audit Fees,31 Jan 2024,2324/11,SME,M6601,H3045,N,
0000377744,ENVIRONMENTAL HEALTH RESOURCE CENTRE LTD,"2,012.00",Environmental Protection,Contracted Services,22 Mar 2024,2324/12,SME,M4301,H3042,N,
0000375199,ERNEST DOE & SONS LTD,"1,537.50",Open Spaces,"Equipment, Tools & Materials",02 Jan 2024,2324/10,LGE,M4404,H3031,N,
0000376132,ERNEST DOE & SONS LTD,848.00,Open Spaces,"Equipment, Tools & Materials",19 Jan 2024,2324/12,LGE,M4404,H3031,N,
0000376157,ERNEST DOE & SONS LTD,"1,709.00",Open Spaces,"Equipment, Tools & Materials",05 Feb 2024,2324/12,LGE,M4404,H3031,N,
0000376321,ERNST & YOUNG LLP,"11,000.00",Ext Audit,Audit Fees,18 Oct 2023,2324/11,LGE,M6103,H3045,N,
0000377601,ERNST & YOUNG LLP,"21,800.00",Ext Audit,Audit Fees,19 Mar 2024,2324/12,LGE,M6103,H3045,N,
0000377602,ERNST & YOUNG LLP,"31,300.00",Ext Audit,Audit Fees,19 Mar 2024,2324/12,LGE,M6103,H3045,N,
0000375978,ESSEX AND SUFFOLK WATER,"2,031.75",Sheltered Accommodation,Water Rates - Metered,23 Jan 2024,2324/11,LGE,M8404,H2034,N,
0000376329,ESSEX AND SUFFOLK WATER,539.68,Sheltered Accommodation,Water Rates - Metered,06 Feb 2024,2324/11,LGE,M8405,H2034,N,
0000376639,ESSEX AND SUFFOLK WATER,902.63,Sheltered Accommodation,Water Rates - Metered,16 Feb 2024,2324/11,LGE,M8409,H2034,N,
0000377008,ESSEX AND SUFFOLK WATER,963.75,Sheltered Accommodation,Water Rates - Metered,27 Feb 2024,2324/12,LGE,M8403,H2034,N,
0000376013,ESSEX COUNTY COUNCIL,"6,576.55",Devt Management - Apps,Landscape Consultancy,23 Jan 2024,2324/11,LGE,M3101,H3151,N,
0000376128,ESSEX COUNTY COUNCIL,"8,822.00",Devt Management - Apps,Ecology Consultancy,05 Feb 2024,2324/11,LGE,M3101,H3152,N,
0000377348,ESSEX COUNTY COUNCIL,568.80,Devt Management - Apps,Training,13 Mar 2024,2324/12,LGE,M3101,H1043,Y,50%
0000377825,ESSEX COUNTY COUNCIL,"7,858.00",Devt Management - Apps,Ecology Consultancy,25 Mar 2024,2324/12,LGE,M3101,H3152,N,
0000377826,ESSEX COUNTY COUNCIL,"5,618.00",Devt Management - Apps,Landscape Consultancy,26 Mar 2024,2324/12,LGE,M3101,H3151,N,
0000374743,EVERYONE ACTIVE STOWMARKET,"11,025.00",Community Wellbeing,Contributions & Donations,13 Dec 2023,2324/11,SME,M2308,H3082,N,
0000376771,EVERYONE ACTIVE STOWMARKET,"2,974.75",Community Wellbeing,Contributions & Donations,26 Feb 2024,2324/12,SME,M2308,H3082,N,
0000377018,EVERYONE ACTIVE STOWMARKET,"2,132.75",Community Wellbeing,Contributions & Donations,05 Mar 2024,2324/12,SME,M2308,H3082,N,
0000377019,EVERYONE ACTIVE STOWMARKET,"2,966.63",Community Wellbeing,Contributions & Donations,05 Mar 2024,2324/12,SME,M2308,H3082,N,
0000377020,EVERYONE ACTIVE STOWMARKET,"1,540.40",Holiday Activity Fund,"Equipment, Tools & Materials",05 Mar 2024,2324/12,SME,M2113,H3031,N,
0000375147,EVOLVE WINDOWS/BK PROPERTY CARE,"1,790.00",Regen Fund - HQ Sites,Prof & Consultancy Fees,04 Jan 2024,2324/10,SME,M7297,A3041,Y,100%
0000375148,EVOLVE WINDOWS/BK PROPERTY CARE,"2,842.83",Regen Fund - HQ Sites,Prof & Consultancy Fees,12 Dec 2023,2324/10,SME,M7297,A3041,Y,100%
0000376608,EVOLVE WINDOWS/BK PROPERTY CARE,575.00,Regen Fund - HQ Sites,Prof & Consultancy Fees,16 Feb 2024,2324/11,SME,M7297,A3041,Y,100%
0000423755,EYE TOWN COUNCIL,"2,709.20",Street & Major Road Cleansing,Contributions to other Bodies,06 Feb 2024,2324/11,SME,M4402,H3083,N,
0000377307,EYES OPEN CIC,"1,093.00",Grants & Contrbns,Contributions & Donations,13 Mar 2024,2324/12,SME,M2107,H3082,N,
0000375447,FAMN LTD,"5,000.00",Organisational Devt,Corporate Training,31 Dec 2023,2324/10,SME,M5100,A1045,Y,50%
0000375010,FELGAINS CARE CENTRE,"7,305.00",Mand Disabled Facilities Grant,Grants,29 Dec 2023,2324/10,SME,M7001,H3081,N,
0000375476,FELGAINS CARE CENTRE,573.00,Council House Adaptions,Improvements,15 Jan 2024,2324/10,SME,M7640,H2051,N,
0000374131,FELLBRIDGE BUILDING SERVICES,"2,985.95",Building Services,Repairs,27 Nov 2023,2324/11,SME,M8199,H2010,N,
0000374578,FELLBRIDGE BUILDING SERVICES,"13,410.78",Major Imps,Repairs,14 Dec 2023,2324/10,SME,M7617,H2010,N,
0000374579,FELLBRIDGE BUILDING SERVICES,"13,650.44",Major Imps,Repairs,14 Dec 2023,2324/10,SME,M7617,H2010,N,
0000374767,FELLBRIDGE BUILDING SERVICES,"3,082.27",Voids Maintenance,Repairs,19 Dec 2023,2324/10,SME,M8105,H2010,N,
0000374979,FELLBRIDGE BUILDING SERVICES,"4,063.01",Voids Maintenance,Repairs,22 Dec 2023,2324/10,SME,M8105,H2010,N,
0000374980,FELLBRIDGE BUILDING SERVICES,"4,286.29",Voids Maintenance,Repairs,22 Dec 2023,2324/10,SME,M8105,H2010,N,
0000374981,FELLBRIDGE BUILDING SERVICES,"6,929.97",Voids Maintenance,Repairs,22 Dec 2023,2324/10,SME,M8105,H2010,N,
0000374981,FELLBRIDGE BUILDING SERVICES,"8,239.98",Major Imps,Repairs,22 Dec 2023,2324/10,SME,M7617,H2010,N,
0000375471,FELLBRIDGE BUILDING SERVICES,"1,517.49",Insulation Imps,Repairs,15 Jan 2024,2324/10,SME,M7616,H2010,N,
0000375473,FELLBRIDGE BUILDING SERVICES,"1,529.80",Insulation Imps,Repairs,15 Jan 2024,2324/10,SME,M7616,H2010,N,
0000375627,FELLBRIDGE BUILDING SERVICES,588.72,Building Services,Repairs,22 Jan 2024,2324/10,SME,M8199,H2010,N,
0000375631,FELLBRIDGE BUILDING SERVICES,743.12,Building Services,Repairs,22 Jan 2024,2324/10,SME,M8199,H2010,N,
0000375634,FELLBRIDGE BUILDING SERVICES,"4,287.70",Building Services,Repairs,22 Jan 2024,2324/11,SME,M8199,H2010,N,
0000375771,FELLBRIDGE BUILDING SERVICES,"5,967.55",Voids Maintenance,Repairs,25 Jan 2024,2324/11,SME,M8105,H2010,N,
0000375771,FELLBRIDGE BUILDING SERVICES,"10,651.04",Major Imps,Repairs,25 Jan 2024,2324/11,SME,M7617,H2010,N,
0000375853,FELLBRIDGE BUILDING SERVICES,707.25,Dampness,Repairs,29 Jan 2024,2324/11,SME,M7611,H2010,N,
0000375856,FELLBRIDGE BUILDING SERVICES,"3,910.66",Dampness,Repairs,29 Jan 2024,2324/11,SME,M7611,H2010,N,
0000375857,FELLBRIDGE BUILDING SERVICES,"1,012.52",Dampness,Repairs,29 Jan 2024,2324/11,SME,M7611,H2010,N,
0000375858,FELLBRIDGE BUILDING SERVICES,"1,292.70",Building Services,Repairs,29 Jan 2024,2324/12,SME,M8199,H2010,N,
0000375986,FELLBRIDGE BUILDING SERVICES,504.36,Dampness,Repairs,01 Feb 2024,2324/11,SME,M7611,H2010,N,
0000375987,FELLBRIDGE BUILDING SERVICES,949.28,Dampness,Repairs,01 Feb 2024,2324/11,SME,M7611,H2010,N,
0000375989,FELLBRIDGE BUILDING SERVICES,"6,144.52",Voids Maintenance,Repairs,01 Feb 2024,2324/11,SME,M8105,H2010,N,
0000375989,FELLBRIDGE BUILDING SERVICES,"8,660.25",Major Imps,Repairs,01 Feb 2024,2324/11,SME,M7617,H2010,N,
0000375991,FELLBRIDGE BUILDING SERVICES,651.61,Building Services,Repairs,01 Feb 2024,2324/11,SME,M8199,H2010,N,
0000375992,FELLBRIDGE BUILDING SERVICES,984.26,Dampness,Repairs,01 Feb 2024,2324/11,SME,M7611,H2010,N,
0000376186,FELLBRIDGE BUILDING SERVICES,"34,072.85",Major Imps,Repairs,07 Feb 2024,2324/11,SME,M7617,H2010,N,
0000376231,FELLBRIDGE BUILDING SERVICES,"2,553.49",Building Services,Repairs,08 Feb 2024,2324/11,SME,M8199,H2010,N,
0000376232,FELLBRIDGE BUILDING SERVICES,"1,020.88",Dampness,Repairs,08 Feb 2024,2324/12,SME,M7611,H2010,N,
0000376234,FELLBRIDGE BUILDING SERVICES,"1,477.05",Dampness,Repairs,08 Feb 2024,2324/12,SME,M7611,H2010,N,
0000376237,FELLBRIDGE BUILDING SERVICES,"4,356.46",Building Services,Repairs,08 Feb 2024,2324/12,SME,M8199,H2010,N,
0000376431,FELLBRIDGE BUILDING SERVICES,"1,121.15",Dampness,Repairs,15 Feb 2024,2324/11,SME,M7611,H2010,N,
0000376432,FELLBRIDGE BUILDING SERVICES,807.75,Dampness,Repairs,15 Feb 2024,2324/11,SME,M7611,H2010,N,
0000376435,FELLBRIDGE BUILDING SERVICES,"1,010.90",Dampness,Repairs,15 Feb 2024,2324/11,SME,M7611,H2010,N,
0000376436,FELLBRIDGE BUILDING SERVICES,843.24,Dampness,Repairs,15 Feb 2024,2324/11,SME,M7611,H2010,N,
0000376438,FELLBRIDGE BUILDING SERVICES,"18,228.91",Major Imps,Repairs,15 Feb 2024,2324/11,SME,M7617,H2010,N,
0000376514,FELLBRIDGE BUILDING SERVICES,"4,078.95",Voids Maintenance,Repairs,19 Feb 2024,2324/11,SME,M8105,H2010,N,
0000376517,FELLBRIDGE BUILDING SERVICES,"23,518.57",Major Imps,Repairs,19 Feb 2024,2324/11,SME,M7617,H2010,N,
0000376624,FELLBRIDGE BUILDING SERVICES,"1,167.51",Building Services,Repairs,22 Feb 2024,2324/11,SME,M8199,H2010,N,
0000376625,FELLBRIDGE BUILDING SERVICES,644.40,Building Services,Repairs,22 Feb 2024,2324/11,SME,M8199,H2010,N,
0000376627,FELLBRIDGE BUILDING SERVICES,"2,018.10",Building Services,Repairs,22 Feb 2024,2324/11,SME,M8199,H2010,N,
0000376630,FELLBRIDGE BUILDING SERVICES,"1,051.12",Dampness,Repairs,22 Feb 2024,2324/11,SME,M7611,H2010,N,
0000376632,FELLBRIDGE BUILDING SERVICES,"2,135.25",Dampness,Repairs,22 Feb 2024,2324/11,SME,M7611,H2010,N,
0000376989,FELLBRIDGE BUILDING SERVICES,"5,389.47",Major Imps,Repairs,04 Mar 2024,2324/12,SME,M7617,H2010,N,
0000376989,FELLBRIDGE BUILDING SERVICES,"12,807.04",Voids Maintenance,Repairs,04 Mar 2024,2324/12,SME,M8105,H2010,N,
0000376991,FELLBRIDGE BUILDING SERVICES,"1,044.48",Voids Maintenance,Repairs,04 Mar 2024,2324/12,SME,M8105,H2010,N,
0000377139,FELLBRIDGE BUILDING SERVICES,"1,011.16",Dampness,Repairs,07 Mar 2024,2324/12,SME,M7611,H2010,N,
0000377144,FELLBRIDGE BUILDING SERVICES,"6,541.98",Dampness,Repairs,07 Mar 2024,2324/12,SME,M7611,H2010,N,
0000377498,FELLBRIDGE BUILDING SERVICES,"5,392.75",Major Imps,Repairs,18 Mar 2024,2324/12,SME,M7617,H2010,N,
0000377498,FELLBRIDGE BUILDING SERVICES,"7,623.77",Voids Maintenance,Repairs,18 Mar 2024,2324/12,SME,M8105,H2010,N,
0000377499,FELLBRIDGE BUILDING SERVICES,"4,010.75",Major Imps,Repairs,18 Mar 2024,2324/12,SME,M7617,H2010,N,
0000377499,FELLBRIDGE BUILDING SERVICES,"13,242.63",Voids Maintenance,Repairs,18 Mar 2024,2324/12,SME,M8105,H2010,N,
0000375149,FMG CONSULTING LTD,"3,750.00",SHELF Project,Prof & Consultancy Fees,31 Dec 2023,2324/10,SME,M3563,H3041,N,
0000375983,FORE-MOST GARAGE DOORS LTD,"1,006.00",Neighbourhood Services,Repairs,31 Jan 2024,2324/11,SME,M8505,H2010,N,
0000375983,FORE-MOST GARAGE DOORS LTD,55.00,Tenancy Services,Repairs,31 Jan 2024,2324/11,SME,M8500,H2010,N,
0000375983,FORE-MOST GARAGE DOORS LTD,75.00,Voids Maintenance,Repairs,31 Jan 2024,2324/11,SME,M8105,H2010,N,
0000376827,FORE-MOST GARAGE DOORS LTD,"3,670.30",Neighbourhood Services,Repairs,29 Feb 2024,2324/12,SME,M8505,H2010,N,
0000377855,FORE-MOST GARAGE DOORS LTD,45.00,Tenancy Services,Repairs,31 Mar 2024,2324/12,SME,M8500,H2010,N,
0000377855,FORE-MOST GARAGE DOORS LTD,75.00,Voids Maintenance,Repairs,31 Mar 2024,2324/12,SME,M8105,H2010,N,
0000377855,FORE-MOST GARAGE DOORS LTD,345.00,Neighbourhood Services,Repairs,31 Mar 2024,2324/12,SME,M8505,H2010,N,
0000377855,FORE-MOST GARAGE DOORS LTD,"1,133.10","Garages, Forecourts & Stores",Repairs,31 Mar 2024,2324/12,SME,M7606,H2010,N,
0000374624,FOURWAYS VEHICLE SOLUTIONS LTD,"1,120.00",Building Services,Plant & Vehicle - Other costs,06 Nov 2023,2324/10,SME,M8199,A4015,Y,50%
0000374625,FOURWAYS VEHICLE SOLUTIONS LTD,"1,120.00",Building Services,Plant & Vehicle - Other costs,02 Nov 2023,2324/10,SME,M8199,H4015,Y,50%
0000375241,FOURWAYS VEHICLE SOLUTIONS LTD,644.00,Building Services,Vehicle Hire,16 Nov 2023,2324/10,SME,M8199,A4013,Y,50%
0000375408,FOURWAYS VEHICLE SOLUTIONS LTD,644.00,Building Services,Vehicle Hire,12 Dec 2023,2324/10,SME,M8199,H4013,Y,50%
0000375409,FOURWAYS VEHICLE SOLUTIONS LTD,644.00,Building Services,Vehicle Hire,12 Dec 2023,2324/10,SME,M8199,H4013,Y,50%
0000375410,FOURWAYS VEHICLE SOLUTIONS LTD,663.60,Building Services,Vehicle Hire,12 Dec 2023,2324/10,SME,M8199,H4013,Y,50%
0000375411,FOURWAYS VEHICLE SOLUTIONS LTD,794.00,Building Services,Vehicle Hire,27 Dec 2023,2324/10,SME,M8199,H4013,Y,50%
0000375413,FOURWAYS VEHICLE SOLUTIONS LTD,"1,120.00",Building Services,Vehicle Hire,28 Dec 2023,2324/10,SME,M8199,H4013,Y,50%
0000375741,FOURWAYS VEHICLE SOLUTIONS LTD,644.00,Building Services,Vehicle Hire,20 Apr 2023,2324/10,SME,M8199,H4013,Y,50%
0000375742,FOURWAYS VEHICLE SOLUTIONS LTD,644.00,Building Services,Vehicle Hire,13 Jun 2023,2324/10,SME,M8199,H4013,Y,50%
0000375743,FOURWAYS VEHICLE SOLUTIONS LTD,"1,120.00",Building Services,Vehicle Hire,30 Nov 2023,2324/10,SME,M8199,H4013,Y,50%
0000375893,FOURWAYS VEHICLE SOLUTIONS LTD,644.00,Building Services,Vehicle Hire,28 Nov 2023,2324/11,SME,M8199,H4013,Y,50%
0000375894,FOURWAYS VEHICLE SOLUTIONS LTD,"1,120.00",Building Services,Vehicle Hire,30 Nov 2023,2324/11,SME,M8199,H4013,Y,50%
0000375895,FOURWAYS VEHICLE SOLUTIONS LTD,"1,120.00",Building Services,Vehicle Hire,04 Dec 2023,2324/11,SME,M8199,H4013,Y,50%
0000375896,FOURWAYS VEHICLE SOLUTIONS LTD,644.00,Building Services,Vehicle Hire,09 Jan 2024,2324/11,SME,M8199,H4013,Y,50%
0000375897,FOURWAYS VEHICLE SOLUTIONS LTD,644.00,Building Services,Vehicle Hire,09 Jan 2024,2324/11,SME,M8199,H4013,Y,50%
0000376106,FOURWAYS VEHICLE SOLUTIONS LTD,644.00,Building Services,Vehicle Hire,28 Nov 2023,2324/11,SME,M8199,H4013,Y,50%
0000376405,FOURWAYS VEHICLE SOLUTIONS LTD,663.60,Building Services,Vehicle Hire,31 Jan 2024,2324/11,SME,M8199,H4013,Y,50%
0000376406,FOURWAYS VEHICLE SOLUTIONS LTD,663.60,Building Services,Vehicle Hire,06 Feb 2024,2324/11,SME,M8199,H4013,Y,50%
0000376520,FOURWAYS VEHICLE SOLUTIONS LTD,980.00,Open Spaces,Plant & Vehicle - Other costs,11 Oct 2023,2324/11,SME,M4404,H4015,N,
0000376664,FOURWAYS VEHICLE SOLUTIONS LTD,725.00,Building Services,Vehicle Hire,19 Dec 2023,2324/11,SME,M8199,H4013,Y,50%
0000376665,FOURWAYS VEHICLE SOLUTIONS LTD,"1,120.00",Building Services,Vehicle Hire,10 Oct 2023,2324/11,SME,M8199,H4013,Y,50%
0000376666,FOURWAYS VEHICLE SOLUTIONS LTD,"1,120.00",Building Services,Vehicle Hire,26 Jan 2024,2324/11,SME,M8199,H4013,Y,50%
0000376667,FOURWAYS VEHICLE SOLUTIONS LTD,"1,120.00",Building Services,Vehicle Hire,02 Nov 2023,2324/11,SME,M8199,H4013,Y,50%
0000376668,FOURWAYS VEHICLE SOLUTIONS LTD,"1,120.00",Building Services,Vehicle Hire,09 Oct 2023,2324/11,SME,M8199,H4013,Y,50%
0000376669,FOURWAYS VEHICLE SOLUTIONS LTD,765.00,Building Services,Vehicle Hire,19 Dec 2023,2324/12,SME,M8199,H4013,Y,50%
0000376670,FOURWAYS VEHICLE SOLUTIONS LTD,"1,120.00",Building Services,Vehicle Hire,10 Oct 2023,2324/12,SME,M8199,H4013,Y,50%
0000376784,FOURWAYS VEHICLE SOLUTIONS LTD,663.60,Building Services,Vehicle Hire,19 Feb 2024,2324/12,SME,M8199,H4013,Y,50%
0000377565,FOURWAYS VEHICLE SOLUTIONS LTD,663.60,Building Services,Vehicle Hire,06 Mar 2024,2324/12,SME,M8199,H4013,Y,50%
0000423819,FRAMSDEN PARISH COUNCIL,513.85,Bring Sites,Contributions & Donations,19 Mar 2024,2324/12,SME,M4504,H3082,N,
0000374405,FRANK P MATTHEWS LTD,613.50,Open Spaces,Horticultural Purchases,07 Dec 2023,2324/10,SME,M4404,A3035,Y,100%
0000377101,FRANK P MATTHEWS LTD,"1,018.50",Open Spaces,Horticultural Purchases,06 Mar 2024,2324/12,SME,M4404,H3035,Y,50%
0000377186,FRANK P MATTHEWS LTD,608.00,Open Spaces,Horticultural Purchases,18 Dec 2023,2324/12,SME,M4404,H3035,N,
0000423756,FRESSINGFIELD PARISH COUNCIL,609.57,Street & Major Road Cleansing,Contributions to other Bodies,06 Feb 2024,2324/11,SME,M4402,H3083,N,
0000423773,FRESSINGFIELD PARISH COUNCIL,609.57,Street & Major Road Cleansing,Contributions to other Bodies,06 Feb 2024,2324/11,SME,M4402,H3083,N,
0000375116,FRESSINGFIELD SPORTS & SOCIAL CLUB,"1,500.00",Grants & Contrbns,Contributions & Donations,03 Jan 2024,2324/10,SME,M2107,H3082,N,
0000374525,FRIENDS OF THURSTON PRIMARY SCHOOL,"1,294.00",Grants & Contrbns,Contributions & Donations,11 Dec 2023,2324/10,SME,M2107,H3082,N,
0000375186,G4S CASH SOLUTIONS LTD,"1,373.84",C Parks General,Contracted Services,31 Dec 2023,2324/10,LGE,M4410,H3042,N,
0000376127,G4S CASH SOLUTIONS LTD,"1,837.32",C Parks General,Contracted Services,31 Jan 2024,2324/11,LGE,M4410,H3042,N,
0000377063,G4S CASH SOLUTIONS LTD,"1,807.20",C Parks General,Contracted Services,29 Feb 2024,2324/12,LGE,M4410,H3042,N,
0000375123,GALLAGHER CAR & VAN RENTALS LTD,"1,232.00",Domestic Waste,Refuse Contract,03 Jan 2024,2324/10,LGE,M4503,H6002,N,
0000375165,GALLAGHER CAR & VAN RENTALS LTD,"2,520.00",Domestic Waste,Refuse Contract,04 Jan 2024,2324/10,LGE,M4503,H6002,N,
0000375175,GALLAGHER CAR & VAN RENTALS LTD,"1,316.00",Domestic Waste,Refuse Contract,05 Jan 2024,2324/10,LGE,M4503,H6002,N,
0000375218,GALLAGHER CAR & VAN RENTALS LTD,"2,520.00",Domestic Waste,Refuse Contract,08 Jan 2024,2324/10,LGE,M4503,H6002,N,
0000375513,GALLAGHER CAR & VAN RENTALS LTD,588.00,Domestic Waste,Refuse Contract,16 Jan 2024,2324/10,LGE,M4503,H6002,N,
0000375924,GALLAGHER CAR & VAN RENTALS LTD,"1,232.00",Domestic Waste,Refuse Contract,31 Jan 2024,2324/11,LGE,M4503,H6002,N,
0000376000,GALLAGHER CAR & VAN RENTALS LTD,"2,520.00",Domestic Waste,Refuse Contract,01 Feb 2024,2324/11,LGE,M4503,H6002,N,
0000376017,GALLAGHER CAR & VAN RENTALS LTD,"1,316.00",Domestic Waste,Refuse Contract,02 Feb 2024,2324/11,LGE,M4503,H6002,N,
0000376250,GALLAGHER CAR & VAN RENTALS LTD,"1,156.00",Domestic Waste,Refuse Contract,08 Feb 2024,2324/11,LGE,M4503,H6002,N,
0000376351,GALLAGHER CAR & VAN RENTALS LTD,588.00,Domestic Waste,Refuse Contract,13 Feb 2024,2324/11,LGE,M4503,H6002,N,
0000376752,GALLAGHER CAR & VAN RENTALS LTD,"1,750.00",Domestic Waste,Refuse Contract,28 Feb 2024,2324/12,LGE,M4503,H6002,N,
0000376850,GALLAGHER CAR & VAN RENTALS LTD,"1,316.00",Domestic Waste,Refuse Contract,01 Mar 2024,2324/12,LGE,M4503,H6002,N,
0000376964,GALLAGHER CAR & VAN RENTALS LTD,"2,520.00",Domestic Waste,Refuse Contract,04 Mar 2024,2324/12,LGE,M4503,H6002,N,
0000377299,GALLAGHER CAR & VAN RENTALS LTD,588.00,Domestic Waste,Refuse Contract,12 Mar 2024,2324/12,LGE,M4503,H6002,N,
0000377851,GALLAGHER CAR & VAN RENTALS LTD,"1,232.00",Domestic Waste,Refuse Contract,27 Mar 2024,2324/12,LGE,M4503,H6002,N,
0000375260,PRIVATE LANDLORD,690.00,Guaranteed Rent Scheme,Rent Payable,09 Jan 2024,2324/10,ST,M1414,H2023,N,
0000376318,PRIVATE LANDLORD,690.00,Guaranteed Rent Scheme,Rent Payable,12 Feb 2024,2324/11,ST,M1414,H2023,N,
0000377206,PRIVATE LANDLORD,690.00,Guaranteed Rent Scheme,Rent Payable,11 Mar 2024,2324/12,ST,M1414,H2023,N,
0000375533,GB ADAPTIONS LTD,"6,383.00",Mand Disabled Facilities Grant,Grants,17 Jan 2024,2324/10,SME,M7001,H3081,N,
0000375600,GB ADAPTIONS LTD,995.00,Mand Disabled Facilities Grant,Grants,19 Jan 2024,2324/10,SME,M7001,H3081,N,
0000375731,GB ADAPTIONS LTD,"6,533.00",Mand Disabled Facilities Grant,Grants,24 Jan 2024,2324/10,SME,M7001,H3081,N,
0000377256,GB ADAPTIONS LTD,"5,709.00",Mand Disabled Facilities Grant,Grants,12 Mar 2024,2324/12,SME,M7001,H3081,N,
0000374607,GHB ROOFING,"1,380.00",Roofing,Repairs,09 Oct 2023,2324/10,SME,M7602,H2010,N,
0000374609,GHB ROOFING,"1,105.00",Building Services,Repairs,09 Oct 2023,2324/10,SME,M8199,H2010,N,
0000374678,GHB ROOFING,"21,392.10",Roofing,Repairs,30 Nov 2023,2324/10,SME,M7602,H2010,N,
0000374679,GHB ROOFING,"60,284.25",Roofing,Repairs,30 Oct 2023,2324/10,SME,M7602,H2010,N,
0000374680,GHB ROOFING,"10,491.20",Roofing,Repairs,30 Oct 2023,2324/10,SME,M7602,H2010,N,
0000376686,GHB ROOFING,785.00,Roofing,Repairs,23 Feb 2024,2324/11,SME,M7602,H2010,N,
0000376762,GHB ROOFING,"58,508.23",Roofing,Repairs,31 Jan 2024,2324/12,SME,M7602,H2010,N,
0000374649,GIPPING CONSTRUCTION LTD,"5,881.34",Needham Market Middle School,Prof & Consultancy Fees,28 Nov 2023,2324/10,SME,M7685,H3041,N,
0000375488,GIPPING OCCUPATIONAL HEALTH LTD,860.00,Organisational Devt,Contracted Services,12 Jan 2024,2324/11,SME,M5100,H3042,Y,50%
0000376315,GIPPING VALLEY BOWLS CLUB,"10,000.00",S106 Open Spaces Expenditure,Grants,12 Feb 2024,2324/11,SME,M7126,H3081,N,
0000376831,GISLINGHAM PARISH COUNCIL,"2,731.25",Grants & Contrbns,Contributions & Donations,29 Feb 2024,2324/12,SME,M2107,H3082,N,
0000375403,GISLINGHAM VARIETY CLUB,"2,109.00",Grants & Contrbns,Contributions & Donations,12 Jan 2024,2324/10,SME,M2107,H3082,N,
0000423702,GPC BARCLAYS,"10,997.80",Current Assets,Barclaycard Control,14 Dec 2023,2324/10,LGE,M9002,ZL086,Y,12%
0000423711,GPC BARCLAYS,"7,537.57",Current Assets,Barclaycard Control,14 Jan 2024,2324/10,LGE,M9002,ZL086,Y,9%
0000423791,GPC BARCLAYS,"11,262.94",Current Assets,Barclaycard Control,14 Feb 2024,2324/11,LGE,M9002,ZL086,Y,12%
0000423814,GPC BARCLAYS,"10,333.51",Current Assets,Barclaycard Control,14 Mar 2024,2324/12,LGE,M9002,ZL086,Y,10%
0000375576,GRANICUS FIRMSTEP LIMITED,"21,126.57",ICT,Line of Business Applications,18 Jan 2024,2324/10,SME,M6200,A3003,Y,50%
0000423757,GREAT BLAKENHAM PARISH COUNCIL,"1,354.60",Open Spaces,Contributions to other Bodies,06 Feb 2024,2324/11,SME,M4404,H3083,N,
0000377623,GREATER ANGLIA LIMITED,"50,000.00",Needham Market Station,Contributions & Donations,19 Mar 2024,2324/12,LGE,M3517,H3082,N,
0000375702,GREENSHIELD ENVIRONMENTAL LTD,"1,050.00",Paddock House Eye,Prof & Consultancy Fees,18 Dec 2023,2324/10,SME,M7686,H3041,N,
0000375837,GT BLAKENHAM VILLAGE HALL FUND,"2,500.00",Grants & Contrbns,Contributions & Donations,29 Jan 2024,2324/10,SME,M2107,H3082,N,
0000377585,H2O NATIONWIDE LTD,"4,707.14",Responsive maintenance,Legionella Testing,20 Mar 2024,2324/12,SME,M8102,H2044,N,
0000375050,HAMILTON SMITH LETTINGS,570.00,Guaranteed Rent Scheme,Rent Payable,02 Jan 2024,2324/10,SME,M1414,H2023,N,
0000375213,HAMILTON SMITH LETTINGS,590.00,Guaranteed Rent Scheme,Rent Payable,08 Jan 2024,2324/10,SME,M1414,H2023,N,
0000375452,HAMILTON SMITH LETTINGS,775.00,Guaranteed Rent Scheme,Rent Payable,15 Jan 2024,2324/10,SME,M1414,H2023,N,
0000375456,HAMILTON SMITH LETTINGS,550.00,Guaranteed Rent Scheme,Rent Payable,15 Jan 2024,2324/10,SME,M1414,H2023,N,
0000375604,HAMILTON SMITH LETTINGS,"2,000.00",Guaranteed Rent Scheme,Rent Payable,22 Jan 2024,2324/10,SME,M1414,H2023,N,
0000376063,HAMILTON SMITH LETTINGS,570.00,Guaranteed Rent Scheme,Rent Payable,05 Feb 2024,2324/11,SME,M1414,H2023,N,
0000376111,HAMILTON SMITH LETTINGS,590.00,Guaranteed Rent Scheme,Rent Payable,05 Feb 2024,2324/11,SME,M1414,H2023,N,
0000376319,HAMILTON SMITH LETTINGS,550.00,Guaranteed Rent Scheme,Rent Payable,12 Feb 2024,2324/11,SME,M1414,H2023,N,
0000376325,HAMILTON SMITH LETTINGS,775.00,Guaranteed Rent Scheme,Rent Payable,12 Feb 2024,2324/11,SME,M1414,H2023,N,
0000376535,HAMILTON SMITH LETTINGS,"2,000.00",Guaranteed Rent Scheme,Rent Payable,20 Feb 2024,2324/11,SME,M1414,H2023,N,
0000376981,HAMILTON SMITH LETTINGS,590.00,Guaranteed Rent Scheme,Rent Payable,04 Mar 2024,2324/12,SME,M1414,H2023,N,
0000376984,HAMILTON SMITH LETTINGS,570.00,Guaranteed Rent Scheme,Rent Payable,05 Mar 2024,2324/12,SME,M1414,H2023,N,
0000377204,HAMILTON SMITH LETTINGS,775.00,Guaranteed Rent Scheme,Rent Payable,11 Mar 2024,2324/12,SME,M1414,H2023,N,
0000377526,HAMILTON SMITH LETTINGS,550.00,Guaranteed Rent Scheme,Rent Payable,19 Mar 2024,2324/12,SME,M1414,H2023,N,
0000377746,HAMILTON SMITH LETTINGS,"2,000.00",Guaranteed Rent Scheme,Rent Payable,26 Mar 2024,2324/12,SME,M1414,H2023,N,
0000000287,HAMSON BARRON SMITH LTD,-650.00,Assets & Development,Prof & Consultancy Fees,06 Mar 2024,2324/12,LGE,M6400,H3041,N,
0000374208,HAMSON BARRON SMITH LTD,990.00,BRRP-MarketTownVision&Invest,Prof & Consultancy Fees,30 Nov 2023,2324/11,LGE,M6805,H3041,N,
0000375938,HAMSON BARRON SMITH LTD,850.00,Strategic Investment Fund,Prof & Consultancy Fees,31 Jan 2024,2324/11,LGE,M7314,H3041,N,
0000376816,HAMSON BARRON SMITH LTD,"1,680.00",Strategic Investment Fund,Prof & Consultancy Fees,29 Feb 2024,2324/12,LGE,M7314,H3041,N,
0000376861,HAMSON BARRON SMITH LTD,650.00,Assets & Development,Prof & Consultancy Fees,29 Feb 2024,2324/12,LGE,M6400,H3041,N,
0000376862,HAMSON BARRON SMITH LTD,650.00,Assets & Development,Prof & Consultancy Fees,29 Feb 2024,2324/12,LGE,M6400,H3041,N,
0000377850,HAMSON BARRON SMITH LTD,995.00,Assets & Development,Prof & Consultancy Fees,28 Mar 2024,2324/12,LGE,M6400,H3041,N,
0000376411,HARLESTON PARISH MEETING,"1,541.20",Grants & Contrbns,Contributions & Donations,14 Feb 2024,2324/11,SME,M2107,H3082,N,
0000423758,HARLESTON PARISH MEETING,677.30,Street & Major Road Cleansing,Contributions to other Bodies,06 Feb 2024,2324/11,SME,M4402,H3083,N,
0000423759,HAUGHLEY PARISH COUNCIL,677.30,Street & Major Road Cleansing,Contributions to other Bodies,06 Feb 2024,2324/11,SME,M4402,H3083,N,
0000377249,HAUGHLEY UNITED YOUTH FOOTBALL CLUB,"1,000.00",Grants & Contrbns,Contributions & Donations,11 Mar 2024,2324/12,SME,M2107,H3082,N,
0000376551,HAYDEN POWER PROPERTY MANAGEMENT LTD,700.00,Homeless Prevention Fund,Misc Supplies & Services Costs,20 Feb 2024,2324/11,SME,M1404,H3106,N,
0000376726,HENLEY PARISH COUNCIL,"6,808.00",Grants & Contrbns,Contributions & Donations,27 Feb 2024,2324/11,SME,M2107,H3082,N,
0000376746,HENLEY PRE SCHOOL CENTRE,900.00,Grants & Contrbns,Contributions & Donations,27 Feb 2024,2324/11,SME,M2107,H3082,N,
0000375328,HESSETT PARISH COUNCIL,"2,000.00",Grants & Contrbns,Contributions & Donations,11 Jan 2024,2324/10,SME,M2107,H3082,N,
0000377469,HESSETT PARISH COUNCIL,"1,791.36",Grants & Contrbns,Contributions & Donations,15 Mar 2024,2324/12,SME,M2107,H3082,N,
0000375729,HETHEL INNOVATION LTD,"4,997.16",MSM Skills & Innovation Centre,Prof & Consultancy Fees,23 Jan 2024,2324/10,LGE,M3553,H3041,N,
0000375870,HIGHWAY ASSURANCE LTD,"7,604.84",Assets & Development,Repairs,29 Jan 2024,2324/10,SME,M6400,H2010,N,
0000423805,HM COURTS & TRIBUNALS SERVICE  (DD ONLY),664.00,Building Servs Tech Staff,Legal Expenses,01 Mar 2024,2324/12,LGE,M8100,H3047,N,
0000377141,HORHAM & ATHELINGTON PARISH CL,600.00,Grants & Contrbns,Contributions & Donations,07 Mar 2024,2324/12,SME,M2107,H3082,N,
0000375134,HOUSEMARK LTD,"6,760.00",Regulatory & Support Services,Subscriptions,03 Jan 2024,2324/10,SME,M8802,H3054,N,
0000376741,HOUSEMARK LTD,"5,472.50",Regulatory & Support Services,Subscriptions,13 Feb 2024,2324/12,SME,M8802,H3054,Y,50%
0000375467,HOUSING LMS LTD,"2,559.00",Organisational Devt,Training,13 Dec 2023,2324/12,SME,M5100,H1043,Y,50%
0000423761,HOXNE PARISH COUNCIL,677.30,Street & Major Road Cleansing,Contributions to other Bodies,06 Feb 2024,2324/11,SME,M4402,H3083,N,
0000375972,HOXNE PLAYING FIELD FUND,750.00,Grants & Contrbns,Contributions & Donations,01 Feb 2024,2324/11,SME,M2107,H3082,N,
0000376818,HUDSON MEDIA PARTNERSHIP LTD,844.50,Guaranteed Rent Scheme,"Equipment, Tools & Materials",29 Feb 2024,2324/12,SME,M1414,H3031,Y,50%
0000375874,HUGHES TRADE,740.00,Other Temp Accommodation,Furniture,30 Jan 2024,2324/11,LGE,M1410,H3026,N,
0000376781,HUGHES TRADE,645.34,Homeless Prevention Fund,Furniture,28 Feb 2024,2324/12,LGE,M1404,H3026,N,
0000375852,PRIVATE LANDLORD,800.00,Guaranteed Rent Scheme,Rent Payable,29 Jan 2024,2324/10,ST,M1414,H2023,N,
0000376737,PRIVATE LANDLORD,800.00,Guaranteed Rent Scheme,Rent Payable,27 Feb 2024,2324/11,ST,M1414,H2023,N,
0000377747,PRIVATE LANDLORD,800.00,Guaranteed Rent Scheme,Rent Payable,26 Mar 2024,2324/12,ST,M1414,H2023,N,
0000377530,IAN BOOTH CONSULTANT ENGINEER LTD,"1,150.00",Roads and Paths,Improvements,19 Mar 2024,2324/12,SME,M7608,H2051,N,
0000377608,IDEAGEN GAEL LTD,"2,000.00",PP&I,Desktop Software,06 Feb 2024,2324/12,LGE,M5200,H3002,Y,50%
0000376994,IMPERIAL POLYTHENE PRODUCTS LTD,"4,761.90",Domestic Waste,Refuse Sacks,04 Mar 2024,2324/12,SME,M4503,H3075,Y,25%
0000375038,IN YOUR TEAM LTD,"5,047.00",Software/ICT Projects/Surveys,Prof & Consultancy Fees,02 Jan 2024,2324/10,SME,M7623,A3041,Y,50%
0000377131,IN YOUR TEAM LTD,"4,900.00",Software/ICT Projects/Surveys,Prof & Consultancy Fees,07 Mar 2024,2324/12,SME,M7623,H3041,Y,50%
0000001090,INDEPENDENT WATER NETWORKS LTD,44.21,Current Assets,LLOYDS GENERAL PAYMENTS,11 Mar 2024,2324/12,LGE,M9002,ZH103,N,
0000001091,INDEPENDENT WATER NETWORKS LTD,74.18,Current Assets,LLOYDS GENERAL PAYMENTS,11 Mar 2024,2324/12,LGE,M9002,ZH103,N,
0000423807,INDEPENDENT WATER NETWORKS LTD,-44.21,HRA Strategic Property,Water Rates - Metered,20 Feb 2024,2324/12,LGE,M8001,H2034,N,
0000423808,INDEPENDENT WATER NETWORKS LTD,-74.18,HRA Strategic Property,Water Rates - Metered,16 Feb 2024,2324/12,LGE,M8001,H2034,N,
0000375205,INGLETON  WOOD LLP,287.33,Stowmarket Middle School,BC and Planning Fees,31 Dec 2023,2324/10,LGE,M7696,H3991,N,
0000375205,INGLETON  WOOD LLP,360.00,Stowmarket Middle School,Prof & Consultancy Fees,31 Dec 2023,2324/10,LGE,M7696,H3041,N,
0000375442,INSIGHT TECHNOLOGY (SUFFOLK) LTD,"2,065.00",Sheltered Accommodation,Fire Prevention,13 Jan 2024,2324/10,SME,M8405,H2048,N,
0000375442,INSIGHT TECHNOLOGY (SUFFOLK) LTD,165.00,Wingfield Barns,Fire Prevention,13 Jan 2024,2324/10,SME,M2102,H2048,N,
0000375665,INSIGHT TECHNOLOGY (SUFFOLK) LTD,"2,544.80",Sheltered Units-Gen.Imp,Repairs,22 Jan 2024,2324/11,SME,M7614,H2010,N,
0000375942,INSIGHT TECHNOLOGY (SUFFOLK) LTD,"1,681.10",Rewiring,Repairs,31 Jan 2024,2324/11,SME,M7601,H2010,N,
0000376498,INSIGHT TECHNOLOGY (SUFFOLK) LTD,"2,544.80",Sheltered Accommodation,Fire Prevention,18 Feb 2024,2324/11,SME,M8411,H2048,N,
0000377604,INSIGHT TECHNOLOGY (SUFFOLK) LTD,"3,922.50",Sheltered Accommodation,Fire Prevention,20 Mar 2024,2324/12,SME,M8406,H2048,N,
0000375660,INSTITUTE OF LICENSING (EVENTS) LTD,635.40,Organisational Devt,Training,18 Oct 2023,2324/10,SME,M5100,H1043,Y,50%
0000377179,INSTITUTE OF LICENSING LTD,922.25,Organisational Devt,Training,16 Feb 2024,2324/12,LGE,M5100,H1043,Y,50%
0000377155,INTEGRATED SKILLS LTD,"1,350.00",Jnt Waste Contract,Prof & Consultancy Fees,29 Feb 2024,2324/12,SME,M4501,H3041,Y,50%
0000375258,IPSERV LTD,"1,072.93",Communications,Commercial Printing,31 Dec 2023,2324/10,SME,M5500,H3023,N,
0000376025,IPSERV LTD,461.22,Communications,Commercial Printing,31 Jan 2024,2324/11,SME,M5500,H3023,N,
0000376025,IPSERV LTD,574.00,Central Printing,Commercial Printing,31 Jan 2024,2324/11,SME,M5703,H3023,N,
0000377091,IPSERV LTD,436.50,Central Printing,Commercial Printing,29 Feb 2024,2324/12,SME,M5703,H3023,N,
0000377091,IPSERV LTD,"1,892.08",Communications,Commercial Printing,29 Feb 2024,2324/12,SME,M5500,H3023,N,
0000376585,IPSWICH BOROUGH COUNCIL,"274,082.50",Shared Revenues Partnership,Major Contracts,20 Feb 2024,2324/11,LGE,M6113,H6001,N,
0000376202,IPSWICH TOWN COMMUNITY TRUST,558.00,Holiday Activity Fund,"Equipment, Tools & Materials",07 Feb 2024,2324/11,SME,M2113,H3031,N,
0000377849,IPSWICH TOWN COMMUNITY TRUST,826.67,Holiday Activity Fund,"Equipment, Tools & Materials",11 Mar 2024,2324/12,SME,M2113,H3031,N,
0000375041,IVY LEGAL LTD,"2,500.00",Planning Enforcement,Training,01 Jan 2024,2324/10,SME,M3801,A1043,Y,44%
0000376633,JMP SERVICES LTD,720.00,Street & Major Road Cleansing,Contracted Services,22 Feb 2024,2324/12,SME,M4402,H3042,N,
0000376634,JMP SERVICES LTD,600.00,Street & Major Road Cleansing,Contracted Services,22 Feb 2024,2324/12,SME,M4402,H3042,N,
0000376637,JMP SERVICES LTD,600.00,Street & Major Road Cleansing,Contracted Services,22 Feb 2024,2324/12,SME,M4402,H3042,N,
0000376658,JMP SERVICES LTD,840.00,Street & Major Road Cleansing,Contracted Services,22 Feb 2024,2324/12,SME,M4402,H3042,N,
0000377068,JTD SOLUTIONS LTD,"14,700.00",Suffolk PRS Project,Prof & Consultancy Fees,04 Mar 2024,2324/12,SME,M1420,H3041,N,
0000377833,KADA RESEARCH LTD,"2,125.00",MSM Skills & Innovation Centre,Prof & Consultancy Fees,20 Mar 2024,2324/12,SME,M3553,H3041,N,
0000374503,KEN GRIME & SON LTD,"1,053.96",Rewiring,Repairs,11 Dec 2023,2324/11,SME,M7601,H2010,N,
0000374504,KEN GRIME & SON LTD,999.30,Rewiring,Repairs,11 Dec 2023,2324/10,SME,M7601,H2010,N,
0000375372,KEN GRIME & SON LTD,"1,501.82",Building Services,Repairs,11 Jan 2024,2324/10,SME,M8199,H2010,N,
0000375374,KEN GRIME & SON LTD,"1,376.48",Building Services,Repairs,11 Jan 2024,2324/10,SME,M8199,H2010,N,
0000375788,KEN GRIME & SON LTD,"1,539.56",Rewiring,Repairs,25 Jan 2024,2324/11,SME,M7601,H2010,N,
0000375984,KEN GRIME & SON LTD,961.50,Voids Maintenance,Repairs,31 Jan 2024,2324/11,SME,M8105,H2010,N,
0000376077,KEN GRIME & SON LTD,"1,089.88",Rewiring,Repairs,02 Feb 2024,2324/11,SME,M7601,H2010,N,
0000376078,KEN GRIME & SON LTD,"1,212.64",Rewiring,Repairs,02 Feb 2024,2324/11,SME,M7601,H2010,N,
0000376079,KEN GRIME & SON LTD,"2,139.12",Rewiring,Repairs,02 Feb 2024,2324/12,SME,M7601,H2010,N,
0000376141,KEN GRIME & SON LTD,"3,603.92",Rewiring,Repairs,06 Feb 2024,2324/11,SME,M7601,H2010,N,
0000376647,KEN GRIME & SON LTD,"1,180.46",Rewiring,Repairs,22 Feb 2024,2324/12,SME,M7601,H2010,N,
0000376648,KEN GRIME & SON LTD,"1,746.60",Rewiring,Repairs,22 Feb 2024,2324/12,SME,M7601,H2010,N,
0000376649,KEN GRIME & SON LTD,"2,946.72",Rewiring,Repairs,22 Feb 2024,2324/12,SME,M7601,H2010,N,
0000377046,KEN GRIME & SON LTD,"1,070.26",Rewiring,Repairs,05 Mar 2024,2324/12,SME,M7601,H2010,N,
0000377047,KEN GRIME & SON LTD,977.67,Rewiring,Repairs,05 Mar 2024,2324/12,SME,M7601,H2010,N,
0000377291,KEN GRIME & SON LTD,591.96,Rewiring,Repairs,12 Mar 2024,2324/12,SME,M7601,H2010,N,
0000377296,KEN GRIME & SON LTD,821.30,Rewiring,Repairs,12 Mar 2024,2324/12,SME,M7601,H2010,N,
0000377297,KEN GRIME & SON LTD,"1,662.52",Rewiring,Repairs,12 Mar 2024,2324/12,SME,M7601,H2010,N,
0000376499,KENDA-CLEAN,70.00,Creeting Rd Depot,Window Cleaning,18 Feb 2024,2324/11,SME,M1103,H2012,Y,50%
0000376499,KENDA-CLEAN,"2,930.00",Sheltered Accommodation,Window Cleaning,18 Feb 2024,2324/11,SME,M8404,H2012,N,
0000376499,KENDA-CLEAN,35.00,Tenancy Services,Window Cleaning,18 Feb 2024,2324/11,SME,M8500,H2012,N,
0000375178,KEYWAYS THE LOCKSMITHS LTD,"1,062.50",New Bld/acquisition,BMBS Repairs Work,05 Jan 2024,2324/10,SME,M7630,A2014,Y,50%
0000375197,KICKS & TRICKS LTD,"2,351.00",Holiday Activity Fund,"Equipment, Tools & Materials",24 Nov 2023,2324/10,SME,M2113,H3031,N,
0000375766,KICKS & TRICKS LTD,"2,030.50",Holiday Activity Fund,"Equipment, Tools & Materials",25 Jan 2024,2324/10,SME,M2113,H3031,N,
0000375956,KICKS & TRICKS LTD,"1,900.00",Holiday Activity Fund,"Equipment, Tools & Materials",31 Jan 2024,2324/11,SME,M2113,H3031,N,
0000377217,KICKS & TRICKS LTD,"8,533.34",Holiday Activity Fund,"Equipment, Tools & Materials",11 Mar 2024,2324/12,SME,M2113,H3031,N,
0000377365,KICKS & TRICKS LTD,"1,890.50",Holiday Activity Fund,"Equipment, Tools & Materials",15 Mar 2024,2324/12,SME,M2113,H3031,N,
0000377524,KINETIC ADVENTURE CIC,"1,066.67",Holiday Activity Fund,"Equipment, Tools & Materials",18 Mar 2024,2324/12,SME,M2113,H3031,N,
0000377250,KING GEORGE PLAYING FIELD COMMITTEE,"1,000.00",Grants & Contrbns,Contributions & Donations,11 Mar 2024,2324/12,SME,M2107,H3082,N,
0000376559,KINGSLEY HOUSE HOTEL,980.00,Homelessness Private Sector,B&B Costs,06 Feb 2024,2324/11,SME,M1401,H3050,N,
0000377322,KINTO UK LTD,"7,875.93",Building Services,Vehicle Hire,07 Dec 2023,2324/12,LGE,M8199,H4013,N,
0000377323,KINTO UK LTD,"7,786.52",Building Services,Vehicle Hire,19 Feb 2024,2324/12,LGE,M8199,H4013,N,
0000001084,KNOWLES ASSOCIATES TFM LTD,"-1,288.00",Building Services,Vehicle Hire,11 Jan 2024,2324/10,SME,M8199,H4013,Y,50%
0000001094,KNOWLES ASSOCIATES TFM LTD,-224.84,Building Services,Lease Cars - Payment,13 Mar 2024,2324/12,SME,M8199,H4011,Y,50%
0000374756,KNOWLES ASSOCIATES TFM LTD,"2,457.00",Building Services,Plant & Vehicle - Other costs,12 Oct 2023,2324/10,SME,M8199,A4015,Y,50%
0000374757,KNOWLES ASSOCIATES TFM LTD,"2,457.00",Building Services,Plant & Vehicle - Other costs,12 Oct 2023,2324/10,SME,M8199,H4015,Y,50%
0000375056,KNOWLES ASSOCIATES TFM LTD,"1,270.65",Building Services,Lease Cars - Payment,22 Dec 2023,2324/10,SME,M8199,A4011,Y,50%
0000375786,KNOWLES ASSOCIATES TFM LTD,"4,158.00",Open Spaces,Plant & Vehicle - Other costs,24 Jan 2024,2324/11,SME,M4404,H4015,Y,50%
0000376488,KNOWLES ASSOCIATES TFM LTD,"1,773.92",Building Services,Lease Cars - Payment,11 Feb 2024,2324/11,SME,M8199,H4011,Y,50%
0000376491,KNOWLES ASSOCIATES TFM LTD,"1,073.65",Building Services,Plant & Vehicle - Other costs,13 Oct 2023,2324/11,SME,M8199,H4015,Y,50%
0000376492,KNOWLES ASSOCIATES TFM LTD,624.77,Building Services,Contracted Services,05 Jan 2024,2324/12,SME,M8199,H3042,Y,50%
0000376662,KNOWLES ASSOCIATES TFM LTD,"5,359.00",Building Services,Vehicle Hire,11 Feb 2024,2324/11,SME,M8199,H4013,Y,50%
0000376663,KNOWLES ASSOCIATES TFM LTD,"5,216.00",Building Services,Vehicle Hire,23 Nov 2023,2324/11,SME,M8199,H4013,Y,50%
0000376833,KOMPAN LTD,"12,393.69",MSLC Playworld Refurbishment,"Equipment, Tools & Materials",29 Feb 2024,2324/12,SME,M7103,H3031,N,
0000377778,KOMPAN LTD,"47,375.82",MSLC Playworld Refurbishment,"Equipment, Tools & Materials",22 Mar 2024,2324/12,SME,M7103,H3031,N,
0000374112,L A C CLEANING CONTRACTORS LIMITED,"2,690.50",Voids Maintenance,Repairs,27 Nov 2023,2324/10,SME,M8105,H2010,N,
0000374791,L A C CLEANING CONTRACTORS LIMITED,"1,267.50",Voids Maintenance,Repairs,20 Dec 2023,2324/11,SME,M8105,H2010,N,
0000374797,L A C CLEANING CONTRACTORS LIMITED,865.58,Temporary Accommodation,General Cleaning,19 Dec 2023,2324/10,SME,M1409,H2011,N,
0000375179,L A C CLEANING CONTRACTORS LIMITED,"1,125.50",Voids Maintenance,Repairs,05 Jan 2024,2324/10,SME,M8105,H2010,N,
0000375368,L A C CLEANING CONTRACTORS LIMITED,710.50,Other Temp Accommodation,General Cleaning,12 Jan 2024,2324/10,SME,M1410,H2011,N,
0000375490,L A C CLEANING CONTRACTORS LIMITED,840.50,Voids Maintenance,Repairs,16 Jan 2024,2324/10,SME,M8105,H2010,N,
0000375555,L A C CLEANING CONTRACTORS LIMITED,"1,585.50",Voids Maintenance,Repairs,18 Jan 2024,2324/11,SME,M8105,H2010,N,
0000375590,L A C CLEANING CONTRACTORS LIMITED,795.50,Other Temp Accommodation,General Cleaning,19 Jan 2024,2324/10,SME,M1410,H2011,N,
0000375803,L A C CLEANING CONTRACTORS LIMITED,865.58,Temporary Accommodation,General Cleaning,25 Jan 2024,2324/11,SME,M1409,H2011,N,
0000376131,L A C CLEANING CONTRACTORS LIMITED,"1,335.50",Voids Maintenance,Repairs,06 Feb 2024,2324/11,SME,M8105,H2010,N,
0000376687,L A C CLEANING CONTRACTORS LIMITED,865.58,Temporary Accommodation,General Cleaning,26 Feb 2024,2324/12,SME,M1409,H2011,N,
0000377012,L A C CLEANING CONTRACTORS LIMITED,"2,765.50",Voids Maintenance,Repairs,05 Mar 2024,2324/12,SME,M8105,H2010,N,
0000377059,L A C CLEANING CONTRACTORS LIMITED,"1,992.50",Voids Maintenance,Repairs,06 Mar 2024,2324/12,SME,M8105,H2010,N,
0000377366,L A C CLEANING CONTRACTORS LIMITED,675.00,Voids Maintenance,Repairs,15 Mar 2024,2324/12,SME,M8105,H2010,N,
0000377370,L A C CLEANING CONTRACTORS LIMITED,"1,340.50",Voids Maintenance,Repairs,15 Mar 2024,2324/12,SME,M8105,H2010,N,
0000377730,L A C CLEANING CONTRACTORS LIMITED,865.58,Temporary Accommodation,General Cleaning,25 Mar 2024,2324/12,SME,M1409,H2011,N,
0000375506,LABC,600.00,Bldg Regs Chargeable Serv,Training,12 Jan 2024,2324/10,SME,M3301,A1043,Y,50%
0000377375,LABC EAST ANGLIA,"4,420.36",Bldg Regs Chargeable Serv,Training,11 Mar 2024,2324/12,SME,M3301,A1043,Y,45%
0000374973,LAC SERVICES (EAST ANGLIA) LTD,"2,397.91",Sheltered Accommodation,Fire Prevention,21 Dec 2023,2324/10,SME,M8409,H2048,N,
0000375150,LAC SERVICES (EAST ANGLIA) LTD,"29,953.50",Sheltered Accommodation,Fire Prevention,04 Jan 2024,2324/10,SME,M8410,H2048,N,
0000376263,LAC SERVICES (EAST ANGLIA) LTD,"8,991.78",Fire Risk Assessment (Flats),Repairs,10 Jan 2024,2324/12,SME,M7635,H2010,N,
0000377079,LAC SERVICES (EAST ANGLIA) LTD,"1,485.66",Sheltered Accommodation,Fire Prevention,29 Feb 2024,2324/12,SME,M8406,H2048,N,
0000377236,LAC SERVICES (EAST ANGLIA) LTD,854.35,Sheltered Accommodation,Fire Prevention,11 Mar 2024,2324/12,SME,M8411,H2048,N,
0000377277,LAC SERVICES (EAST ANGLIA) LTD,"1,352.33",Sheltered Accommodation,Fire Prevention,11 Mar 2024,2324/12,SME,M8411,H2048,N,
0000375794,LAXFIELD PRE SCHOOL,"1,000.00",Grants & Contrbns,Contributions & Donations,25 Jan 2024,2324/10,SME,M2107,H3082,N,
0000375605,LEX AUTOLEASE,974.00,Building Services,Lease Cars - Payment,14 Dec 2023,2324/10,SME,M8199,A4011,Y,50%
0000376889,LEX AUTOLEASE,-352.33,Building Services,Lease Cars - Payment,15 Feb 2024,2324/12,SME,M8199,A4011,Y,50%
0000377800,LEX AUTOLEASE,-957.69,Building Services,Lease Cars - Payment,14 Mar 2024,2324/12,SME,M8199,A4011,Y,50%
0000377801,LEX AUTOLEASE,"-1,099.24",Building Services,Lease Cars - Payment,15 Mar 2024,2324/12,SME,M8199,H4011,Y,50%
0000377380,LINKEDIN,"16,935.00",Organisational Devt,Recruitment,26 Jan 2024,2324/12,LGE,M5100,H1052,Y,50%
0000375603,PRIVATE LANDLORD,669.00,Guaranteed Rent Scheme,Rent Payable,22 Jan 2024,2324/10,ST,M1414,H2023,N,
0000376740,PRIVATE LANDLORD,669.00,Guaranteed Rent Scheme,Rent Payable,27 Feb 2024,2324/11,ST,M1414,H2023,N,
0000377735,PRIVATE LANDLORD,669.00,Guaranteed Rent Scheme,Rent Payable,25 Mar 2024,2324/12,ST,M1414,H2023,N,
0000373676,LJ GAMMER (STOWMARKET) LTD,"1,020.71",Building Services,Plant & Vehicle - Other costs,09 Nov 2023,2324/10,SME,M8199,H4015,Y,50%
0000375640,LJ GAMMER (STOWMARKET) LTD,"1,161.91",Building Services,Plant & Vehicle - Other costs,22 Jan 2024,2324/10,SME,M8199,H4015,Y,50%
0000377359,LJ GAMMER (STOWMARKET) LTD,668.54,Building Services,Plant & Vehicle - Other costs,14 Mar 2024,2324/12,SME,M8199,H4015,Y,50%
0000376424,LOCAL GOVERNMENT INFORMATION UNIT,"2,565.00",PP&I,Subscriptions,02 Jan 2024,2324/11,LGE,M5200,H3054,N,
0000376177,LORD THURLOW HALL,"4,421.55",CIL Funded REFCUS,Grants,07 Feb 2024,2324/11,SME,M7161,H3081,N,
0000374765,M & H CIVIL ENGINEERING LTD,600.00,Building Services,Repairs,18 Dec 2023,2324/10,SME,M8199,H2010,N,
0000374991,M & H CIVIL ENGINEERING LTD,964.48,Voids Maintenance,Repairs,22 Dec 2023,2324/10,SME,M8105,H2010,N,
0000374992,M & H CIVIL ENGINEERING LTD,679.10,Building Services,Repairs,22 Dec 2023,2324/10,SME,M8199,H2010,N,
0000375272,M & H CIVIL ENGINEERING LTD,"2,150.35",Building Services,Repairs,08 Jan 2024,2324/11,SME,M8199,H2010,N,
0000375633,M & H CIVIL ENGINEERING LTD,"2,265.68",Building Services,Repairs,19 Jan 2024,2324/11,SME,M8199,H2010,N,
0000376657,M & H CIVIL ENGINEERING LTD,"1,141.90",Building Services,Repairs,21 Feb 2024,2324/12,SME,M8199,H2010,N,
0000377531,M & H CIVIL ENGINEERING LTD,941.18,Building Services,Repairs,18 Mar 2024,2324/12,SME,M8199,H2010,N,
0000375824,MANSION HOUSE PUBLISHING LTD,"4,050.00",Independent Living Service,Prof & Consultancy Fees,25 Jan 2024,2324/10,SME,M1304,H3041,Y,50%
0000375216,MAP LETTINGS & PROPERTY MANAGEMENT,200.00,Homeless Prevention Fund,Misc Supplies & Services Costs,08 Jan 2024,2324/10,SME,M1404,H3106,N,
0000375216,MAP LETTINGS & PROPERTY MANAGEMENT,"1,050.00",Guaranteed Rent Scheme,Rent Payable,08 Jan 2024,2324/10,SME,M1414,H2023,N,
0000376311,MAP LETTINGS & PROPERTY MANAGEMENT,200.00,Homeless Prevention Fund,Misc Supplies & Services Costs,12 Feb 2024,2324/11,SME,M1404,H3106,N,
0000376311,MAP LETTINGS & PROPERTY MANAGEMENT,"1,050.00",Guaranteed Rent Scheme,Rent Payable,12 Feb 2024,2324/11,SME,M1414,H2023,N,
0000377209,MAP LETTINGS & PROPERTY MANAGEMENT,200.00,Homeless Prevention Fund,Misc Supplies & Services Costs,11 Mar 2024,2324/12,SME,M1404,H3106,N,
0000377209,MAP LETTINGS & PROPERTY MANAGEMENT,"1,050.00",Guaranteed Rent Scheme,Rent Payable,11 Mar 2024,2324/12,SME,M1414,H2023,N,
0000375046,MARCHDELL LTD,815.00,Guaranteed Rent Scheme,Rent Payable,02 Jan 2024,2324/10,SME,M1414,H2023,N,
0000376094,MARCHDELL LTD,815.00,Guaranteed Rent Scheme,Rent Payable,05 Feb 2024,2324/11,SME,M1414,H2023,N,
0000376948,MARCHDELL LTD,815.00,Guaranteed Rent Scheme,Rent Payable,04 Mar 2024,2324/12,SME,M1414,H2023,N,
0000375323,MARRIOTT HOLDINGS LTD,"10,000.00",C Parks General,Contracted Services,11 Jan 2024,2324/11,SME,M4410,H3042,N,
0000377275,MARRIOTT HOLDINGS LTD,"2,500.00",C Parks General,Contracted Services,25 Mar 2024,2324/12,SME,M4410,H3042,N,
0000375172,MATERIAL CHANGE COMPOSTING LTD,"1,233.21",Open Spaces,Waste Disposal,31 Dec 2023,2324/10,LGE,M4404,H3068,N,
0000376101,MATERIAL CHANGE COMPOSTING LTD,666.60,Open Spaces,Waste Disposal,31 Jan 2024,2324/11,LGE,M4404,H3068,N,
0000376855,MATERIAL CHANGE COMPOSTING LTD,100.21,Open Spaces,"Equipment, Tools & Materials",29 Feb 2024,2324/12,LGE,M4404,H3031,N,
0000376855,MATERIAL CHANGE COMPOSTING LTD,"1,199.88",Open Spaces,Waste Disposal,29 Feb 2024,2324/12,LGE,M4404,H3068,N,
0000374264,MB TREES (EAST ANGLIA) LTD,680.00,Tenancy Services,Tree felling/maintenance,04 Dec 2023,2324/10,SME,M8500,H2004,N,
0000374593,MB TREES (EAST ANGLIA) LTD,880.00,Tenancy Services,Tree felling/maintenance,15 Dec 2023,2324/10,SME,M8500,H2004,N,
0000375185,MB TREES (EAST ANGLIA) LTD,"1,280.00",Amenity Areas,Tree felling/maintenance,05 Jan 2024,2324/10,SME,M8501,H2004,N,
0000375188,MB TREES (EAST ANGLIA) LTD,740.00,Public Tree Programme,Tree felling/maintenance,05 Jan 2024,2324/10,SME,M4405,H2004,N,
0000375189,MB TREES (EAST ANGLIA) LTD,680.00,Tenancy Services,Tree felling/maintenance,05 Jan 2024,2324/10,SME,M8500,H2004,N,
0000375864,MB TREES (EAST ANGLIA) LTD,"1,680.00",Amenity Areas,Tree felling/maintenance,29 Jan 2024,2324/10,SME,M8501,H2004,N,
0000375865,MB TREES (EAST ANGLIA) LTD,680.00,Public Tree Programme,Tree felling/maintenance,29 Jan 2024,2324/10,SME,M4405,H2004,N,
0000375866,MB TREES (EAST ANGLIA) LTD,"1,800.00",Amenity Areas,Tree felling/maintenance,29 Jan 2024,2324/10,SME,M8501,H2004,N,
0000375867,MB TREES (EAST ANGLIA) LTD,"1,280.00",Public Tree Programme,Tree felling/maintenance,29 Jan 2024,2324/10,SME,M4405,H2004,N,
0000375869,MB TREES (EAST ANGLIA) LTD,"6,840.00",Public Tree Programme,Tree felling/maintenance,29 Jan 2024,2324/10,SME,M4405,H2004,N,
0000376460,MB TREES (EAST ANGLIA) LTD,"4,180.00",Public Tree Programme,Tree felling/maintenance,16 Feb 2024,2324/11,SME,M4405,H2004,N,
0000376461,MB TREES (EAST ANGLIA) LTD,"4,880.00",Public Tree Programme,Tree felling/maintenance,16 Feb 2024,2324/11,SME,M4405,H2004,N,
0000376462,MB TREES (EAST ANGLIA) LTD,"1,280.00",Amenity Areas,Tree felling/maintenance,16 Feb 2024,2324/11,SME,M8501,H2004,N,
0000376463,MB TREES (EAST ANGLIA) LTD,"4,640.00",Public Tree Programme,Tree felling/maintenance,16 Feb 2024,2324/11,SME,M4405,H2004,N,
0000376968,MB TREES (EAST ANGLIA) LTD,"3,650.00",Tenancy Services,Tree felling/maintenance,04 Mar 2024,2324/12,SME,M8500,H2004,N,
0000377149,MB TREES (EAST ANGLIA) LTD,"4,480.00",Public Tree Programme,Tree felling/maintenance,07 Mar 2024,2324/12,SME,M4405,H2004,N,
0000377542,MB TREES (EAST ANGLIA) LTD,880.00,Public Tree Programme,Tree felling/maintenance,19 Mar 2024,2324/12,SME,M4405,H2004,N,
0000377548,MB TREES (EAST ANGLIA) LTD,"4,980.00",Neighbourhood Services,Neighbourhood Improvement Proj,19 Mar 2024,2324/12,SME,M8505,H2015,N,
0000377549,MB TREES (EAST ANGLIA) LTD,"3,750.00",Public Tree Programme,Tree felling/maintenance,19 Mar 2024,2324/12,SME,M4405,H2004,N,
0000377555,MB TREES (EAST ANGLIA) LTD,"8,960.00",Public Tree Programme,Tree felling/maintenance,19 Mar 2024,2324/12,SME,M4405,H2004,N,
0000377627,MB TREES (EAST ANGLIA) LTD,"1,560.00",Tenancy Services,Horticultural Purchases,21 Mar 2024,2324/12,SME,M8500,H3035,N,
0000377627,MB TREES (EAST ANGLIA) LTD,"4,660.00",Tenancy Services,Tree felling/maintenance,21 Mar 2024,2324/12,SME,M8500,H2004,N,
0000377806,MB TREES (EAST ANGLIA) LTD,980.00,Public Tree Programme,Tree felling/maintenance,26 Mar 2024,2324/12,SME,M4405,H2004,N,
0000377811,MB TREES (EAST ANGLIA) LTD,"1,180.00",Public Tree Programme,Tree felling/maintenance,26 Mar 2024,2324/12,SME,M4405,H2004,N,
0000377859,MB TREES (EAST ANGLIA) LTD,"4,480.00",Public Tree Programme,Tree felling/maintenance,27 Mar 2024,2324/12,SME,M4405,H2004,N,
0000375264,MC CONTRACTS LTD,"13,775.90",Building Services,Repairs,01 Jan 2024,2324/10,SME,M8199,H2010,N,
0000376455,MC CONTRACTS LTD,"51,605.80",Building Services,Repairs,01 Feb 2024,2324/11,SME,M8199,H2010,N,
0000001099,MELLIS SCHOOL PARENTS ASSOCIATION,-103.02,Bring Sites,Contributions & Donations,26 Mar 2024,2324/12,SME,M4504,H3082,N,
EBC0056708,MELLIS SCHOOL PARENTS ASSOCIATION,103.02,Current Assets,LLOYDS GENERAL PAYMENTS,28 Mar 2024,2324/12,SME,M9002,ZH103,N,
0000376326,MENDLESHAM EDUCATIONAL FOUNDATION,515.00,VCSE Resilience,"Equipment, Tools & Materials",12 Feb 2024,2324/11,SME,M2310,H3031,N,
0000375090,MENDLESHAM HOMES LTD,"1,300.00",Guaranteed Rent Scheme,Rent Payable,02 Jan 2024,2324/10,SME,M1414,H2023,N,
0000376123,MENDLESHAM HOMES LTD,"1,300.00",Guaranteed Rent Scheme,Rent Payable,05 Feb 2024,2324/11,SME,M1414,H2023,N,
0000376983,MENDLESHAM HOMES LTD,"1,300.00",Guaranteed Rent Scheme,Rent Payable,05 Mar 2024,2324/12,SME,M1414,H2023,N,
0000377364,MENDLESHAM PARISH COUNCIL,"5,000.00",Grants & Contrbns,Contributions & Donations,14 Mar 2024,2324/12,SME,M2107,H3082,N,
0000376145,MENOPAUSE IN THE WORKPLACE LTD,995.00,Organisational Devt,Corporate Training,27 Feb 2024,2324/11,SME,M5100,H1045,Y,50%
0000376783,MENOPAUSE IN THE WORKPLACE LTD,795.00,Organisational Devt,Training,19 Feb 2024,2324/12,SME,M5100,H1043,Y,50%
0000376580,MENTA,"5,625.00",Shared Prosperity Fund,Prof & Consultancy Fees,20 Feb 2024,2324/12,SME,M3566,H3041,N,
0000375862,PRIVATE LANDLORD,795.00,Guaranteed Rent Scheme,Rent Payable,29 Jan 2024,2324/10,ST,M1414,H2023,N,
0000376716,PRIVATE LANDLORD,795.00,Guaranteed Rent Scheme,Rent Payable,26 Feb 2024,2324/11,ST,M1414,H2023,N,
0000375548,METFIELD PARISH COUNCIL,962.71,Grants & Contrbns,Contributions & Donations,17 Jan 2024,2324/10,SME,M2107,H3082,N,
0000375101,METFIELD PAROCHIAL CHURCH COUNCIL,531.00,Grants & Contrbns,Contributions & Donations,03 Jan 2024,2324/10,SME,M2107,H3082,N,
0000374618,METRIC GROUP LTD,623.16,C Parks General,Contracted Services,12 Dec 2023,2324/10,SME,M4410,H3042,N,
0000375545,METRIC GROUP LTD,681.12,C Parks General,Contracted Services,04 Jan 2024,2324/11,SME,M4410,H3042,N,
0000376571,METRIC GROUP LTD,573.39,C Parks General,Contracted Services,05 Feb 2024,2324/12,SME,M4410,H3042,N,
0000376744,METRIC GROUP LTD,529.47,C Parks General,Contracted Services,20 Sep 2023,2324/11,SME,M4410,H3042,N,
0000377235,METRIC GROUP LTD,580.05,C Parks General,Contracted Services,07 Mar 2024,2324/12,SME,M4410,H3042,N,
0000375414,PRIVATE LANDLORD,"1,050.00",Guaranteed Rent Scheme,Rent Payable,15 Jan 2024,2324/10,SME,M1414,H2023,N,
0000376293,PRIVATE LANDLORD,"1,050.00",Guaranteed Rent Scheme,Rent Payable,12 Feb 2024,2324/11,SME,M1414,H2023,N,
0000377202,PRIVATE LANDLORD,"1,050.00",Guaranteed Rent Scheme,Rent Payable,11 Mar 2024,2324/12,SME,M1414,H2023,N,
0000375621,MID SUFFOLK FENCING LTD,675.00,Building Services,Repairs,01 Nov 2023,2324/10,SME,M8199,H2010,N,
0000376683,MID SUFFOLK FENCING LTD,"1,650.00",Building Services,Repairs,23 Feb 2024,2324/12,SME,M8199,H2010,N,
0000375084,MID SUFFOLK GROWTH LTD,"2,002.22","Cedars Park C & D, Stowmarket",Prof & Consultancy Fees,31 Dec 2023,2324/10,SME,M7701,H3041,N,
0000375085,MID SUFFOLK GROWTH LTD,"2,218.87",Loraine Way Bramford  S106,Prof & Consultancy Fees,31 Dec 2023,2324/10,SME,M7712,H3041,N,
0000375939,MID SUFFOLK GROWTH LTD,"2,673.37",Loraine Way Bramford  S106,Prof & Consultancy Fees,31 Jan 2024,2324/11,SME,M7712,H3041,N,
0000375940,MID SUFFOLK GROWTH LTD,"1,547.72","Cedars Park C & D, Stowmarket",Prof & Consultancy Fees,31 Jan 2024,2324/11,SME,M7701,H3041,N,
0000376813,MID SUFFOLK GROWTH LTD,"1,547.72","Cedars Park C & D, Stowmarket",Prof & Consultancy Fees,29 Feb 2024,2324/12,SME,M7701,H3041,N,
0000376815,MID SUFFOLK GROWTH LTD,"2,218.87",Loraine Way Bramford  S106,Prof & Consultancy Fees,29 Feb 2024,2324/12,SME,M7712,H3041,N,
0000377852,MID SUFFOLK GROWTH LTD,"2,305.22","Cedars Park C & D, Stowmarket",Prof & Consultancy Fees,28 Mar 2024,2324/12,SME,M7701,H3041,N,
0000377853,MID SUFFOLK GROWTH LTD,"2,218.87",Loraine Way Bramford  S106,Prof & Consultancy Fees,28 Mar 2024,2324/12,SME,M7712,H3041,N,
0000375628,MID SUFFOLK VOLUNTARY ORGANISATIONS FORU,"1,475.00",Grants & Contrbns,Contributions & Donations,22 Jan 2024,2324/10,SME,M2107,H3082,N,
0000375637,PRIVATE LANDLORD,836.50,Guaranteed Rent Scheme,Rent Payable,22 Jan 2024,2324/10,ST,M1414,H2023,N,
0000376545,PRIVATE LANDLORD,"1,100.00",Guaranteed Rent Scheme,Rent Payable,20 Feb 2024,2324/11,ST,M1414,H2023,N,
0000377749,PRIVATE LANDLORD,"1,100.00",Guaranteed Rent Scheme,Rent Payable,26 Mar 2024,2324/12,ST,M1414,H2023,N,
0000370910,MIXBROW LTD,"9,000.00",Voids Maintenance,Repairs,31 Jul 2023,2324/11,SME,M8105,H2010,N,
0000375290,MIXBROW LTD,"14,791.96",Major Imps,Repairs,10 Jan 2024,2324/10,SME,M7617,H2010,N,
0000375526,MIXBROW LTD,"1,359.75",Voids Maintenance,Repairs,17 Jan 2024,2324/11,SME,M8105,H2010,N,
0000375526,MIXBROW LTD,"4,742.30",Major Imps,Repairs,17 Jan 2024,2324/11,SME,M7617,H2010,N,
0000375644,MIXBROW LTD,"6,456.25",Building Services,Repairs,10 Oct 2023,2324/10,SME,M8199,H2010,N,
0000375934,MIXBROW LTD,"12,041.88",Major Imps,Repairs,31 Jan 2024,2324/11,SME,M7617,H2010,N,
0000375935,MIXBROW LTD,"3,480.04",Major Imps,Repairs,30 Jan 2024,2324/11,SME,M7617,H2010,N,
0000375935,MIXBROW LTD,"5,256.82",Voids Maintenance,Repairs,30 Jan 2024,2324/11,SME,M8105,H2010,N,
0000376159,MIXBROW LTD,"20,467.71",Voids Maintenance,Repairs,05 Feb 2024,2324/11,SME,M8105,H2010,N,
0000376485,MIXBROW LTD,"2,566.66",Voids Maintenance,Repairs,16 Feb 2024,2324/11,SME,M8105,H2010,N,
0000376485,MIXBROW LTD,"4,124.21",Major Imps,Repairs,16 Feb 2024,2324/11,SME,M7617,H2010,N,
0000376486,MIXBROW LTD,"4,063.17",Major Imps,Repairs,16 Feb 2024,2324/11,SME,M7617,H2010,N,
0000376486,MIXBROW LTD,"6,133.73",Voids Maintenance,Repairs,16 Feb 2024,2324/11,SME,M8105,H2010,N,
0000376494,MIXBROW LTD,"2,174.27",Voids Maintenance,Repairs,12 Feb 2024,2324/11,SME,M8105,H2010,N,
0000376996,MIXBROW LTD,"8,579.37",Council House Adaptions,Improvements,29 Feb 2024,2324/12,SME,M7640,H2051,N,
0000377062,MIXBROW LTD,"11,804.86",Voids Maintenance,Repairs,05 Mar 2024,2324/12,SME,M8105,H2010,N,
0000377581,MIXBROW LTD,"1,909.32",Voids Maintenance,Repairs,20 Mar 2024,2324/12,SME,M8105,H2010,N,
0000377581,MIXBROW LTD,"4,547.57",Major Imps,Repairs,20 Mar 2024,2324/12,SME,M7617,H2010,N,
0000376501,PRIVATE LANDLORD,509.72,Guaranteed Rent Scheme,Rent Payable,19 Feb 2024,2324/11,ST,M1414,H2023,N,
0000375755,PRIVATE LANDLORD,"2,100.00",Guaranteed Rent Scheme,Rent Payable,25 Jan 2024,2324/10,ST,M1414,H2023,N,
0000376544,PRIVATE LANDLORD,600.00,Guaranteed Rent Scheme,Rent Payable,20 Feb 2024,2324/11,ST,M1414,H2023,N,
0000377552,PRIVATE LANDLORD,600.00,Guaranteed Rent Scheme,Rent Payable,19 Mar 2024,2324/12,ST,M1414,H2023,N,
0000423710,PRIVATE LANDLORD,575.00,Guaranteed Rent Scheme,Rent Payable,11 Jan 2024,2324/10,ST,M1414,H2023,N,
0000375215,PRIVATE LANDLORD,650.00,Guaranteed Rent Scheme,Rent Payable,08 Jan 2024,2324/10,ST,M1414,H2023,N,
0000376062,PRIVATE LANDLORD,650.00,Guaranteed Rent Scheme,Rent Payable,05 Feb 2024,2324/11,ST,M1414,H2023,N,
0000377218,PRIVATE LANDLORD,715.00,Guaranteed Rent Scheme,Rent Payable,11 Mar 2024,2324/12,ST,M1414,H2023,N,
0000375224,PRIVATE LANDLORD,880.00,Guaranteed Rent Scheme,Rent Payable,08 Jan 2024,2324/10,ST,M1414,H2023,N,
0000376095,PRIVATE LANDLORD,880.00,Guaranteed Rent Scheme,Rent Payable,05 Feb 2024,2324/11,ST,M1414,H2023,N,
0000376868,PRIVATE LANDLORD,880.00,Guaranteed Rent Scheme,Rent Payable,04 Mar 2024,2324/12,ST,M1414,H2023,N,
0000375070,PRIVATE LANDLORD,800.00,Guaranteed Rent Scheme,Rent Payable,02 Jan 2024,2324/10,ST,M1414,H2023,N,
0000375859,PRIVATE LANDLORD,800.00,Guaranteed Rent Scheme,Rent Payable,29 Jan 2024,2324/10,ST,M1414,H2023,N,
0000376714,PRIVATE LANDLORD,800.00,Guaranteed Rent Scheme,Rent Payable,26 Feb 2024,2324/11,ST,M1414,H2023,N,
0000376365,PRIVATE LANDLORD,510.00,Guaranteed Rent Scheme,Rent Payable,13 Feb 2024,2324/11,ST,M1414,H2023,N,
0000377201,PRIVATE LANDLORD,510.00,Guaranteed Rent Scheme,Rent Payable,11 Mar 2024,2324/12,ST,M1414,H2023,N,
0000375377,NAGELS UK LTD,"5,471.00",C Parks General,"Equipment, Tools & Materials",12 Jan 2024,2324/11,SME,M4410,H3031,N,
0000375331,NEEDHAM MARKET COMMUNITY CENTRE,"8,000.00",Communities,Grants,11 Jan 2024,2324/10,SME,M2309,H3081,N,
0000375371,NEEDHAM MARKET COMMUNITY CENTRE,"13,926.50",S106 Open Spaces Expenditure,Grants,12 Jan 2024,2324/10,SME,M7126,H3081,N,
0000376338,NEEDHAM MARKET TOWN COUNCIL,934.00,Grants & Contrbns,Contributions & Donations,13 Feb 2024,2324/11,SME,M2107,H3082,N,
0000376340,NEEDHAM MARKET TOWN COUNCIL,"2,000.00",RHSSF,Contributions & Donations,13 Feb 2024,2324/11,SME,M5103,H3082,N,
0000376810,NEEDHAM MARKET TOWN COUNCIL,"17,625.15",CIL Funded REFCUS,Grants,29 Feb 2024,2324/12,SME,M7161,H3081,N,
0000423764,NEEDHAM MARKET TOWN COUNCIL,"2,980.12",Street & Major Road Cleansing,Contributions to other Bodies,06 Feb 2024,2324/11,SME,M4402,H3083,N,
0000376429,NEEDHAM PHOENIX YTH F/BALL UNDER 12 GIRL,935.00,Grants & Contrbns,Contributions & Donations,15 Feb 2024,2324/11,SME,M2107,H3082,N,
0000376190,NEW ENERGY PARTNERSHIP LTD,"2,015.00",Pre App Charging,Planning Fees,16 Oct 2023,2324/11,SME,M3103,H9112,N,
0000375969,NEW LOCAL,"24,796.00",PP&I,Prof & Consultancy Fees,11 Dec 2023,2324/11,LGE,M5200,H3041,Y,50%
0000375970,NEW LOCAL,"-3,800.00",PP&I,Prof & Consultancy Fees,31 Jan 2024,2324/11,LGE,M5200,A3041,Y,50%
0000374944,NEWSQUEST MEDIA GROUP,865.20,Devt Management - Apps,Advertising&mkting (non-staff),21 Dec 2023,2324/10,LGE,M3101,H3049,N,
0000375173,NEWSQUEST MEDIA GROUP,"1,112.40",Devt Management - Apps,Advertising&mkting (non-staff),04 Jan 2024,2324/10,LGE,M3101,H3049,N,
0000375340,NEWSQUEST MEDIA GROUP,735.76,Devt Management - Apps,Advertising&mkting (non-staff),11 Jan 2024,2324/10,LGE,M3101,H3049,N,
0000375583,NEWSQUEST MEDIA GROUP,735.76,Devt Management - Apps,Advertising&mkting (non-staff),18 Jan 2024,2324/10,LGE,M3101,H3049,N,
0000376011,NEWSQUEST MEDIA GROUP,800.68,Devt Management - Apps,Advertising&mkting (non-staff),31 Jan 2024,2324/11,LGE,M3101,H3049,N,
0000376249,NEWSQUEST MEDIA GROUP,865.60,Devt Management - Apps,Advertising&mkting (non-staff),08 Feb 2024,2324/11,LGE,M3101,H3049,N,
0000376434,NEWSQUEST MEDIA GROUP,662.18,Devt Management - Apps,Advertising&mkting (non-staff),15 Feb 2024,2324/11,LGE,M3101,H3049,N,
0000376651,NEWSQUEST MEDIA GROUP,515.03,Devt Management - Apps,Advertising&mkting (non-staff),22 Feb 2024,2324/11,LGE,M3101,H3049,N,
0000376937,NEWSQUEST MEDIA GROUP,"1,821.01",Council Tax Collection,Advertising&mkting (non-staff),29 Feb 2024,2324/12,LGE,M6111,H3049,N,
0000376938,NEWSQUEST MEDIA GROUP,735.76,Devt Management - Apps,Advertising&mkting (non-staff),29 Feb 2024,2324/12,LGE,M3101,H3049,N,
0000377158,NEWSQUEST MEDIA GROUP,735.76,Devt Management - Apps,Advertising&mkting (non-staff),07 Mar 2024,2324/12,LGE,M3101,H3049,N,
0000377363,NEWSQUEST MEDIA GROUP,551.82,Devt Management - Apps,Advertising&mkting (non-staff),14 Mar 2024,2324/12,LGE,M3101,H3049,N,
0000375560,NEXERE CONSULTING LTD,"4,800.00",Climate Change and Sustainabil,Contracted Services,15 Jan 2024,2324/10,SME,M4306,H3042,Y,50%
0000377688,NORFOLK COUNTY COUNCIL,"5,326.56",Strategic Housing,Subscriptions,18 Mar 2024,2324/12,LGE,M3601,H3054,N,
0000374113,NORTHUMBRIAN WATER LTD,"1,464.84",Building Services,Repairs,27 Nov 2023,2324/12,LGE,M8199,H2010,N,
0000374117,NORTHUMBRIAN WATER LTD,"11,145.99",Building Services,Repairs,27 Nov 2023,2324/12,LGE,M8199,H2010,N,
0000374848,NORTHUMBRIAN WATER LTD,"1,464.84",Building Services,Repairs,21 Dec 2023,2324/12,LGE,M8199,H2010,N,
0000374849,NORTHUMBRIAN WATER LTD,"1,464.84",Building Services,Repairs,21 Dec 2023,2324/12,LGE,M8199,H2010,N,
0000374850,NORTHUMBRIAN WATER LTD,"1,464.84",Building Services,Repairs,21 Dec 2023,2324/12,LGE,M8199,H2010,N,
0000375358,NORTHUMBRIAN WATER LTD,"1,820.78",Water Sampling,Sampling & Analysis,11 Jan 2024,2324/10,LGE,M4106,H3043,N,
0000375878,NORTHUMBRIAN WATER LTD,"1,412.46",Building Services,Repairs,30 Jan 2024,2324/12,LGE,M8199,H2010,N,
0000375879,NORTHUMBRIAN WATER LTD,800.00,Tenancy Services,Fire Prevention,30 Jan 2024,2324/11,LGE,M8500,H2048,N,
0000376575,NORTHUMBRIAN WATER LTD,"1,236.95",Tenancy Services,Fire Prevention,21 Dec 2023,2324/11,LGE,M8500,H2048,N,
0000376869,NORTHUMBRIAN WATER LTD,"1,522.40",Building Services,Repairs,20 Dec 2023,2324/12,LGE,M8199,H2010,N,
0000376870,NORTHUMBRIAN WATER LTD,"1,522.40",Building Services,Repairs,20 Dec 2023,2324/12,LGE,M8199,H2010,N,
0000376871,NORTHUMBRIAN WATER LTD,828.85,Building Services,Repairs,30 Jan 2024,2324/12,LGE,M8199,H2010,N,
0000377300,NORTHUMBRIAN WATER LTD,"1,221.95",Water Sampling,Sampling & Analysis,12 Mar 2024,2324/12,LGE,M4106,H3043,N,
0000375324,NORTON PARISH COUNCIL,"13,874.33",CIL Funded REFCUS,Grants,11 Jan 2024,2324/10,SME,M7161,H3081,N,
0000376218,NORTON PARISH COUNCIL,"1,603.03",CIL Funded REFCUS,Grants,07 Feb 2024,2324/11,SME,M7161,H3081,N,
0000377298,NORTON PARISH COUNCIL,"5,925.80",CIL Funded REFCUS,Grants,12 Mar 2024,2324/12,SME,M7161,H3081,N,
0000423830,NORTON PARISH COUNCIL,542.42,Bring Sites,Contributions & Donations,19 Mar 2024,2324/12,SME,M4504,H3082,N,
0000377710,NORTON VILLAGE HALL MANAGEMENT COMMITTEE,"1,025.00",Grants & Contrbns,Contributions & Donations,19 Mar 2024,2324/12,SME,M2107,H3082,N,
0000376738,NOVUS PROPERTY SOLUTIONS LTD,"10,174.00",Wingfield Barns,Annual Bldg Maint Contracts,27 Feb 2024,2324/12,LGE,M2102,H2001,N,
0000374532,OAKPARK SECURITY SYSTEMS LTD,"1,350.00",Temporary Accommodation,Misc Premises Costs,12 Dec 2023,2324/11,LGE,M1409,H2042,N,
0000375093,OAKPARK SECURITY SYSTEMS LTD,720.00,Needham HQ S106 Units,Major Contracts,12 Dec 2023,2324/10,LGE,M7700,H6001,N,
0000375151,OAKPARK SECURITY SYSTEMS LTD,"1,395.00",Paddock House,Contracted Services,10 Aug 2023,2324/10,LGE,M7310,H3042,N,
0000375152,OAKPARK SECURITY SYSTEMS LTD,"2,610.00",Sheltered Accommodation,Misc Supplies & Services Costs,31 Oct 2023,2324/10,LGE,M8406,H3106,N,
0000375309,OAKPARK SECURITY SYSTEMS LTD,"5,220.00",Sheltered Accommodation,Misc Supplies & Services Costs,10 Jan 2024,2324/10,LGE,M8406,H3106,N,
0000375310,OAKPARK SECURITY SYSTEMS LTD,"5,220.00",Sheltered Accommodation,Misc Supplies & Services Costs,10 Jan 2024,2324/10,LGE,M8403,H3106,N,
0000375311,OAKPARK SECURITY SYSTEMS LTD,"2,610.00",Sheltered Accommodation,Misc Supplies & Services Costs,10 Jan 2024,2324/10,LGE,M8407,H3106,N,
0000375312,OAKPARK SECURITY SYSTEMS LTD,"2,610.00",Sheltered Accommodation,Misc Supplies & Services Costs,10 Jan 2024,2324/10,LGE,M8407,H3106,N,
0000375313,OAKPARK SECURITY SYSTEMS LTD,540.00,Paddock House,Contracted Services,10 Jan 2024,2324/10,LGE,M7310,H3042,N,
0000375314,OAKPARK SECURITY SYSTEMS LTD,"1,395.00",Temporary Accommodation,Misc Premises Costs,10 Jan 2024,2324/10,LGE,M1409,H2042,N,
0000375326,OAKPARK SECURITY SYSTEMS LTD,"2,610.00",Sheltered Accommodation,Misc Supplies & Services Costs,10 Jan 2024,2324/11,LGE,M8403,H3106,N,
0000375503,OAKPARK SECURITY SYSTEMS LTD,"2,610.00",Sheltered Accommodation,Misc Supplies & Services Costs,16 Jan 2024,2324/10,LGE,M8401,H3106,N,
0000375504,OAKPARK SECURITY SYSTEMS LTD,"2,610.00",Sheltered Accommodation,Misc Supplies & Services Costs,16 Jan 2024,2324/10,LGE,M8407,H3106,N,
0000375505,OAKPARK SECURITY SYSTEMS LTD,"2,610.00",Sheltered Accommodation,Misc Supplies & Services Costs,16 Jan 2024,2324/10,LGE,M8408,H3106,N,
0000375744,OAKPARK SECURITY SYSTEMS LTD,"2,610.00",Sheltered Accommodation,Misc Supplies & Services Costs,10 Jan 2024,2324/11,LGE,M8406,H3106,N,
0000375745,OAKPARK SECURITY SYSTEMS LTD,742.50,Needham HQ S106 Units,Annual Bldg Maint Contracts,10 Jan 2024,2324/10,LGE,M7700,H2001,N,
0000376142,OAKPARK SECURITY SYSTEMS LTD,"2,610.00",Sheltered Accommodation,Misc Supplies & Services Costs,06 Feb 2024,2324/11,LGE,M8406,H3106,N,
0000376143,OAKPARK SECURITY SYSTEMS LTD,"5,220.00",Sheltered Accommodation,Misc Supplies & Services Costs,06 Feb 2024,2324/11,LGE,M8401,H3106,N,
0000376146,OAKPARK SECURITY SYSTEMS LTD,"5,220.00",Sheltered Accommodation,Misc Supplies & Services Costs,06 Feb 2024,2324/11,LGE,M8408,H3106,N,
0000376229,OAKPARK SECURITY SYSTEMS LTD,"1,395.00",Temporary Accommodation,Misc Premises Costs,08 Feb 2024,2324/11,LGE,M1409,H2042,N,
0000376362,OAKPARK SECURITY SYSTEMS LTD,"2,610.00",Sheltered Accommodation,Misc Supplies & Services Costs,13 Feb 2024,2324/12,LGE,M8406,H3106,N,
0000377136,OAKPARK SECURITY SYSTEMS LTD,"1,305.00",Temporary Accommodation,Misc Premises Costs,07 Mar 2024,2324/12,LGE,M1409,H2042,N,
0000377677,OAKPARK SECURITY SYSTEMS LTD,"2,610.00",Sheltered Accommodation,Misc Supplies & Services Costs,22 Mar 2024,2324/12,LGE,M8407,H3106,N,
0000376189,OBEE CIC,"1,500.00",Grants & Contrbns,Contributions & Donations,07 Feb 2024,2324/11,SME,M2107,H3082,N,
0000377093,OBEE CIC,840.96,Community Fund Projects-Grants,Grants,06 Mar 2024,2324/12,SME,M7115,H3081,N,
0000376555,OFFTON & WILLISHAM VILLAGE HALL,"2,000.00",Grants & Contrbns,Contributions & Donations,20 Feb 2024,2324/11,SME,M2107,H3082,N,
0000374975,OHS JUBILEE PLAYERS,700.00,Grants & Contrbns,Contributions & Donations,22 Dec 2023,2324/10,SME,M2107,H3082,N,
0000375383,OLD NEWTON VILLAGE HALL,912.00,Grants & Contrbns,Contributions & Donations,12 Jan 2024,2324/10,SME,M2107,H3082,N,
0000376312,OLD NEWTON VILLAGE HALL,"3,474.18",S106 Open Spaces Expenditure,Grants,12 Feb 2024,2324/11,SME,M7126,H3081,N,
0000374974,ONEHOUSE PARISH COUNCIL,"1,500.00",Grants & Contrbns,Contributions & Donations,22 Dec 2023,2324/10,SME,M2107,H3082,N,
0000377331,ONEHOUSE PARISH COUNCIL,"5,295.12",CIL,Misc Supplies & Services Costs,13 Mar 2024,2324/12,SME,M0907,H3106,N,
0000376336,"ONEHOUSE, HARLESTON & SHELLAND VH & PFT",635.37,Grants & Contrbns,Contributions & Donations,12 Feb 2024,2324/11,SME,M2107,H3082,N,
0000374718,OPINION RESEARCH SERVICES LTD,"11,487.50",PP&I,Contracted Services,18 Dec 2023,2324/12,SME,M5200,H3042,Y,50%
0000375009,OPUS PEOPLE SOLUTIONS LTD,30.63,Covid-19 Test & Trace,Agency Staff,28 Dec 2023,2324/10,SME,M5104,H1031,N,
0000375009,OPUS PEOPLE SOLUTIONS LTD,448.04,Health & Safety,Agency Staff,28 Dec 2023,2324/10,SME,M5101,H1031,N,
0000375009,OPUS PEOPLE SOLUTIONS LTD,532.13,Climate Change and Sustainabil,Agency Staff,28 Dec 2023,2324/10,SME,M4306,H1031,N,
0000375009,OPUS PEOPLE SOLUTIONS LTD,939.27,Building Services,Agency Staff,28 Dec 2023,2324/10,SME,M8199,H1031,N,
0000375168,OPUS PEOPLE SOLUTIONS LTD,247.50,Climate Change and Sustainabil,Agency Staff,04 Jan 2024,2324/10,SME,M4306,H1031,N,
0000375168,OPUS PEOPLE SOLUTIONS LTD,445.52,Building Services,Agency Staff,04 Jan 2024,2324/10,SME,M8199,H1031,N,
0000375332,OPUS PEOPLE SOLUTIONS LTD,48.87,Devt Management -Applications,Agency Staff,10 Jan 2024,2324/10,SME,M3101,H1031,N,
0000375332,OPUS PEOPLE SOLUTIONS LTD,136.13,Climate Change and Sustainabil,Agency Staff,10 Jan 2024,2324/10,SME,M4306,H1031,N,
0000375332,OPUS PEOPLE SOLUTIONS LTD,183.78,Covid-19 Test & Trace,Agency Staff,10 Jan 2024,2324/10,SME,M5104,A1031,N,
0000375332,OPUS PEOPLE SOLUTIONS LTD,207.34,Health & Safety,Agency Staff,10 Jan 2024,2324/10,SME,M5101,H1031,N,
0000375332,OPUS PEOPLE SOLUTIONS LTD,581.01,Building Services,Agency Staff,10 Jan 2024,2324/10,SME,M8199,H1031,N,
0000375578,OPUS PEOPLE SOLUTIONS LTD,203.12,Health & Safety,Agency Staff,16 Jan 2024,2324/10,SME,M5101,H1031,N,
0000375578,OPUS PEOPLE SOLUTIONS LTD,321.75,Climate Change and Sustainabil,Agency Staff,16 Jan 2024,2324/10,SME,M4306,H1031,N,
0000375578,OPUS PEOPLE SOLUTIONS LTD,389.83,Building Services,Agency Staff,16 Jan 2024,2324/10,SME,M8199,H1031,N,
0000375578,OPUS PEOPLE SOLUTIONS LTD,398.19,Covid-19 Test & Trace,Agency Staff,16 Jan 2024,2324/10,SME,M5104,A1031,N,
0000375776,OPUS PEOPLE SOLUTIONS LTD,48.88,Devt Management -Applications,Agency Staff,23 Jan 2024,2324/10,SME,M3101,H1031,N,
0000375776,OPUS PEOPLE SOLUTIONS LTD,203.14,Health & Safety,Agency Staff,23 Jan 2024,2324/10,SME,M5101,H1031,N,
0000375776,OPUS PEOPLE SOLUTIONS LTD,222.75,Climate Change and Sustainabil,Agency Staff,23 Jan 2024,2324/10,SME,M4306,H1031,N,
0000375776,OPUS PEOPLE SOLUTIONS LTD,306.30,Covid-19 Test & Trace,Agency Staff,23 Jan 2024,2324/10,SME,M5104,H1031,N,
0000375776,OPUS PEOPLE SOLUTIONS LTD,389.81,Building Services,Agency Staff,23 Jan 2024,2324/10,SME,M8199,H1031,N,
0000376072,OPUS PEOPLE SOLUTIONS LTD,122.62,Devt Management -Applications,Agency Staff,30 Jan 2024,2324/11,SME,M3101,H1031,N,
0000376072,OPUS PEOPLE SOLUTIONS LTD,185.63,Climate Change and Sustainabil,Agency Staff,30 Jan 2024,2324/11,SME,M4306,H1031,N,
0000376072,OPUS PEOPLE SOLUTIONS LTD,203.12,Health & Safety,Agency Staff,30 Jan 2024,2324/11,SME,M5101,H1031,N,
0000376072,OPUS PEOPLE SOLUTIONS LTD,353.43,Building Services,Agency Staff,30 Jan 2024,2324/11,SME,M8199,H1031,N,
0000376072,OPUS PEOPLE SOLUTIONS LTD,608.04,Covid-19 Test & Trace,Agency Staff,30 Jan 2024,2324/11,SME,M5104,H1031,N,
0000376248,OPUS PEOPLE SOLUTIONS LTD,77.84,Devt Management -Applications,Agency Staff,06 Feb 2024,2324/11,SME,M3101,H1031,N,
0000376248,OPUS PEOPLE SOLUTIONS LTD,203.15,Health & Safety,Agency Staff,6 Feb 2024,2324/11,SME,M5101,H1031,N,
0000376248,OPUS PEOPLE SOLUTIONS LTD,309.37,Climate Change and Sustainabil,Agency Staff,06 Feb 2024,2324/11,SME,M4306,H1031,N,
0000376248,OPUS PEOPLE SOLUTIONS LTD,389.82,Building Services,Agency Staff,6 Feb 2024,2324/11,SME,M8199,H1031,N,
0000376248,OPUS PEOPLE SOLUTIONS LTD,617.59,Covid-19 Test & Trace,Agency Staff,6 Feb 2024,2324/11,SME,M5104,H1031,N,
0000376419,OPUS PEOPLE SOLUTIONS LTD,203.14,Health & Safety,Agency Staff,13 Feb 2024,2324/11,SME,M5101,H1031,N,
0000376419,OPUS PEOPLE SOLUTIONS LTD,389.81,Building Services,Agency Staff,13 Feb 2024,2324/11,SME,M8199,H1031,N,
0000376419,OPUS PEOPLE SOLUTIONS LTD,712.35,Covid-19 Test & Trace,Agency Staff,13 Feb 2024,2324/11,SME,M5104,H1031,N,
0000376644,OPUS PEOPLE SOLUTIONS LTD,203.14,Health & Safety,Agency Staff,20 Feb 2024,2324/11,SME,M5101,H1031,N,
0000376644,OPUS PEOPLE SOLUTIONS LTD,315.35,Building Services,Agency Staff,20 Feb 2024,2324/11,SME,M8199,H1031,N,
0000376644,OPUS PEOPLE SOLUTIONS LTD,617.59,Covid-19 Test & Trace,Agency Staff,20 Feb 2024,2324/11,SME,M5104,H1031,N,
0000376823,OPUS PEOPLE SOLUTIONS LTD,44.50,Devt Management -Applications,Agency Staff,27 Feb 2024,2324/11,SME,M3101,H1031,N,
0000376823,OPUS PEOPLE SOLUTIONS LTD,203.12,Health & Safety,Agency Staff,27 Feb 2024,2324/11,SME,M5101,H1031,N,
0000376823,OPUS PEOPLE SOLUTIONS LTD,389.82,Building Services,Agency Staff,27 Feb 2024,2324/11,SME,M8199,H1031,N,
0000376823,OPUS PEOPLE SOLUTIONS LTD,617.59,Covid-19 Test & Trace,Agency Staff,27 Feb 2024,2324/11,SME,M5104,H1031,N,
0000377166,OPUS PEOPLE SOLUTIONS LTD,27.80,Devt Management -Applications,Agency Staff,05 Mar 2024,2324/12,SME,M3101,H1031,N,
0000377166,OPUS PEOPLE SOLUTIONS LTD,301.75,Covid-19 Test & Trace,Agency Staff,05 Mar 2024,2324/12,SME,M5104,H1031,N,
0000377166,OPUS PEOPLE SOLUTIONS LTD,469.50,Building Services,Agency Staff,05 Mar 2024,2324/12,SME,M8199,H1031,N,
0000377472,OPUS PEOPLE SOLUTIONS LTD,203.12,Health & Safety,Agency Staff,12 Mar 2024,2324/12,SME,M5101,H1031,N,
0000377472,OPUS PEOPLE SOLUTIONS LTD,772.02,Building Services,Agency Staff,12 Mar 2024,2324/12,SME,M8199,H1031,N,
0000377472,OPUS PEOPLE SOLUTIONS LTD,"1,028.19",Covid-19 Test & Trace,Agency Staff,12 Mar 2024,2324/12,SME,M5104,H1031,N,
0000377624,OPUS PEOPLE SOLUTIONS LTD,301.74,Covid-19 Test & Trace,Agency Staff,20 Mar 2024,2324/12,SME,M5104,H1031,N,
0000377624,OPUS PEOPLE SOLUTIONS LTD,406.26,Health & Safety,Agency Staff,20 Mar 2024,2324/12,SME,M5101,H1031,N,
0000377624,OPUS PEOPLE SOLUTIONS LTD,756.42,Building Services,Agency Staff,20 Mar 2024,2324/12,SME,M8199,H1031,N,
0000377773,OPUS PEOPLE SOLUTIONS LTD,203.15,Health & Safety,Agency Staff,25 Mar 2024,2324/12,SME,M5101,H1031,N,
0000377773,OPUS PEOPLE SOLUTIONS LTD,680.74,Covid-19 Test & Trace,Agency Staff,25 Mar 2024,2324/12,SME,M5104,H1031,N,
0000377773,OPUS PEOPLE SOLUTIONS LTD,865.57,Building Services,Agency Staff,25 Mar 2024,2324/12,SME,M8199,H1031,N,
0000375998,ORBIT HOUSING ASSOCIATION,523.55,Homeless Prevention Fund,Misc Supplies & Services Costs,01 Feb 2024,2324/11,LGE,M1404,H3106,N,
0000377854,ORCHESTRAS LIVE,"15,000.00",Policy & Strategy (H & W),Contributions & Donations,27 Mar 2024,2324/12,SME,M2202,H3082,N,
0000376413,ORIGIN AMENITY SOLUTIONS LTD,"1,109.00",Open Spaces,"Equipment, Tools & Materials",14 Feb 2024,2324/11,SME,M4404,H3031,N,
0000376484,ORWELL HOUSING ASSOCIATION LTD,"12,000.00",Current Assets,AR Refunds,16 Feb 2024,2324/11,LGE,M9002,ZG049,N,
0000375099,ORWELL REMOVALS & STORAGE LTD,513.00,Homeless Prevention Fund,Removal Expenses,02 Jan 2024,2324/10,SME,M1404,H3108,N,
0000375860,ORWELL REMOVALS & STORAGE LTD,"2,711.42",Homeless Prevention Fund,Removal Expenses,29 Jan 2024,2324/10,SME,M1404,H3108,N,
0000375965,OXBURY CHARTERED SURVEYORS,"2,137.50","Aspall Road, Debenham, Stowmar",Prof & Consultancy Fees,31 Jan 2024,2324/11,SME,M7715,H3041,N,
0000376645,OXBURY CHARTERED SURVEYORS,"2,137.50","Aspall Road, Debenham, Stowmar",Prof & Consultancy Fees,22 Feb 2024,2324/11,SME,M7715,H3041,N,
0000377563,OXBURY CHARTERED SURVEYORS,"2,137.50","Aspall Road, Debenham, Stowmar",Prof & Consultancy Fees,19 Mar 2024,2324/12,SME,M7715,H3041,N,
0000377603,P TUCKWELL LTD,"1,711.78",Open Spaces,Plant & Vehicle - Other costs,19 Mar 2024,2324/12,SME,M4404,H4015,N,
0000375528,PALGRAVE PARISH COUNCIL,"1,699.00",Grants & Contrbns,Contributions & Donations,17 Jan 2024,2324/10,SME,M2107,H3082,N,
0000375525,PARK AVENUE RECRUITMENT LTD,"1,775.00",Devt Management - Apps,Prof & Consultancy Fees,17 Jan 2024,2324/10,SME,M3101,A3041,Y,45%
0000376801,PARK AVENUE RECRUITMENT LTD,"1,600.00",Devt Management - Apps,Prof & Consultancy Fees,28 Feb 2024,2324/12,SME,M3101,A3041,Y,45%
0000375626,PARKYNS LETTINGS BURY ST EDMUNDS,"1,300.00",Guaranteed Rent Scheme,Rent Payable,22 Jan 2024,2324/10,SME,M1414,H2023,N,
0000376530,PARKYNS LETTINGS BURY ST EDMUNDS,"1,300.00",Guaranteed Rent Scheme,Rent Payable,19 Feb 2024,2324/11,SME,M1414,H2023,N,
0000377539,PARKYNS LETTINGS BURY ST EDMUNDS,"1,300.00",Guaranteed Rent Scheme,Rent Payable,19 Mar 2024,2324/12,SME,M1414,H2023,N,
0000375044,PAUL WRIGHT & CO,575.00,Guaranteed Rent Scheme,Rent Payable,02 Jan 2024,2324/10,SME,M1414,H2023,N,
0000375047,PAUL WRIGHT & CO,775.00,Guaranteed Rent Scheme,Rent Payable,02 Jan 2024,2324/10,SME,M1414,H2023,N,
0000375048,PAUL WRIGHT & CO,695.00,Guaranteed Rent Scheme,Rent Payable,02 Jan 2024,2324/10,SME,M1414,H2023,N,
0000375094,PAUL WRIGHT & CO,775.00,Guaranteed Rent Scheme,Rent Payable,02 Jan 2024,2324/10,SME,M1414,H2023,N,
0000375223,PAUL WRIGHT & CO,525.00,Guaranteed Rent Scheme,Rent Payable,08 Jan 2024,2324/10,SME,M1414,H2023,N,
0000375419,PAUL WRIGHT & CO,577.50,Guaranteed Rent Scheme,Rent Payable,15 Jan 2024,2324/10,SME,M1414,H2023,N,
0000375420,PAUL WRIGHT & CO,850.00,Guaranteed Rent Scheme,Rent Payable,15 Jan 2024,2324/10,SME,M1414,H2023,N,
0000375848,PAUL WRIGHT & CO,695.00,Guaranteed Rent Scheme,Rent Payable,29 Jan 2024,2324/10,SME,M1414,H2023,N,
0000375854,PAUL WRIGHT & CO,575.00,Guaranteed Rent Scheme,Rent Payable,29 Jan 2024,2324/10,SME,M1414,H2023,N,
0000375888,PAUL WRIGHT & CO,775.00,Guaranteed Rent Scheme,Rent Payable,30 Jan 2024,2324/10,SME,M1414,H2023,N,
0000376090,PAUL WRIGHT & CO,775.00,Guaranteed Rent Scheme,Rent Payable,05 Feb 2024,2324/11,SME,M1414,H2023,N,
0000376118,PAUL WRIGHT & CO,525.00,Guaranteed Rent Scheme,Rent Payable,05 Feb 2024,2324/11,SME,M1414,H2023,N,
0000376313,PAUL WRIGHT & CO,850.00,Guaranteed Rent Scheme,Rent Payable,12 Feb 2024,2324/11,SME,M1414,H2023,N,
0000376529,PAUL WRIGHT & CO,577.50,Guaranteed Rent Scheme,Rent Payable,19 Feb 2024,2324/11,SME,M1414,H2023,N,
0000376735,PAUL WRIGHT & CO,575.00,Guaranteed Rent Scheme,Rent Payable,27 Feb 2024,2324/11,SME,M1414,H2023,N,
0000376739,PAUL WRIGHT & CO,695.00,Guaranteed Rent Scheme,Rent Payable,27 Feb 2024,2324/11,SME,M1414,H2023,N,
0000376811,PAUL WRIGHT & CO,625.00,Guaranteed Rent Scheme,Rent Payable,29 Feb 2024,2324/12,SME,M1414,H2023,N,
0000376811,PAUL WRIGHT & CO,"1,500.00",Guaranteed Rent Scheme,Misc Supplies & Services Costs,29 Feb 2024,2324/12,SME,M1414,H3106,N,
0000376867,PAUL WRIGHT & CO,775.00,Guaranteed Rent Scheme,Rent Payable,04 Mar 2024,2324/12,SME,M1414,H2023,N,
0000376951,PAUL WRIGHT & CO,775.00,Guaranteed Rent Scheme,Rent Payable,04 Mar 2024,2324/12,SME,M1414,H2023,N,
0000376970,PAUL WRIGHT & CO,525.00,Guaranteed Rent Scheme,Rent Payable,04 Mar 2024,2324/12,SME,M1414,H2023,N,
0000377525,PAUL WRIGHT & CO,577.50,Guaranteed Rent Scheme,Rent Payable,19 Mar 2024,2324/12,SME,M1414,H2023,N,
0000377527,PAUL WRIGHT & CO,850.00,Guaranteed Rent Scheme,Rent Payable,19 Mar 2024,2324/12,SME,M1414,H2023,N,
0000377751,PAUL WRIGHT & CO,625.00,Guaranteed Rent Scheme,Rent Payable,26 Mar 2024,2324/12,SME,M1414,H2023,N,
0000423708,PAUL WRIGHT & CO,795.00,Guaranteed Rent Scheme,Rent Payable,09 Jan 2024,2324/10,SME,M1414,H2023,N,
0000423708,PAUL WRIGHT & CO,"1,500.00",Guaranteed Rent Scheme,Misc Supplies & Services Costs,09 Jan 2024,2324/10,SME,M1414,H3106,N,
0000375268,PAY 360 LIMITED,"7,269.39",Bank Chgs,Bank Charges,09 Jan 2024,2324/10,LGE,M6102,H3046,N,
0000375773,PAY 360 LIMITED,655.00,ICT,Contracted Services,25 Jan 2024,2324/10,LGE,M6200,H3042,Y,50%
0000375359,PENNA PLC,"12,390.00",Health & Safety,Agency Staff,10 Jan 2024,2324/10,SME,M5101,A1031,Y,50%
0000375851,PENNA PLC,"15,045.00",Health & Safety,Agency Staff,04 Dec 2023,2324/11,SME,M5101,A1031,Y,50%
0000376136,PENNA PLC,"14,514.00",Health & Safety,Agency Staff,02 Feb 2024,2324/11,SME,M5101,H1031,Y,50%
0000376993,PENNA PLC,"14,868.00",Health & Safety,Agency Staff,04 Mar 2024,2324/12,SME,M5101,H1031,Y,50%
0000375257,PENTACO CONSTRUCTION LTD,"181,389.99",Stowmarket Middle School,Major Contracts,22 Dec 2023,2324/10,SME,M7696,H6001,N,
0000375974,PENTACO CONSTRUCTION LTD,"105,730.00",Stowmarket Middle School,Major Contracts,29 Jan 2024,2324/11,SME,M7696,H6001,N,
0000376835,PENTACO CONSTRUCTION LTD,"129,980.00",Stowmarket Middle School,Major Contracts,27 Feb 2024,2324/12,SME,M7696,H6001,N,
0000375966,PERMISERV LIMITED,653.00,Jnt Waste Contract,"Equipment, Tools & Materials",31 Jan 2024,2324/11,SME,M4501,H3031,Y,50%
0000376335,PETTIWARD HALL MANAGEMENT COMMITTEE,"1,200.00",Grants & Contrbns,Contributions & Donations,12 Feb 2024,2324/11,SME,M2107,H3082,N,
0000375019,PORTAL PLAN QUEST LTD,"1,848.00",Devt Management - Apps,Planning Fees,02 Jan 2024,2324/10,SME,M3101,H9112,N,
0000376381,PORTAL PLAN QUEST LTD,"1,156.00",Devt Management - Apps,Planning Fees,14 Feb 2024,2324/11,SME,M3101,H9112,N,
0000375580,PR HOBBS LTD T/A SUFFOLK WINDOWS,"3,167.92",Renovation/Home Repair Grants,Grants,18 Jan 2024,2324/10,SME,M7005,H3081,N,
0000376808,PREMIER EDUCATION,"1,043.64",Holiday Activity Fund,"Equipment, Tools & Materials",02 Feb 2024,2324/12,SME,M2113,H3031,N,
0000374838,PRO-FLAT SPECIALIST SERVICES LTD,940.00,Building Services,Repairs,19 Dec 2023,2324/10,SME,M8199,H2010,N,
0000374839,PRO-FLAT SPECIALIST SERVICES LTD,670.00,Building Services,Repairs,19 Dec 2023,2324/10,SME,M8199,H2010,N,
0000375575,PRO-FLAT SPECIALIST SERVICES LTD,994.00,Building Services,Repairs,18 Jan 2024,2324/10,SME,M8199,H2010,N,
0000375738,PRO-FLAT SPECIALIST SERVICES LTD,"1,180.00",Building Services,Repairs,24 Jan 2024,2324/12,SME,M8199,H2010,N,
0000375739,PRO-FLAT SPECIALIST SERVICES LTD,"1,458.00",Building Services,Repairs,24 Jan 2024,2324/11,SME,M8199,H2010,N,
0000375937,PRO-FLAT SPECIALIST SERVICES LTD,"4,062.00",Building Services,Repairs,29 Jan 2024,2324/11,SME,M8199,H2010,N,
0000377636,PRO-FLAT SPECIALIST SERVICES LTD,"1,287.00",Building Services,Repairs,21 Mar 2024,2324/12,SME,M8199,H2010,N,
0000376725,PUBLIC SEWER SERVICES,"1,425.00",Building Services,Repairs,22 Feb 2024,2324/12,SME,M8199,H2010,N,
0000377356,PUBLIC SEWER SERVICES,"3,675.00",Building Services,Repairs,16 Feb 2024,2324/12,SME,M8199,H2010,N,
0000377361,PUBLIC SEWER SERVICES,"1,355.80",Building Services,Repairs,13 Mar 2024,2324/12,SME,M8199,H2010,N,
0000377521,PUBLIC SEWER SERVICES,"7,103.20",Unadopted Drains & Sewers,Improvements,31 Oct 2023,2324/12,SME,M7621,H2051,N,
0000377734,PUBLIC SEWER SERVICES,"1,725.00",Building Services,Repairs,21 Mar 2024,2324/12,SME,M8199,H2010,N,
0000376380,QUADIENT UK LIMITED,"1,001.73",Central Postal Serv,Postage,05 Feb 2024,2324/11,LGE,M5702,A3025,Y,50%
0000377301,QUADIENT UK LIMITED,"1,500.00",Central Postal Serv,Postage,05 Mar 2024,2324/12,LGE,M5702,H3025,Y,50%
0000375274,R G CARTER SOUTHERN,"2,122.18",Strategic Investment Fund,Prof & Consultancy Fees,15 Dec 2023,2324/10,LGE,M7314,H3041,N,
0000376528,R G CARTER SOUTHERN,"32,138.70",Assets & Development,Prof & Consultancy Fees,19 Feb 2024,2324/11,LGE,M6400,H3041,N,
0000375713,RATTLESDEN COMMUNITY COUNCIL,"4,000.00",S106 Open Spaces Expenditure,Grants,23 Jan 2024,2324/10,SME,M7126,H3081,N,
0000375915,RATTLESDEN COMMUNITY COUNCIL,"2,000.00",S106 Open Spaces Expenditure,Grants,30 Jan 2024,2324/11,SME,M7126,H3081,N,
0000377574,RATTLESDEN PRE-SCHOOL,779.65,Grants & Contrbns,Contributions & Donations,19 Mar 2024,2324/12,SME,M2107,H3082,N,
0000375159,REAL CONSULTING (COST&PROJECT MANA) LLP,"8,500.00",SHELF Project,Prof & Consultancy Fees,29 Dec 2023,2324/10,SME,M3563,H3041,N,
0000377550,REDLINGFIELD PARISH MEETING,"1,000.00",Grants & Contrbns,Contributions & Donations,19 Mar 2024,2324/12,SME,M2107,H3082,N,
0000377543,RENDALL AND RITTNER LTD,"1,079.75",Tenancy Services,Other Service Charges,01 Mar 2024,2324/12,SME,M8500,H3164,N,
0000376763,RESIDENTIALLY CHARTERED SURVEYORS,800.00,Homes for Ukraine,Prof & Consultancy Fees,28 Feb 2024,2324/12,SME,M1312,H3041,N,
0000377580,RESIDENTIALLY CHARTERED SURVEYORS,720.00,Loraine Way Bramford  S106,Prof & Consultancy Fees,20 Mar 2024,2324/12,SME,M7712,H3041,N,
0000376343,RICHARD BUXTON SOLICITORS,"9,500.00",Devt Management - Apps,Legal expenses - Costs awarded,13 Feb 2024,2324/11,SME,M3101,H3161,N,
0000375071,RICHARD UTTING ASSOCIATES LLP,"1,525.00","Harleston Corner, Harleston",Major Contracts,31 Dec 2023,2324/10,SME,M7718,H6001,N,
0000375169,RICHARD UTTING ASSOCIATES LLP,"2,432.00",Paddock House Eye,Prof & Consultancy Fees,31 Dec 2023,2324/10,SME,M7686,H3041,N,
0000375184,RICHARD UTTING ASSOCIATES LLP,"2,124.75",Stowmarket Middle School,Prof & Consultancy Fees,31 Dec 2023,2324/10,SME,M7309,H3041,N,
0000375508,RICHARD UTTING ASSOCIATES LLP,862.50,Paddock House Eye,Prof & Consultancy Fees,09 Jan 2024,2324/10,SME,M7686,H3041,N,
0000375509,RICHARD UTTING ASSOCIATES LLP,"1,150.00",Paddock House Eye,Prof & Consultancy Fees,09 Jan 2024,2324/10,SME,M7686,H3041,N,
0000375975,RICHARD UTTING ASSOCIATES LLP,"2,124.74",Stowmarket Middle School,Prof & Consultancy Fees,31 Jan 2024,2324/11,SME,M7309,H3041,N,
0000376147,RICHARD UTTING ASSOCIATES LLP,"2,432.00",Paddock House Eye,Prof & Consultancy Fees,31 Jan 2024,2324/11,SME,M7686,H3041,N,
0000376348,RICHARD UTTING ASSOCIATES LLP,"1,955.00","Harleston Corner, Harleston",Prof & Consultancy Fees,18 Jan 2024,2324/11,SME,M7718,H3041,N,
0000376353,RICHARD UTTING ASSOCIATES LLP,"1,525.00","Harleston Corner, Harleston",Major Contracts,31 Jan 2024,2324/11,SME,M7718,H6001,N,
0000377189,RICHARD UTTING ASSOCIATES LLP,"2,470.00",Paddock House Eye,Prof & Consultancy Fees,29 Feb 2024,2324/12,SME,M7686,H3041,N,
0000377476,RICHARD WILLS TRAINING ASSOCIATES LTD,"3,768.00",Organisational Devt,Corporate Training,18 Mar 2024,2324/12,ST,M5100,H1045,Y,50%
0000423768,RICKINGHALL INFERIOR AND RICKINGHALL SUP,541.84,Street & Major Road Cleansing,Contributions to other Bodies,06 Feb 2024,2324/11,SME,M4402,H3083,N,
0000375330,RICKINGHALL VILLAGE HALL,"3,045.69",Community Fund Projects-Grants,Grants,11 Jan 2024,2324/10,SME,M7115,H3081,N,
0000375366,RICKINGHALL VILLAGE HALL,559.81,S106 Open Spaces Expenditure,Grants,12 Jan 2024,2324/10,SME,M7126,H3081,N,
0000376685,RICKINGHALL VILLAGE HALL,"6,954.31",Community Fund Projects-Grants,Grants,26 Feb 2024,2324/11,SME,M7115,H3081,N,
0000423890,RICKINGHALL VILLAGE HALL,510.75,Bring Sites,Contributions & Donations,19 Mar 2024,2324/12,SME,M4504,H3082,N,
0000423775,RIX PETROLEUM (EAST ANGLIA) LTD,"5,196.34",Open Spaces,Plant & Vehicle Fuel,01 Feb 2024,2324/11,SME,M4404,H4014,N,
0000375911,ROYAL MAIL,870.00,Central Postal Serv,Postage,23 Jan 2024,2324/10,LGE,M5702,H3025,Y,50%
0000376834,RPS-RETAIL PROJECT SOLUTIONS LTD,"10,065.73",Changing Places Facilities,Prof & Consultancy Fees,26 Feb 2024,2324/12,SME,M3564,H3041,N,
0000377501,RPS-RETAIL PROJECT SOLUTIONS LTD,"29,155.98",Changing Places Facilities,Prof & Consultancy Fees,12 Mar 2024,2324/12,SME,M3564,H3041,N,
0000374481,SAC COMMERCIAL LTD,992.80,Economy & Business,Prof & Consultancy Fees,08 Dec 2023,2324/12,LGE,M3501,H3041,Y,50%
0000375086,SACKERS LTD,"1,909.28",Building Services,Waste Disposal,31 Dec 2023,2324/10,SME,M8199,H3068,Y,50%
0000376387,SACKERS LTD,"3,305.60",Building Services,Waste Disposal,31 Jan 2024,2324/11,SME,M8199,H3068,Y,50%
0000376388,SACKERS LTD,-90.00,Building Services,Waste Disposal,12 Feb 2024,2324/11,SME,M8199,A3068,Y,50%
0000376958,SACKERS LTD,"2,462.71",Building Services,Waste Disposal,29 Feb 2024,2324/12,SME,M8199,A3068,Y,50%
0000375045,PRIVATE LANDLORD,"1,300.00",Guaranteed Rent Scheme,Rent Payable,02 Jan 2024,2324/10,ST,M1414,H2023,N,
0000375821,PRIVATE LANDLORD,"1,300.00",Guaranteed Rent Scheme,Rent Payable,29 Jan 2024,2324/10,ST,M1414,H2023,N,
0000376952,PRIVATE LANDLORD,"1,300.00",Guaranteed Rent Scheme,Rent Payable,04 Mar 2024,2324/12,ST,M1414,H2023,N,
0000375322,SANDY LANE NURSERY,"5,100.98",Open Spaces,Horticultural Purchases,24 Nov 2023,2324/10,SME,M4404,A3035,Y,50%
0000376550,SANDY LANE NURSERY,"2,460.45",Open Spaces,Horticultural Purchases,23 Feb 2024,2324/12,SME,M4404,A3035,Y,50%
0000377622,SARAH RESTALL CONSULTING,"1,500.00",Organisational Devt,Corporate Training,06 Mar 2024,2324/12,ST,M5100,H1045,Y,50%
0000377540,SATCHELL MORAN SOLICITORS LTD,"16,725.45",Building Services,Payments to Tenants,19 Mar 2024,2324/12,SME,M8199,H7021,N,
0000423789,SATCHELL MORAN SOLICITORS LTD,"1,500.00",Building Services,Payments to Tenants,23 Feb 2024,2324/11,SME,M8199,H7021,N,
0000375686,SCOTTISH POWER,368.18,HRA Strategic Property,Gas,13 Aug 2023,2324/10,LGE,M8001,H2032,N,
0000375686,SCOTTISH POWER,368.19,HRA Strategic Property,Electricity,13 Aug 2023,2324/10,LGE,M8001,H2031,N,
0000375687,SCOTTISH POWER,402.86,HRA Strategic Property,Gas,20 Dec 2023,2324/10,LGE,M8001,H2032,N,
0000375687,SCOTTISH POWER,402.86,HRA Strategic Property,Electricity,20 Dec 2023,2324/10,LGE,M8001,H2031,N,
0000375689,SCOTTISH POWER,807.41,HRA Strategic Property,Electricity,15 Nov 2023,2324/10,LGE,M8001,H2031,N,
0000375689,SCOTTISH POWER,807.42,HRA Strategic Property,Gas,15 Nov 2023,2324/10,LGE,M8001,H2032,N,
0000375691,SCOTTISH POWER,275.19,HRA Strategic Property,Electricity,20 Sep 2023,2324/10,LGE,M8001,H2031,N,
0000375691,SCOTTISH POWER,275.20,HRA Strategic Property,Gas,20 Sep 2023,2324/10,LGE,M8001,H2032,N,
0000375692,SCOTTISH POWER,411.34,HRA Strategic Property,Electricity,20 Dec 2023,2324/10,LGE,M8001,H2031,N,
0000375692,SCOTTISH POWER,411.34,HRA Strategic Property,Gas,20 Dec 2023,2324/10,LGE,M8001,H2032,N,
0000375693,SCOTTISH POWER,279.80,HRA Strategic Property,Electricity,15 Nov 2023,2324/10,LGE,M8001,H2031,N,
0000375693,SCOTTISH POWER,279.81,HRA Strategic Property,Gas,15 Nov 2023,2324/10,LGE,M8001,H2032,N,
0000375695,SCOTTISH POWER,447.41,HRA Strategic Property,Electricity,15 Nov 2023,2324/10,LGE,M8001,H2031,N,
0000375695,SCOTTISH POWER,447.41,HRA Strategic Property,Gas,15 Nov 2023,2324/10,LGE,M8001,H2032,N,
0000375696,SCOTTISH POWER,357.82,HRA Strategic Property,Gas,20 Dec 2023,2324/10,LGE,M8001,H2032,N,
0000375696,SCOTTISH POWER,357.82,HRA Strategic Property,Electricity,20 Dec 2023,2324/10,LGE,M8001,H2031,N,
0000375697,SCOTTISH POWER,413.93,HRA Strategic Property,Electricity,20 Dec 2023,2324/10,LGE,M8001,H2031,N,
0000375697,SCOTTISH POWER,413.94,HRA Strategic Property,Gas,20 Dec 2023,2324/10,LGE,M8001,H2032,N,
0000375698,SCOTTISH POWER,525.36,HRA Strategic Property,Electricity,15 Nov 2023,2324/10,LGE,M8001,H2031,N,
0000375698,SCOTTISH POWER,525.37,HRA Strategic Property,Gas,15 Nov 2023,2324/10,LGE,M8001,H2032,N,
0000375699,SCOTTISH POWER,381.06,HRA Strategic Property,Electricity,20 Dec 2023,2324/10,LGE,M8001,H2031,N,
0000375699,SCOTTISH POWER,381.06,HRA Strategic Property,Gas,20 Dec 2023,2324/10,LGE,M8001,H2032,N,
0000375700,SCOTTISH POWER,612.41,HRA Strategic Property,Gas,15 Nov 2023,2324/10,LGE,M8001,H2032,N,
0000375700,SCOTTISH POWER,612.41,HRA Strategic Property,Electricity,15 Nov 2023,2324/10,LGE,M8001,H2031,N,
0000375701,SCOTTISH POWER,338.35,HRA Strategic Property,Electricity,09 Jan 2024,2324/10,LGE,M8001,H2031,N,
0000375701,SCOTTISH POWER,338.35,HRA Strategic Property,Gas,09 Jan 2024,2324/10,LGE,M8001,H2032,N,
0000375469,SEAGER HOME SOLUTIONS,"70,137.15",Kitchens/Bathrooms,Major Contracts,12 Jan 2024,2324/10,SME,M7605,H6001,N,
0000375624,SEAGER HOME SOLUTIONS,"7,883.01",Kitchens/Bathrooms,Major Contracts,09 Jan 2024,2324/10,SME,M7605,H6001,N,
0000375882,SEAGER HOME SOLUTIONS,"7,500.00",Mand Disabled Facilities Grant,Grants,30 Jan 2024,2324/10,SME,M7001,H3081,N,
0000376216,SEAGER HOME SOLUTIONS,"54,135.22",Kitchens/Bathrooms,Major Contracts,07 Feb 2024,2324/11,SME,M7605,H6001,N,
0000376219,SEAGER HOME SOLUTIONS,"8,182.00",Mand Disabled Facilities Grant,Grants,07 Feb 2024,2324/11,SME,M7001,H3081,N,
0000376453,SEAGER HOME SOLUTIONS,"2,423.73",Voids Maintenance,Repairs,16 Feb 2024,2324/12,SME,M8105,H2010,N,
0000376453,SEAGER HOME SOLUTIONS,"10,336.45",Major Imps,Repairs,16 Feb 2024,2324/12,SME,M7617,H2010,N,
0000376761,SEAGER HOME SOLUTIONS,"76,933.47",Kitchens/Bathrooms,Major Contracts,27 Feb 2024,2324/12,SME,M7605,H6001,N,
0000423718,SEFE ENERGY LIMITED,957.12,Creeting Rd Depot,Gas,15 Jan 2024,2324/10,LGE,M1103,H2032,Y,50%
0000423718,SEFE ENERGY LIMITED,30.90,Headquarters General,Gas,15 Jan 2024,2324/10,LGE,M1102,H2032,N,
0000423718,SEFE ENERGY LIMITED,134.75,HRA Strategic Property,Gas,15 Jan 2024,2324/10,LGE,M8001,H2032,N,
0000423718,SEFE ENERGY LIMITED,"9,424.43",Leisure Contract,Gas,15 Jan 2024,2324/10,LGE,M2203,H2032,N,
0000423718,SEFE ENERGY LIMITED,13.58,Open Spaces,Gas,15 Jan 2024,2324/10,LGE,M4404,H2032,N,
0000423718,SEFE ENERGY LIMITED,"18,405.10",Sheltered Accommodation,Gas,15 Jan 2024,2324/10,LGE,M8426,H2032,N,
0000423718,SEFE ENERGY LIMITED,985.72,Temporary Accommodation,Gas,15 Jan 2024,2324/10,LGE,M8498,H2032,N,
0000423718,SEFE ENERGY LIMITED,961.04,Tenancy Services,Gas,15 Jan 2024,2324/10,LGE,M8500,H2032,N,
0000423803,SEFE ENERGY LIMITED,"1,108.20",Creeting Rd Depot,Gas,16 Feb 2024,2324/12,LGE,M1103,H2032,Y,50%
0000423803,SEFE ENERGY LIMITED,30.90,Headquarters General,Gas,16 Feb 2024,2324/12,LGE,M1102,H2032,N,
0000423803,SEFE ENERGY LIMITED,138.83,HRA Strategic Property,Gas,16 Feb 2024,2324/12,LGE,M8001,H2032,N,
0000423803,SEFE ENERGY LIMITED,"9,532.10",Leisure Contract,Gas,16 Feb 2024,2324/12,LGE,M2203,H2032,N,
0000423803,SEFE ENERGY LIMITED,13.58,Open Spaces,Gas,16 Feb 2024,2324/12,LGE,M4404,H2032,N,
0000423803,SEFE ENERGY LIMITED,"20,105.01",Sheltered Accommodation,Gas,16 Feb 2024,2324/12,LGE,M8426,H2032,N,
0000423803,SEFE ENERGY LIMITED,909.52,Temporary Accommodation,Gas,16 Feb 2024,2324/12,LGE,M8498,H2032,N,
0000423803,SEFE ENERGY LIMITED,"1,078.03",Tenancy Services,Gas,16 Feb 2024,2324/12,LGE,M8500,H2032,N,
0000423894,SEFE ENERGY LIMITED,881.55,Creeting Rd Depot,Gas,15 Mar 2024,2324/12,LGE,M1103,A2032,Y,50%
0000423894,SEFE ENERGY LIMITED,28.91,Headquarters General,Gas,15 Mar 2024,2324/12,LGE,M1102,H2032,N,
0000423894,SEFE ENERGY LIMITED,111.60,HRA Strategic Property,Gas,15 Mar 2024,2324/12,LGE,M8001,H2032,N,
0000423894,SEFE ENERGY LIMITED,"8,715.91",Leisure Contract,Gas,15 Mar 2024,2324/12,LGE,M2203,H2032,N,
0000423894,SEFE ENERGY LIMITED,12.70,Open Spaces,Gas,15 Mar 2024,2324/12,LGE,M4404,H2032,N,
0000423894,SEFE ENERGY LIMITED,"16,326.18",Sheltered Accommodation,Gas,15 Mar 2024,2324/12,LGE,M8426,H2032,N,
0000423894,SEFE ENERGY LIMITED,591.49,Temporary Accommodation,Gas,15 Mar 2024,2324/12,LGE,M8498,H2032,N,
0000423894,SEFE ENERGY LIMITED,896.22,Tenancy Services,Gas,15 Mar 2024,2324/12,LGE,M8500,H2032,N,
0000375192,SEQUENCE UK LTD (WILLIAM H BROWN),"1,500.00","Cedars Park C & D, Stowmarket",Prof & Consultancy Fees,04 Jan 2024,2324/10,LGE,M7701,H3041,N,
0000376059,SEQUENCE UK LTD (WILLIAM H BROWN),"1,500.00",Eves Meadow Haughley S106,Prof & Consultancy Fees,02 Feb 2024,2324/11,LGE,M7698,H3041,N,
0000376140,SEQUENCE UK LTD (WILLIAM H BROWN),"1,500.00","The Broadway, Badwell Ash",Prof & Consultancy Fees,06 Feb 2024,2324/11,LGE,M7711,H3041,N,
0000376531,SEQUENCE UK LTD (WILLIAM H BROWN),"1,500.00","Cedars Park C & D, Stowmarket",Prof & Consultancy Fees,16 Feb 2024,2324/11,LGE,M7701,H3041,N,
0000376532,SEQUENCE UK LTD (WILLIAM H BROWN),"1,500.00","Cedars Park C & D, Stowmarket",Prof & Consultancy Fees,19 Feb 2024,2324/11,LGE,M7701,H3041,N,
0000376971,SEQUENCE UK LTD (WILLIAM H BROWN),"1,500.00",Needham Market Middle School,Prof & Consultancy Fees,02 Mar 2024,2324/12,LGE,M7304,H3041,N,
0000375160,SERCO LTD,"13,707.74",Open Spaces,Plant & Vehicle Fuel,03 Jan 2024,2324/10,LGE,M4404,A4014,Y,50%
0000375161,SERCO LTD,"4,587.00",Domestic Waste,Refuse Contract,03 Jan 2024,2324/10,LGE,M4503,H6002,Y,50%
0000375162,SERCO LTD,"27,482.56",Trade Waste,Refuse Contract,03 Jan 2024,2324/10,LGE,M4505,H6002,Y,45%
0000375162,SERCO LTD,"97,030.98",Garden Waste,Refuse Contract,03 Jan 2024,2324/10,LGE,M4506,A6002,Y,48%
0000375162,SERCO LTD,"351,945.86",Domestic Waste,Refuse Contract,03 Jan 2024,2324/10,LGE,M4503,A6002,Y,47%
0000375163,SERCO LTD,"10,000.00",Jnt Waste Contract,Plant & Vehicle Fuel,03 Jan 2024,2324/10,LGE,M4501,H4014,Y,50%
0000376114,SERCO LTD,"4,587.00",Domestic Waste,Refuse Contract,02 Feb 2024,2324/11,LGE,M4503,H6002,Y,50%
0000376116,SERCO LTD,"27,482.56",Trade Waste,Refuse Contract,02 Feb 2024,2324/11,LGE,M4505,H6002,Y,45%
0000376116,SERCO LTD,"97,030.98",Garden Waste,Refuse Contract,02 Feb 2024,2324/11,LGE,M4506,A6002,Y,48%
0000376116,SERCO LTD,"351,945.86",Domestic Waste,Refuse Contract,02 Feb 2024,2324/11,LGE,M4503,A6002,Y,47%
0000376117,SERCO LTD,"10,000.00",Jnt Waste Contract,Plant & Vehicle Fuel,02 Feb 2024,2324/11,LGE,M4501,H4014,Y,50%
0000376268,SERCO LTD,"18,724.25",Open Spaces,Plant & Vehicle Fuel,02 Feb 2024,2324/12,LGE,M4404,H4014,N,
0000376420,SERCO LTD,290.47,Open Spaces,Plant & Vehicle - Other costs,14 Feb 2024,2324/12,LGE,M4404,H4015,N,
0000376420,SERCO LTD,"2,618.29",Street & Major Road Cleansing,Plant & Vehicle - Other costs,14 Feb 2024,2324/12,LGE,M4402,H4015,N,
0000377173,SERCO LTD,"16,182.96",Open Spaces,Plant & Vehicle Fuel,06 Mar 2024,2324/12,LGE,M4404,H4014,Y,50%
0000377174,SERCO LTD,"10,000.00",Jnt Waste Contract,Plant & Vehicle Fuel,06 Mar 2024,2324/12,LGE,M4501,H4014,Y,50%
0000377175,SERCO LTD,"4,587.00",Domestic Waste,Refuse Contract,06 Mar 2024,2324/12,LGE,M4503,H6002,Y,50%
0000377180,SERCO LTD,"27,482.56",Trade Waste,Refuse Contract,06 Mar 2024,2324/12,LGE,M4505,H6002,Y,45%
0000377180,SERCO LTD,"97,030.98",Garden Waste,Refuse Contract,06 Mar 2024,2324/12,LGE,M4506,A6002,Y,48%
0000377180,SERCO LTD,"351,945.86",Domestic Waste,Refuse Contract,06 Mar 2024,2324/12,LGE,M4503,A6002,Y,47%
0000377533,SERCO LTD,"7,805.00",Domestic Waste,Refuse Contract,12 Mar 2024,2324/12,LGE,M4503,H6002,Y,50%
0000377534,SERCO LTD,"4,250.00",Domestic Waste,Refuse Contract,13 Mar 2024,2324/12,LGE,M4503,H6002,Y,50%
0000375190,SHELTER TRAINING,"12,500.00",Homeless Prevention Fund,Transfers from reserves,11 Dec 2023,2324/10,LGE,M1404,A8624,Y,50%
0000375095,SIGNIX LTD,"141,543.94",Rewiring,Repairs,02 Jan 2024,2324/10,SME,M7601,H2010,N,
0000375096,SIGNIX LTD,"93,352.59",Rewiring,Repairs,02 Jan 2024,2324/10,SME,M7601,H2010,N,
0000375681,SIGNIX LTD,"17,549.98",Rewiring,Repairs,23 Jan 2024,2324/11,SME,M7601,H2010,N,
0000375682,SIGNIX LTD,"177,641.47",Rewiring,Repairs,23 Jan 2024,2324/11,SME,M7601,H2010,N,
0000375683,SIGNIX LTD,"150,563.40",Rewiring,Repairs,23 Jan 2024,2324/11,SME,M7601,H2010,N,
0000375791,SIGNIX LTD,"74,644.07",Rewiring,Repairs,25 Jan 2024,2324/11,SME,M7601,H2010,N,
0000375792,SIGNIX LTD,"33,626.64",Rewiring,Repairs,25 Jan 2024,2324/11,SME,M7601,H2010,N,
0000375809,SIGNIX LTD,"11,543.87",Rewiring,Repairs,26 Jan 2024,2324/11,SME,M7601,H2010,N,
0000375810,SIGNIX LTD,"93,505.18",Rewiring,Repairs,26 Jan 2024,2324/11,SME,M7601,H2010,N,
0000375811,SIGNIX LTD,"89,394.84",Rewiring,Repairs,26 Jan 2024,2324/11,SME,M7601,H2010,N,
0000376519,SIGNIX LTD,"147,688.29",Rewiring,Repairs,19 Feb 2024,2324/12,SME,M7601,H2010,N,
0000376607,SIGNIX LTD,"134,395.51",Rewiring,Repairs,21 Feb 2024,2324/12,SME,M7601,H2010,N,
0000377156,SIGNIX LTD,"4,228.73",Rewiring,Repairs,07 Mar 2024,2324/12,SME,M7601,H2010,N,
0000377388,SIGNIX LTD,"197,622.94",Rewiring,Repairs,15 Mar 2024,2324/12,SME,M7601,H2010,N,
0000377389,SIGNIX LTD,"153,770.89",Rewiring,Repairs,15 Mar 2024,2324/12,SME,M7601,H2010,N,
0000377724,SIGNIX LTD,"80,794.31",Rewiring,Repairs,21 Mar 2024,2324/12,SME,M7601,H2010,N,
0000375884,SLM COMMUNITY LEISURE CHARITABLE TRUST,993.00,Grants & Contrbns,Contributions & Donations,30 Jan 2024,2324/10,SME,M2107,H3082,N,
0000376720,SOLACE GROUP LTD,"1,314.46",Cost of Democracy,Member's Courses & Conferences,26 Feb 2024,2324/11,SME,M5701,A3097,Y,50%
0000376495,SOMERSHAM & DISTRICT COMMUNITY ASSOCIATI,"20,706.29",Community Fund Projects-Grants,Grants,16 Feb 2024,2324/11,SME,M7115,H3081,N,
0000376626,SOMERSHAM & DISTRICT COMMUNITY ASSOCIATI,"62,268.53",CIL Funded REFCUS,Grants,22 Feb 2024,2324/11,SME,M7161,H3081,N,
0000376733,SOMERSHAM & DISTRICT COMMUNITY ASSOCIATI,"3,165.14",Community Fund Projects-Grants,Grants,27 Feb 2024,2324/11,SME,M7115,H3081,N,
0000377254,SOMERSHAM AND DISTRICT COMMUNITY SHOP,"1,250.00",Grants & Contrbns,Contributions & Donations,12 Mar 2024,2324/12,SME,M2107,H3082,N,
0000377255,SOMERSHAM AND DISTRICT COMMUNITY SHOP,589.56,Grants & Contrbns,Contributions & Donations,12 Mar 2024,2324/12,SME,M2107,H3082,N,
0000377067,SPRYTAR LTD,"2,000.00",Shared Prosperity Fund,Prof & Consultancy Fees,06 Mar 2024,2324/12,SME,M3566,H3041,N,
0000377857,ST JOHNS CHURCH ELMSWELL PCC,"1,000.00",Grants & Contrbns,Contributions & Donations,27 Mar 2024,2324/12,SME,M2107,H3082,N,
0000375254,STANNAH STAIRLIFTS LTD,"2,948.00",Council House Adaptions,Improvements,08 Jan 2024,2324/10,LGE,M7640,H2051,N,
0000375785,STANNAH STAIRLIFTS LTD,"2,948.00",Council House Adaptions,Improvements,19 Dec 2023,2324/10,LGE,M7640,H2051,N,
0000376396,STEVEN JAMES ALLEN LTD,"2,375.00",Building Services,Repairs,14 Feb 2024,2324/11,SME,M8199,H2010,N,
0000376542,STEVEN JAMES ALLEN LTD,"3,000.00",HRA General Management,Prof & Consultancy Fees,20 Feb 2024,2324/12,SME,M8000,H3041,N,
0000376803,STONHAM ASPAL FOOTBALL CLUB,"2,000.00",Grants & Contrbns,Contributions & Donations,28 Feb 2024,2324/12,SME,M2107,H3082,N,
0000377222,STONHAM ASPAL PARISH COUNCIL,656.00,Grants & Contrbns,Contributions & Donations,11 Mar 2024,2324/12,SME,M2107,H3082,N,
0000374811,STORM ENVIRONMENTAL LTD,"6,266.00",Bins,Bins,18 Dec 2023,2324/10,SME,M7051,A3072,Y,50%
0000375778,STOWLANGTOFT PARISH COUNCIL,"1,020.00",Grants & Contrbns,Contributions & Donations,25 Jan 2024,2324/11,SME,M2107,H3082,N,
0000377654,STOWMARKET CARNIVAL,"3,045.00",Community Fund Projects-Grants,Grants,21 Mar 2024,2324/12,SME,M7115,H3081,N,
0000375672,STOWMARKET FUNERALCARE,"1,195.00",Publice Health Funerals,Contracted Services,23 Jan 2024,2324/10,LGE,M1306,H3042,N,
0000375250,STOWMARKET TOWN COUNCIL,"6,000.00",RHSSF,Advertising&mkting (non-staff),08 Jan 2024,2324/11,SME,M5103,H3049,N,
0000376064,STOWUPLAND FRIENDS OF FREEMAN,"1,078.40",Grants & Contrbns,Contributions & Donations,02 Feb 2024,2324/11,SME,M2107,H3082,N,
0000423879,STOWUPLAND VILLAGE HALL,656.78,Bring Sites,Contributions & Donations,19 Mar 2024,2324/12,SME,M4504,H3082,N,
0000375912,STRADBROKE MEDIA CIC,"1,000.00",Grants & Contrbns,Contributions & Donations,30 Jan 2024,2324/11,SME,M2107,H3082,N,
0000376241,STRADBROKE PARISH COUNCIL,"7,684.00",CIL Funded REFCUS,Grants,08 Feb 2024,2324/11,SME,M7161,H3081,N,
0000376708,STRADBROKE SPORTS & COMMUNITY CENTRE,"1,850.00",Grants & Contrbns,Contributions & Donations,26 Feb 2024,2324/11,SME,M2107,H3082,N,
0000376288,STRENGTHSCOPE LIMITED,"2,103.75",Organisational Devt,Corporate Training,15 Jan 2024,2324/11,SME,M5100,H1045,Y,50%
0000374509,STUDLEY CAPITAL LIMITED,"2,375.00",MSM Feasibility & Match Fundin,Prof & Consultancy Fees,11 Dec 2023,2324/10,ST,M3561,H3041,N,
0000375087,STUDLEY CAPITAL LIMITED,950.00,MSM Feasibility & Match Fundin,Prof & Consultancy Fees,02 Jan 2024,2324/10,ST,M3561,H3041,N,
0000376053,STUDLEY CAPITAL LIMITED,118.75,MSM Skills & Innovation Centre,Prof & Consultancy Fees,01 Feb 2024,2324/11,ST,M3553,H3041,N,
0000376053,STUDLEY CAPITAL LIMITED,831.25,MSM Feasibility & Match Fundin,Prof & Consultancy Fees,01 Feb 2024,2324/11,ST,M3561,H3041,N,
0000377011,STUDLEY CAPITAL LIMITED,"1,306.25",MSM Feasibility & Match Fundin,Prof & Consultancy Fees,04 Mar 2024,2324/12,ST,M3561,H3041,N,
0000377329,SUFFOLK ACTION FOR WILDLIFE,600.00,Grants & Contrbns,Contributions & Donations,13 Mar 2024,2324/12,SME,M2107,H3082,N,
0000375291,SUFFOLK AGRICULTURAL ASSOCIATION,613.50,Bldg Regs Chargeable Serv,Advertising&mkting (non-staff),01 Dec 2023,2324/10,SME,M3301,H3049,Y,50%
0000377324,SUFFOLK CONTEMPORARY DANCE,"1,093.33",Holiday Activity Fund,"Equipment, Tools & Materials",13 Mar 2024,2324/12,ST,M2113,H3031,N,
0000373066,SUFFOLK COUNTY COUNCIL,"1,806.25",Organisational Devt,Recruitment,19 Oct 2023,2324/10,LGE,M5100,H1052,Y,50%
0000373367,SUFFOLK COUNTY COUNCIL,"8,590.00",Organisational Devt,Recruitment,31 Oct 2023,2324/10,LGE,M5100,H1052,Y,50%
0000374585,SUFFOLK COUNTY COUNCIL,"1,220.00",Land Chgs,Contracted Services,13 Dec 2023,2324/10,LGE,M6202,H3042,N,
0000374589,SUFFOLK COUNTY COUNCIL,"9,000.00",Bring Sites,Contributions & Donations,07 Dec 2023,2324/11,LGE,M4504,H3082,N,
0000374813,SUFFOLK COUNTY COUNCIL,"1,375.00",Organisational Devt,Recruitment,20 Dec 2023,2324/10,LGE,M5100,A1052,Y,50%
0000374814,SUFFOLK COUNTY COUNCIL,"23,688.15",Domestic Waste,MRF Disposal,19 Dec 2023,2324/10,LGE,M4503,H3069,N,
0000374814,SUFFOLK COUNTY COUNCIL,"28,233.01",Garden Waste,Garden Waste Disposal,19 Dec 2023,2324/10,LGE,M4506,H3063,N,
0000375058,SUFFOLK COUNTY COUNCIL,"20,500.00",Endeavour House - HQ,Operating Lease Payments,01 Jan 2024,2324/10,LGE,M6414,H3032,Y,50%
0000375058,SUFFOLK COUNTY COUNCIL,"26,875.00",Endeavour House - HQ,Contracted Services,01 Jan 2024,2324/10,LGE,M6414,H3042,Y,50%
0000375061,SUFFOLK COUNTY COUNCIL,"3,307.00",Stowmarket CAP,Contracted Services,01 Jan 2024,2324/10,LGE,M6415,A3042,Y,50%
0000375061,SUFFOLK COUNTY COUNCIL,"4,557.00",Stowmarket CAP,Operating Lease Payments,01 Jan 2024,2324/10,LGE,M6415,A3032,Y,50%
0000375236,SUFFOLK COUNTY COUNCIL,"5,798.02",General Elections,Misc Supplies & Services Costs,05 Jan 2024,2324/10,LGE,M5303,A3106,Y,50%
0000375288,SUFFOLK COUNTY COUNCIL,"7,000.00",Devt Management - Apps,Subscriptions,09 Jan 2024,2324/10,LGE,M3101,A3054,Y,50%
0000375325,SUFFOLK COUNTY COUNCIL,"1,005.00",Land Chgs,Contracted Services,10 Jan 2024,2324/11,LGE,M6202,H3042,N,
0000375450,SUFFOLK COUNTY COUNCIL,"1,000.00",Physical Activity,"Equipment, Tools & Materials",12 Jan 2024,2324/10,LGE,M2211,H3031,Y,50%
0000375530,SUFFOLK COUNTY COUNCIL,"19,904.59",Garden Waste,Garden Waste Disposal,16 Jan 2024,2324/11,LGE,M4506,H3063,N,
0000375530,SUFFOLK COUNTY COUNCIL,"23,012.82",Domestic Waste,MRF Disposal,16 Jan 2024,2324/11,LGE,M4503,H3069,N,
0000375598,SUFFOLK COUNTY COUNCIL,550.00,CIL Funded REFCUS,Grants,19 Jan 2024,2324/10,LGE,M7161,H3081,N,
0000375643,SUFFOLK COUNTY COUNCIL,"50,000.00",Clinically Extremely,Contributions & Donations,19 Jan 2024,2324/10,LGE,M2100,A3082,Y,50%
0000375800,SUFFOLK COUNTY COUNCIL,"1,825.25",Organisational Devt,Recruitment,25 Jan 2024,2324/11,LGE,M5100,H1052,Y,50%
0000375812,SUFFOLK COUNTY COUNCIL,600.00,Paddock House Eye,Prof & Consultancy Fees,19 Jan 2024,2324/10,LGE,M7686,H3041,N,
0000375819,SUFFOLK COUNTY COUNCIL,"7,988.00",Organisational Devt,Recruitment,10 Oct 2023,2324/12,LGE,M5100,H1052,Y,50%
0000376024,SUFFOLK COUNTY COUNCIL,"2,698.00",Organisational Devt,Recruitment,01 Feb 2024,2324/11,LGE,M5100,H1052,Y,50%
0000376239,SUFFOLK COUNTY COUNCIL,845.00,Land Chgs,Contracted Services,07 Feb 2024,2324/11,LGE,M6202,H3042,N,
0000376547,SUFFOLK COUNTY COUNCIL,"10,463.22",Garden Waste,Garden Waste Disposal,19 Feb 2024,2324/11,LGE,M4506,H3063,N,
0000376547,SUFFOLK COUNTY COUNCIL,"23,788.79",Domestic Waste,MRF Disposal,19 Feb 2024,2324/11,LGE,M4503,H3069,N,
0000376622,SUFFOLK COUNTY COUNCIL,"8,350.00",Pre App Charging,Highways  Consultancy,21 Feb 2024,2324/12,LGE,M3103,H3155,N,
0000376654,SUFFOLK COUNTY COUNCIL,"1,302.36",General Rechargeable Works,Misc Supplies & Services Costs,22 Feb 2024,2324/11,LGE,M0901,H3106,N,
0000376822,SUFFOLK COUNTY COUNCIL,"65,855.88",Trade Waste,Trade Waste Disposal,28 Feb 2024,2324/12,LGE,M4505,H3062,N,
0000376858,SUFFOLK COUNTY COUNCIL,"1,300.00",Organisational Devt,Recruitment,29 Feb 2024,2324/12,LGE,M5100,H1052,Y,50%
0000377225,SUFFOLK COUNTY COUNCIL,"2,120.45",Community Safety-General,Contributions & Donations,08 Mar 2024,2324/12,LGE,M2302,H3082,N,
0000377276,SUFFOLK COUNTY COUNCIL,"11,419.20",Wellbeing CCG Funding,Salaries,11 Mar 2024,2324/12,LGE,M2200,H1001,Y,50%
0000377341,SUFFOLK COUNTY COUNCIL,"9,196.53",Garden Waste,Garden Waste Disposal,12 Mar 2024,2324/12,LGE,M4506,H3063,N,
0000377341,SUFFOLK COUNTY COUNCIL,"36,031.63",Domestic Waste,MRF Disposal,12 Mar 2024,2324/12,LGE,M4503,H3069,N,
0000377353,SUFFOLK COUNTY COUNCIL,690.00,Open Spaces,"Equipment, Tools & Materials",13 Mar 2024,2324/12,LGE,M4404,H3031,N,
0000377357,SUFFOLK COUNTY COUNCIL,"-8,350.00",Pre App Charging,Highways  Consultancy,14 Mar 2024,2324/12,LGE,M3103,H3155,N,
0000377684,SUFFOLK COUNTY COUNCIL,595.00,Organisational Devt,Recruitment,21 Mar 2024,2324/12,LGE,M5100,H1052,Y,50%
0000377777,SUFFOLK COUNTY COUNCIL,"2,034.35",Tenancy Services,Electricity,25 Mar 2024,2324/12,LGE,M8500,H2031,N,
0000377839,SUFFOLK COUNTY COUNCIL,"12,166.04",Garden Waste,Garden Waste Disposal,26 Mar 2024,2324/12,LGE,M4506,H3063,N,
0000377839,SUFFOLK COUNTY COUNCIL,"26,819.97",Domestic Waste,MRF Disposal,26 Mar 2024,2324/12,LGE,M4503,H3069,N,
0000374754,SUFFOLK DOORS & WINDOWS LTD,650.00,Building Services,Repairs,19 Dec 2023,2324/10,SME,M8199,H2010,N,
0000374830,SUFFOLK DOORS & WINDOWS LTD,"4,500.00",Building Services,Repairs,19 Dec 2023,2324/10,SME,M8199,H2010,N,
0000375813,SUFFOLK DOORS & WINDOWS LTD,"1,960.00",Building Services,Repairs,26 Jan 2024,2324/10,SME,M8199,H2010,N,
0000375905,SUFFOLK DOORS & WINDOWS LTD,980.00,Building Services,Repairs,30 Jan 2024,2324/11,SME,M8199,H2010,N,
0000375906,SUFFOLK DOORS & WINDOWS LTD,"3,550.00",Building Services,Repairs,30 Jan 2024,2324/11,SME,M8199,H2010,N,
0000375999,SUFFOLK DOORS & WINDOWS LTD,"2,060.00",Building Services,Repairs,01 Feb 2024,2324/11,SME,M8199,H2010,N,
0000376344,SUFFOLK DOORS & WINDOWS LTD,"1,020.00",Building Services,Repairs,13 Feb 2024,2324/11,SME,M8199,H2010,N,
0000377613,SUFFOLK DOORS & WINDOWS LTD,"5,850.00",Building Services,Repairs,21 Mar 2024,2324/12,SME,M8199,H2010,N,
0000377615,SUFFOLK DOORS & WINDOWS LTD,"3,440.00",Building Services,Repairs,21 Mar 2024,2324/12,SME,M8199,H2010,N,
0000377617,SUFFOLK DOORS & WINDOWS LTD,"3,440.00",Building Services,Repairs,21 Mar 2024,2324/12,SME,M8199,H2010,N,
0000377626,SUFFOLK DOORS & WINDOWS LTD,515.00,Dampness,Repairs,21 Mar 2024,2324/12,SME,M7611,H2010,N,
0000377629,SUFFOLK DOORS & WINDOWS LTD,"5,850.00",Roofing,Repairs,21 Mar 2024,2324/12,SME,M7602,H2010,N,
0000377732,SUFFOLK DOORS & WINDOWS LTD,"1,220.00",Building Services,Repairs,25 Mar 2024,2324/12,SME,M8199,H2010,N,
0000377032,SUFFOLK LIBRARIES IPS LTD IPSWICH,"8,000.00",Communities,Grants,05 Mar 2024,2324/12,LGE,M2309,H3081,N,
0000375638,SUFFOLK POWER EQUIPMENT,673.41,Open Spaces,"Equipment, Tools & Materials",18 Jan 2024,2324/10,ST,M4404,H3031,Y,50%
0000377192,SUFFOLK WILDLIFE TRUST,"1,250.00",Grants & Contrbns,Contributions & Donations,08 Mar 2024,2324/12,SME,M2107,H3082,N,
0000374949,SUREFIRE SERVICES LTD,"3,487.00",Sheltered Accommodation,"Equipment, Tools & Materials",21 Dec 2023,2324/10,SME,M8406,H3031,N,
0000374950,SUREFIRE SERVICES LTD,"3,487.00",Sheltered Accommodation,"Equipment, Tools & Materials",21 Dec 2023,2324/10,SME,M8406,H3031,N,
0000375440,SUREFIRE SERVICES LTD,"3,479.00",Sheltered Accommodation,"Equipment, Tools & Materials",12 Jan 2024,2324/11,SME,M8401,H3031,N,
0000375441,SUREFIRE SERVICES LTD,"3,487.00",Sheltered Accommodation,"Equipment, Tools & Materials",12 Jan 2024,2324/12,SME,M8407,H3031,N,
0000377824,SUREFIRE SERVICES LTD,"26,836.60",Sheltered Accommodation,Fire Prevention,26 Mar 2024,2324/12,SME,M8404,H2048,N,
0000374448,SUREFIX,"1,150.00",Building Services,Repairs,04 Dec 2023,2324/10,SME,M8199,H2010,N,
0000375202,SUREFIX,"1,025.00",Building Services,Repairs,04 Jan 2024,2324/10,SME,M8199,H2010,N,
0000375203,SUREFIX,"1,025.00",Building Services,Repairs,02 Jan 2024,2324/10,SME,M8199,H2010,N,
0000375204,SUREFIX,900.00,Building Services,Repairs,23 Dec 2023,2324/10,SME,M8199,H2010,N,
0000375354,SUREFIX,"7,950.00",Building Services,Repairs,12 Jan 2024,2324/10,SME,M8199,H2010,N,
0000375565,SUREFIX,"2,000.00",Building Services,Repairs,16 Jan 2024,2324/10,SME,M8199,H2010,N,
0000375566,SUREFIX,"1,025.00",Building Services,Repairs,15 Jan 2024,2324/11,SME,M8199,H2010,N,
0000375814,SUREFIX,"1,925.00",Window & Door Rplcmts,Repairs,25 Jan 2024,2324/10,SME,M7603,H2010,N,
0000375908,SUREFIX,"1,050.00",Building Services,Repairs,26 Jan 2024,2324/12,SME,M8199,H2010,N,
0000376704,SUREFIX,"1,925.00",Building Services,Repairs,20 Feb 2024,2324/11,SME,M8199,H2010,N,
0000376705,SUREFIX,"1,025.00",Building Services,Repairs,23 Feb 2024,2324/12,SME,M8199,H2010,N,
0000376706,SUREFIX,"1,025.00",Building Services,Repairs,23 Feb 2024,2324/12,SME,M8199,H2010,N,
0000376707,SUREFIX,"1,300.00",Building Services,Repairs,23 Feb 2024,2324/12,SME,M8199,H2010,N,
0000376829,SUREFIX,"1,500.00",Building Services,Repairs,07 Feb 2024,2324/12,SME,M8199,H2010,N,
0000376830,SUREFIX,900.00,Building Services,Repairs,15 Jan 2024,2324/12,SME,M8199,H2010,N,
0000376959,SUREFIX,900.00,Building Services,Repairs,29 Feb 2024,2324/12,SME,M8199,H2010,N,
0000376961,SUREFIX,"1,325.00",Window & Door Rplcmts,Repairs,29 Feb 2024,2324/12,SME,M7603,H2010,N,
0000377335,SUREFIX,"2,775.00",Window & Door Rplcmts,Repairs,05 Mar 2024,2324/12,SME,M7603,H2010,N,
0000377614,SUREFIX,"2,125.00",Building Services,Repairs,19 Mar 2024,2324/12,SME,M8199,H2010,N,
0000375418,SWITCH PROPERTY SERVICES LTD,695.00,Guaranteed Rent Scheme,Rent Payable,15 Jan 2024,2324/10,SME,M1414,H2023,N,
0000376316,SWITCH PROPERTY SERVICES LTD,695.00,Guaranteed Rent Scheme,Rent Payable,12 Feb 2024,2324/11,SME,M1414,H2023,N,
0000377208,SWITCH PROPERTY SERVICES LTD,695.00,Guaranteed Rent Scheme,Rent Payable,11 Mar 2024,2324/12,SME,M1414,H2023,N,
0000375818,T H MOSS AND SONS LTD,"1,975.20",Building Services,Repairs,24 Jan 2024,2324/11,SME,M8199,H2010,N,
0000375900,T H MOSS AND SONS LTD,"1,040.00",Building Services,Repairs,30 Nov 2023,2324/10,SME,M8199,H2010,N,
0000376709,T H MOSS AND SONS LTD,"1,176.00",Building Services,Repairs,15 Jan 2024,2324/12,SME,M8199,H2010,N,
0000376719,T H MOSS AND SONS LTD,920.00,Building Services,Repairs,26 Feb 2024,2324/12,SME,M8199,H2010,N,
0000377687,T H MOSS AND SONS LTD,733.00,Building Services,Repairs,22 Mar 2024,2324/12,SME,M8199,H2010,N,
0000377689,T H MOSS AND SONS LTD,742.00,Building Services,Repairs,22 Mar 2024,2324/12,SME,M8199,H2010,N,
0000376290,TANKCHANGE LTD,"2,595.00",Central Heating,Repairs,08 Feb 2024,2324/11,SME,M7604,H2010,N,
0000375486,TAYLORS FLOORING & FURNITURE,"16,595.00",Sheltered General Mgmt,Furniture,15 Jan 2024,2324/11,SME,M8450,H3026,N,
0000376778,TAYPLAY SPORT LTD,794.20,Holiday Activity Fund,"Equipment, Tools & Materials",21 Feb 2024,2324/12,SME,M2113,H3031,N,
0000377586,TAYPLAY SPORT LTD,"1,827.27",Holiday Activity Fund,"Equipment, Tools & Materials",20 Mar 2024,2324/12,SME,M2113,H3031,N,
0000376201,TDT ENTERPRISES LTD,534.00,Rewiring,Repairs,07 Feb 2024,2324/11,SME,M7601,H2010,N,
0000377134,TEMPLE GROUP LTD,"2,370.00",SHELF Project,Prof & Consultancy Fees,05 Feb 2024,2324/12,SME,M3563,H3041,N,
0000375285,THE CODDENHAM CENTRE,785.00,VCSE Resilience,"Equipment, Tools & Materials",10 Jan 2024,2324/10,SME,M2310,H3031,N,
0000375601,THE CODDENHAM CENTRE,875.00,Grants & Contrbns,Contributions & Donations,19 Jan 2024,2324/10,SME,M2107,H3082,N,
0000375556,THE COMMISSION FOR LOCAL ADMIN IN ENGLAN,"2,200.00",Organisational Devt,Corporate Training,18 Jan 2024,2324/10,SME,M5100,A1045,Y,50%
0000377212,THE EAST ANGLIAN FABULATION,"3,709.85",Grants & Contrbns,Contributions & Donations,08 Mar 2024,2324/12,SME,M2107,H3082,N,
0000376496,THE FOOD MUSEUM LTD,"7,918.42",Grants & Contrbns,Contributions & Donations,16 Feb 2024,2324/11,SME,M2107,H3082,N,
0000377017,THE FOOD MUSEUM LTD,"22,500.00",Changing Places Facilities,Prof & Consultancy Fees,05 Mar 2024,2324/12,SME,M3564,H3041,N,
0000377029,THE FOOD MUSEUM LTD,"22,500.00",Changing Places Facilities,Prof & Consultancy Fees,05 Mar 2024,2324/12,SME,M3564,H3041,N,
0000377717,THE FOOD MUSEUM LTD,"10,000.00",Rural Prosperity Fund,Grants,25 Mar 2024,2324/12,SME,M7162,H3081,N,
0000374700,THE LEARNING & DEVELOPMENT COMPANY,"3,000.00",Organisational Devt,Corporate Training,15 Dec 2023,2324/10,SME,M5100,H1045,Y,50%
0000375376,THE LEARNING & DEVELOPMENT COMPANY,599.96,Organisational Devt,Training,12 Jan 2024,2324/10,SME,M5100,A1043,Y,50%
0000375881,THE MIX STOWMARKET LTD,"2,000.00",Grants & Contrbns,Contributions & Donations,30 Jan 2024,2324/10,SME,M2107,H3082,N,
0000377302,THE MIX STOWMARKET LTD,"1,200.00",Grants & Contrbns,Contributions & Donations,12 Mar 2024,2324/12,SME,M2107,H3082,N,
0000375125,THE OYSTER PARTNERSHIP LTD,"1,500.00",Financial Servs,Agency Staff,03 Jan 2024,2324/10,SME,M6100,H1031,Y,50%
0000375126,THE OYSTER PARTNERSHIP LTD,"2,190.00",HRA General Management,Agency Staff,03 Jan 2024,2324/10,SME,M8000,A1031,Y,50%
0000375127,THE OYSTER PARTNERSHIP LTD,585.00,Building Services,Agency Staff,03 Jan 2024,2324/10,SME,M8199,H1031,Y,50%
0000375128,THE OYSTER PARTNERSHIP LTD,620.00,Building Services,Agency Staff,03 Jan 2024,2324/10,SME,M8199,A1031,Y,50%
0000375129,THE OYSTER PARTNERSHIP LTD,"1,593.75",Building Servs Tech Staff,Agency Staff,03 Jan 2024,2324/10,SME,M8100,A1031,Y,50%
0000375130,THE OYSTER PARTNERSHIP LTD,"1,372.50",Building Servs Tech Staff,Agency Staff,03 Jan 2024,2324/10,SME,M8100,A1031,Y,50%
0000375131,THE OYSTER PARTNERSHIP LTD,714.00,Building Services,Agency Staff,03 Jan 2024,2324/10,SME,M8199,H1031,Y,50%
0000375132,THE OYSTER PARTNERSHIP LTD,"1,263.45",Building Servs Tech Staff,Agency Staff,03 Jan 2024,2324/10,SME,M8100,H1031,Y,50%
0000375295,THE OYSTER PARTNERSHIP LTD,"1,240.00",Building Services,Agency Staff,10 Jan 2024,2324/10,SME,M8199,H1031,Y,50%
0000375296,THE OYSTER PARTNERSHIP LTD,"2,125.00",Building Servs Tech Staff,Agency Staff,10 Jan 2024,2324/10,SME,M8100,A1031,Y,50%
0000375297,THE OYSTER PARTNERSHIP LTD,"1,815.30",Building Servs Tech Staff,Agency Staff,10 Jan 2024,2324/10,SME,M8100,H1031,Y,50%
0000375298,THE OYSTER PARTNERSHIP LTD,780.00,Building Services,Agency Staff,10 Jan 2024,2324/10,SME,M8199,A1031,Y,50%
0000375299,THE OYSTER PARTNERSHIP LTD,812.00,Building Services,Agency Staff,10 Jan 2024,2324/10,SME,M8199,H1031,Y,50%
0000375300,THE OYSTER PARTNERSHIP LTD,"1,668.40",Building Servs Tech Staff,Agency Staff,10 Jan 2024,2324/10,SME,M8100,A1031,Y,50%
0000375301,THE OYSTER PARTNERSHIP LTD,"2,000.00",Financial Servs,Agency Staff,10 Jan 2024,2324/10,SME,M6100,H1031,Y,50%
0000375536,THE OYSTER PARTNERSHIP LTD,"2,312.10",Building Servs Tech Staff,Agency Staff,17 Jan 2024,2324/10,SME,M8100,A1031,Y,50%
0000375537,THE OYSTER PARTNERSHIP LTD,"1,176.00",Building Services,Agency Staff,17 Jan 2024,2324/10,SME,M8199,H1031,Y,50%
0000375538,THE OYSTER PARTNERSHIP LTD,"2,500.00",Financial Servs,Agency Staff,17 Jan 2024,2324/10,SME,M6100,A1031,Y,50%
0000375540,THE OYSTER PARTNERSHIP LTD,962.00,Building Services,Agency Staff,17 Jan 2024,2324/10,SME,M8199,H1031,Y,50%
0000375541,THE OYSTER PARTNERSHIP LTD,"2,656.25",Building Servs Tech Staff,Agency Staff,17 Jan 2024,2324/10,SME,M8100,H1031,Y,50%
0000375542,THE OYSTER PARTNERSHIP LTD,"2,109.80",Building Servs Tech Staff,Agency Staff,17 Jan 2024,2324/10,SME,M8100,H1031,Y,50%
0000375732,THE OYSTER PARTNERSHIP LTD,"2,125.55",Building Servs Tech Staff,Agency Staff,24 Jan 2024,2324/10,SME,M8100,A1031,Y,50%
0000375733,THE OYSTER PARTNERSHIP LTD,"2,656.25",Building Servs Tech Staff,Agency Staff,24 Jan 2024,2324/10,SME,M8100,H1031,Y,50%
0000375734,THE OYSTER PARTNERSHIP LTD,"1,176.00",Building Services,Agency Staff,24 Jan 2024,2324/10,SME,M8199,A1031,Y,50%
0000375735,THE OYSTER PARTNERSHIP LTD,975.00,Building Services,Agency Staff,24 Jan 2024,2324/10,SME,M8199,H1031,Y,50%
0000375736,THE OYSTER PARTNERSHIP LTD,"2,500.00",Financial Servs,Agency Staff,24 Jan 2024,2324/10,SME,M6100,A1031,Y,50%
0000375737,THE OYSTER PARTNERSHIP LTD,964.35,Building Services,Agency Staff,24 Jan 2024,2324/10,SME,M8199,A1031,Y,50%
0000375957,THE OYSTER PARTNERSHIP LTD,"2,123.30",Building Servs Tech Staff,Agency Staff,31 Jan 2024,2324/11,SME,M8100,A1031,Y,50%
0000375958,THE OYSTER PARTNERSHIP LTD,"1,778.69",Building Services,Agency Staff,31 Jan 2024,2324/11,SME,M8199,H1031,Y,50%
0000375959,THE OYSTER PARTNERSHIP LTD,"2,656.25",Building Servs Tech Staff,Agency Staff,31 Jan 2024,2324/11,SME,M8100,H1031,Y,50%
0000375960,THE OYSTER PARTNERSHIP LTD,968.50,Building Services,Agency Staff,31 Jan 2024,2324/11,SME,M8199,H1031,Y,50%
0000375961,THE OYSTER PARTNERSHIP LTD,"1,036.00",Building Services,Agency Staff,31 Jan 2024,2324/11,SME,M8199,A1031,Y,50%
0000375962,THE OYSTER PARTNERSHIP LTD,"2,500.00",Financial Servs,Agency Staff,31 Jan 2024,2324/11,SME,M6100,H1031,Y,50%
0000376194,THE OYSTER PARTNERSHIP LTD,"2,035.85",Building Services,Agency Staff,07 Feb 2024,2324/11,SME,M8199,H1031,Y,50%
0000376195,THE OYSTER PARTNERSHIP LTD,"2,656.25",Building Servs Tech Staff,Agency Staff,07 Feb 2024,2324/11,SME,M8100,H1031,Y,50%
0000376196,THE OYSTER PARTNERSHIP LTD,"2,081.00",Building Servs Tech Staff,Agency Staff,07 Feb 2024,2324/11,SME,M8100,A1031,Y,50%
0000376197,THE OYSTER PARTNERSHIP LTD,"1,148.00",Building Services,Agency Staff,07 Feb 2024,2324/11,SME,M8199,H1031,Y,50%
0000376198,THE OYSTER PARTNERSHIP LTD,"2,250.00",Building Servs Tech Staff,Agency Staff,07 Feb 2024,2324/11,SME,M8100,A1031,Y,50%
0000376199,THE OYSTER PARTNERSHIP LTD,"2,500.00",Financial Servs,Agency Staff,07 Feb 2024,2324/11,SME,M6100,H1031,Y,50%
0000376200,THE OYSTER PARTNERSHIP LTD,975.00,Building Services,Agency Staff,07 Feb 2024,2324/11,SME,M8199,A1031,Y,50%
0000376357,THE OYSTER PARTNERSHIP LTD,"10,855.25",Building Services,Recruitment,18 Jan 2024,2324/11,SME,M8199,H1052,Y,50%
0000376397,THE OYSTER PARTNERSHIP LTD,"2,344.05",Building Servs Tech Staff,Agency Staff,14 Feb 2024,2324/11,SME,M8100,H1031,Y,50%
0000376398,THE OYSTER PARTNERSHIP LTD,"1,148.00",Building Services,Agency Staff,14 Feb 2024,2324/11,SME,M8199,H1031,Y,50%
0000376399,THE OYSTER PARTNERSHIP LTD,962.00,Building Services,Agency Staff,14 Feb 2024,2324/11,SME,M8199,A1031,Y,50%
0000376400,THE OYSTER PARTNERSHIP LTD,"2,100.35",Building Servs Tech Staff,Agency Staff,14 Feb 2024,2324/11,SME,M8100,A1031,Y,50%
0000376401,THE OYSTER PARTNERSHIP LTD,"2,656.25",Building Servs Tech Staff,Agency Staff,14 Feb 2024,2324/11,SME,M8100,H1031,Y,50%
0000376402,THE OYSTER PARTNERSHIP LTD,"2,500.00",Financial Servs,Agency Staff,14 Feb 2024,2324/11,SME,M6100,H1031,Y,50%
0000376403,THE OYSTER PARTNERSHIP LTD,"2,035.85",Building Services,Agency Staff,14 Feb 2024,2324/11,SME,M8199,H1031,Y,50%
0000376588,THE OYSTER PARTNERSHIP LTD,962.00,Building Services,Agency Staff,21 Feb 2024,2324/11,SME,M8199,H1031,Y,50%
0000376589,THE OYSTER PARTNERSHIP LTD,"2,132.30",Building Servs Tech Staff,Agency Staff,21 Feb 2024,2324/11,SME,M8100,A1031,Y,50%
0000376590,THE OYSTER PARTNERSHIP LTD,"2,250.00",Building Servs Tech Staff,Agency Staff,21 Feb 2024,2324/11,SME,M8100,H1031,Y,50%
0000376591,THE OYSTER PARTNERSHIP LTD,"2,500.00",Financial Servs,Agency Staff,21 Feb 2024,2324/11,SME,M6100,A1031,Y,50%
0000376592,THE OYSTER PARTNERSHIP LTD,"1,864.41",Building Services,Agency Staff,21 Feb 2024,2324/11,SME,M8199,H1031,Y,50%
0000376594,THE OYSTER PARTNERSHIP LTD,"2,656.25",Building Servs Tech Staff,Agency Staff,21 Feb 2024,2324/11,SME,M8100,H1031,Y,50%
0000376764,THE OYSTER PARTNERSHIP LTD,560.00,Building Services,Agency Staff,28 Feb 2024,2324/12,SME,M8199,H1031,Y,50%
0000376765,THE OYSTER PARTNERSHIP LTD,"2,656.25",Building Servs Tech Staff,Agency Staff,28 Feb 2024,2324/12,SME,M8100,H1031,Y,50%
0000376766,THE OYSTER PARTNERSHIP LTD,962.00,Building Services,Agency Staff,28 Feb 2024,2324/12,SME,M8199,H1031,Y,50%
0000376767,THE OYSTER PARTNERSHIP LTD,"2,000.00",Building Servs Tech Staff,Agency Staff,28 Feb 2024,2324/12,SME,M8100,H1031,Y,50%
0000376768,THE OYSTER PARTNERSHIP LTD,"2,299.05",Building Servs Tech Staff,Agency Staff,28 Feb 2024,2324/12,SME,M8100,H1031,Y,50%
0000376769,THE OYSTER PARTNERSHIP LTD,"1,992.99",Building Services,Agency Staff,28 Feb 2024,2324/12,SME,M8199,A1031,Y,50%
0000376770,THE OYSTER PARTNERSHIP LTD,"2,500.00",Financial Servs,Agency Staff,28 Feb 2024,2324/12,SME,M6100,H1031,Y,50%
0000377071,THE OYSTER PARTNERSHIP LTD,"1,190.00",Building Services,Agency Staff,06 Mar 2024,2324/12,SME,M8199,H1031,Y,50%
0000377072,THE OYSTER PARTNERSHIP LTD,962.00,Building Services,Agency Staff,05 Mar 2024,2324/12,SME,M8199,H1031,Y,50%
0000377073,THE OYSTER PARTNERSHIP LTD,"1,607.25",Building Services,Agency Staff,06 Mar 2024,2324/12,SME,M8199,H1031,Y,50%
0000377074,THE OYSTER PARTNERSHIP LTD,"2,656.25",Building Servs Tech Staff,Agency Staff,06 Mar 2024,2324/12,SME,M8100,H1031,Y,50%
0000377075,THE OYSTER PARTNERSHIP LTD,"2,500.00",Financial Servs,Agency Staff,06 Mar 2024,2324/12,SME,M6100,H1031,Y,50%
0000377107,THE OYSTER PARTNERSHIP LTD,"2,050.85",Building Servs Tech Staff,Agency Staff,06 Mar 2024,2324/12,SME,M8100,H1031,Y,50%
0000377108,THE OYSTER PARTNERSHIP LTD,"2,258.55",Building Servs Tech Staff,Agency Staff,06 Mar 2024,2324/12,SME,M8100,A1031,Y,50%
0000377333,THE OYSTER PARTNERSHIP LTD,"1,008.00",Building Services,Agency Staff,13 Mar 2024,2324/12,SME,M8199,H1031,Y,50%
0000377334,THE OYSTER PARTNERSHIP LTD,975.00,Building Services,Agency Staff,13 Mar 2024,2324/12,SME,M8199,H1031,Y,50%
0000377337,THE OYSTER PARTNERSHIP LTD,"1,607.25",Building Services,Agency Staff,13 Mar 2024,2324/12,SME,M8199,H1031,Y,50%
0000377345,THE OYSTER PARTNERSHIP LTD,"2,320.65",Building Servs Tech Staff,Agency Staff,13 Mar 2024,2324/12,SME,M8100,H1031,Y,50%
0000377346,THE OYSTER PARTNERSHIP LTD,"2,070.20",Building Servs Tech Staff,Agency Staff,13 Mar 2024,2324/12,SME,M8100,H1031,Y,50%
0000377591,THE OYSTER PARTNERSHIP LTD,"2,278.35",Building Servs Tech Staff,Agency Staff,20 Mar 2024,2324/12,SME,M8100,A1031,Y,50%
0000377592,THE OYSTER PARTNERSHIP LTD,"2,082.35",Building Servs Tech Staff,Agency Staff,20 Mar 2024,2324/12,SME,M8100,A1031,Y,50%
0000377593,THE OYSTER PARTNERSHIP LTD,"2,656.25",Building Servs Tech Staff,Agency Staff,20 Mar 2024,2324/12,SME,M8100,H1031,Y,50%
0000377594,THE OYSTER PARTNERSHIP LTD,"1,607.25",Building Services,Agency Staff,20 Mar 2024,2324/12,SME,M8199,H1031,Y,50%
0000377595,THE OYSTER PARTNERSHIP LTD,"2,500.00",Financial Servs,Agency Staff,20 Mar 2024,2324/12,SME,M6100,H1031,Y,50%
0000377596,THE OYSTER PARTNERSHIP LTD,975.00,Building Services,Agency Staff,20 Mar 2024,2324/12,SME,M8199,H1031,Y,50%
0000377597,THE OYSTER PARTNERSHIP LTD,"1,120.00",Building Services,Agency Staff,20 Mar 2024,2324/12,SME,M8199,H1031,Y,50%
0000377785,THE OYSTER PARTNERSHIP LTD,"2,500.00",Financial Servs,Agency Staff,26 Mar 2024,2324/12,SME,M6100,H1031,Y,50%
0000377786,THE OYSTER PARTNERSHIP LTD,"1,190.00",Building Services,Agency Staff,26 Mar 2024,2324/12,SME,M8199,H1031,Y,50%
0000377787,THE OYSTER PARTNERSHIP LTD,"2,144.45",Building Servs Tech Staff,Agency Staff,26 Mar 2024,2324/12,SME,M8100,H1031,Y,50%
0000377788,THE OYSTER PARTNERSHIP LTD,"2,656.25",Building Servs Tech Staff,Agency Staff,26 Mar 2024,2324/12,SME,M8100,H1031,Y,50%
0000377789,THE OYSTER PARTNERSHIP LTD,"1,607.25",Building Services,Agency Staff,26 Mar 2024,2324/12,SME,M8199,H1031,Y,50%
0000377790,THE OYSTER PARTNERSHIP LTD,"2,310.30",Building Servs Tech Staff,Agency Staff,26 Mar 2024,2324/12,SME,M8100,H1031,Y,50%
0000377791,THE OYSTER PARTNERSHIP LTD,975.00,Building Services,Agency Staff,26 Mar 2024,2324/12,SME,M8199,H1031,Y,50%
0000375445,THE PICKEREL PROJECT,"4,000.00",Grants & Contrbns,Contributions & Donations,12 Jan 2024,2324/10,SME,M2107,H3082,N,
0000375480,THE PICKEREL PROJECT,"2,000.00",Grants & Contrbns,Contributions & Donations,15 Jan 2024,2324/10,SME,M2107,H3082,N,
0000376160,THE PLAY INSPECTION COMPANY LTD,"4,021.80",Open Spaces,"Equipment, Tools & Materials",31 Jan 2024,2324/11,SME,M4404,H3031,N,
0000374978,THE STOWMARKET GLASS COMPANY LTD,"3,640.00",Building Services,Repairs,19 Dec 2023,2324/10,SME,M8199,H2010,N,
0000376034,THE STOWMARKET GLASS COMPANY LTD,"2,439.00",Building Services,Repairs,30 Jan 2024,2324/11,SME,M8199,H2010,N,
0000376035,THE STOWMARKET GLASS COMPANY LTD,564.68,Building Services,Repairs,31 Jan 2024,2324/11,SME,M8199,H2010,N,
0000376893,THE STOWMARKET GLASS COMPANY LTD,571.03,Building Services,Repairs,22 Feb 2024,2324/12,SME,M8199,H2010,N,
0000376894,THE STOWMARKET GLASS COMPANY LTD,986.21,Building Services,Repairs,22 Feb 2024,2324/12,SME,M8199,H2010,N,
0000376906,THE STOWMARKET GLASS COMPANY LTD,562.50,Building Services,Repairs,08 Feb 2024,2324/12,SME,M8199,H2010,N,
0000376919,THE STOWMARKET GLASS COMPANY LTD,"2,015.00",Building Services,Repairs,16 Feb 2024,2324/12,SME,M8199,H2010,N,
0000376446,THERMATECH,700.00,Tenancy Services,Fire Prevention,15 Feb 2024,2324/11,SME,M8500,H2048,N,
0000376446,THERMATECH,"1,100.00",Temporary Accommodation,Fire Prevention,15 Feb 2024,2324/11,SME,M8498,H2048,N,
0000376447,THERMATECH,"3,100.00",Sheltered Accommodation,Fire Prevention,15 Feb 2024,2324/11,SME,M8407,H2048,N,
0000377022,THERMATECH,"14,800.00",Sheltered Accommodation,Fire Prevention,05 Mar 2024,2324/12,SME,M8409,H2048,N,
0000375790,THOMAS GOODLIFFE SURVEYING LTD,970.00,"Harleston Corner, Harleston",Prof & Consultancy Fees,04 Jan 2024,2324/10,SME,M7718,H3041,N,
0000376715,THOMPSON COOPER LTD,"1,373.00",Street & Major Road Cleansing,"Equipment, Tools & Materials",20 Feb 2024,2324/12,SME,M4402,H3031,N,
0000375632,THOMPSONS ESTATE OFFICES LTD,725.00,Guaranteed Rent Scheme,Rent Payable,22 Jan 2024,2324/10,SME,M1414,H2023,N,
0000376549,THOMPSONS ESTATE OFFICES LTD,725.00,Guaranteed Rent Scheme,Rent Payable,20 Feb 2024,2324/11,SME,M1414,H2023,N,
0000377748,THOMPSONS ESTATE OFFICES LTD,725.00,Guaranteed Rent Scheme,Rent Payable,26 Mar 2024,2324/12,SME,M1414,H2023,N,
0000375448,THOMSON REUTERS,"2,425.56",Devt Management - Apps,Books & Periodicals,01 Dec 2023,2324/10,LGE,M3101,H3021,N,
0000376558,THORNHAMS PARISH HALL,729.00,Grants & Contrbns,Contributions & Donations,20 Feb 2024,2324/11,SME,M2107,H3082,N,
0000375507,THREE POINT FIVE LTD,"1,300.00",Climate Change and Sustainabil,Training,16 Jan 2024,2324/10,SME,M4306,H1043,Y,50%
0000375535,THREE POINT FIVE LTD,"2,500.00",Cost of Democracy,Training,04 Dec 2023,2324/10,SME,M5701,A1043,Y,50%
0000423770,THURSTON PARISH COUNCIL,"1,104.52",Street & Major Road Cleansing,Contributions to other Bodies,06 Feb 2024,2324/11,SME,M4402,H3083,N,
0000423829,THURSTON PARISH COUNCIL,762.96,Bring Sites,Contributions & Donations,19 Mar 2024,2324/12,SME,M4504,H3082,N,
0000374696,THURSTON VILLAGE HALL  MANAGEMENT COMMIT,"3,000.00",Grants & Contrbns,Contributions & Donations,19 Dec 2023,2324/10,SME,M2107,H3082,N,
0000374247,TILE HILL INTERIM & EXECUTIVE LTD,"16,505.04",Management Team,Recruitment,30 Nov 2023,2324/11,SME,M0100,A1052,Y,50%
0000375262,TILE HILL INTERIM & EXECUTIVE LTD,"3,900.00",Financial Servs,Agency Staff,08 Jan 2024,2324/10,SME,M6100,A1031,Y,50%
0000375315,TILE HILL INTERIM & EXECUTIVE LTD,"5,070.00",Financial Servs,Agency Staff,10 Jan 2024,2324/10,SME,M6100,H1031,Y,50%
0000375316,TILE HILL INTERIM & EXECUTIVE LTD,"7,020.00",Financial Servs,Agency Staff,10 Jan 2024,2324/10,SME,M6100,A1031,Y,50%
0000375317,TILE HILL INTERIM & EXECUTIVE LTD,"10,500.00",Organisational Devt,Agency Staff,10 Jan 2024,2324/10,SME,M5100,H1031,Y,50%
0000375688,TILE HILL INTERIM & EXECUTIVE LTD,"16,500.00",Organisational Devt,Agency Staff,07 Oct 2023,2324/10,SME,M5100,A1031,Y,50%
0000376217,TILE HILL INTERIM & EXECUTIVE LTD,"14,400.00",Financial Servs,Agency Staff,07 Feb 2024,2324/11,SME,M6100,H1031,Y,50%
0000376255,TILE HILL INTERIM & EXECUTIVE LTD,"21,120.00",Financial Servs,Agency Staff,08 Feb 2024,2324/11,SME,M6100,A1031,Y,50%
0000376256,TILE HILL INTERIM & EXECUTIVE LTD,"7,020.00",Financial Servs,Agency Staff,08 Feb 2024,2324/11,SME,M6100,H1031,Y,50%
0000376789,TILE HILL INTERIM & EXECUTIVE LTD,"7,410.00",Financial Servs,Agency Staff,28 Feb 2024,2324/12,SME,M6100,H1031,Y,50%
0000377195,TILE HILL INTERIM & EXECUTIVE LTD,"23,520.00",Financial Servs,Agency Staff,08 Mar 2024,2324/12,SME,M6100,H1031,Y,50%
0000377196,TILE HILL INTERIM & EXECUTIVE LTD,"6,630.00",Financial Servs,Agency Staff,08 Mar 2024,2324/12,SME,M6100,H1031,Y,50%
0000377197,TILE HILL INTERIM & EXECUTIVE LTD,"4,680.00",Financial Servs,Agency Staff,08 Mar 2024,2324/12,SME,M6100,H1031,Y,50%
0000375226,PRIVATE LANDLORD,900.00,Guaranteed Rent Scheme,Rent Payable,08 Jan 2024,2324/10,ST,M1414,H2023,N,
0000376109,PRIVATE LANDLORD,900.00,Guaranteed Rent Scheme,Rent Payable,05 Feb 2024,2324/11,ST,M1414,H2023,N,
0000376949,PRIVATE LANDLORD,900.00,Guaranteed Rent Scheme,Rent Payable,04 Mar 2024,2324/12,ST,M1414,H2023,N,
0000377553,TODD STORAGE,-40.86,Homeless Prevention Fund,Removal Expenses,19 Mar 2024,2324/12,SME,M1404,H3108,N,
0000376518,TOP FLOORS (EAST ANGLIA) LTD,"1,487.18",Other Temp Accommodation,"Equipment, Tools & Materials",08 Feb 2024,2324/12,SME,M1410,H3031,N,
0000376178,TOPAZ HEALTH TRAINING,612.00,Organisational Devt,Training,30 Jan 2024,2324/11,ST,M5100,H1043,Y,50%
0000375639,TOSTOCK VILLAGE HALL,"1,480.00",VCSE Resilience,"Equipment, Tools & Materials",22 Jan 2024,2324/10,SME,M2310,H3031,N,
0000375243,TRANSPORT PLANNING ASSOCIATES LTD,"8,840.00",Devt Management - Appeals,Highways  Consultancy,21 Dec 2023,2324/10,SME,M3102,H3155,N,
0000374990,TRAVIS PERKINS TRADING CO LTD,"55,266.72",Building Services,Repairs,30 Nov 2023,2324/10,LGE,M8199,H2010,Y,65%
0000375256,TRAVIS PERKINS TRADING CO LTD,833.10,Building Services,Protective clothing,05 Jan 2024,2324/10,LGE,M8199,A3033,Y,50%
0000375319,TRAVIS PERKINS TRADING CO LTD,"1,851.07",Building Services,Protective clothing,02 Jan 2024,2324/10,LGE,M8199,A3033,Y,50%
0000375404,TRAVIS PERKINS TRADING CO LTD,868.00,Building Services,Protective clothing,11 Jan 2024,2324/10,LGE,M8199,A3033,Y,50%
0000376070,TRAVIS PERKINS TRADING CO LTD,690.00,Building Services,Protective clothing,31 Jan 2024,2324/11,LGE,M8199,A3033,Y,50%
0000376105,TRAVIS PERKINS TRADING CO LTD,"41,814.32",Building Services,"Equipment, Tools & Materials",31 Dec 2023,2324/11,LGE,M8199,A3031,Y,32%
0000377280,TRAVIS PERKINS TRADING CO LTD,"62,303.38",Building Services,"Equipment, Tools & Materials",31 Jan 2024,2324/12,LGE,M8199,A3031,Y,33%
0000377387,TRAVIS PERKINS TRADING CO LTD,"61,597.59",Building Services,"Equipment, Tools & Materials",29 Feb 2024,2324/12,LGE,M8199,A3031,Y,31%
0000375097,TREVOR BENTON CONSTRUCTION LTD,"2,046.00",Mand Disabled Facilities Grant,Grants,02 Jan 2024,2324/10,SME,M7001,H3081,N,
0000375594,TRITON GROUP T/A TRITON SECURITY & FACIL,960.00,Sheltered Accommodation,Misc Supplies & Services Costs,28 Nov 2023,2324/11,SME,M8405,H3106,N,
0000375595,TRITON GROUP T/A TRITON SECURITY & FACIL,"1,965.00",Sheltered Accommodation,Misc Supplies & Services Costs,11 Dec 2023,2324/10,SME,M8405,H3106,N,
0000375596,TRITON GROUP T/A TRITON SECURITY & FACIL,"2,032.50",Sheltered Accommodation,Misc Supplies & Services Costs,12 Dec 2023,2324/10,SME,M8405,H3106,N,
0000375829,TRITON GROUP T/A TRITON SECURITY & FACIL,975.00,Sheltered Accommodation,Misc Supplies & Services Costs,28 Nov 2023,2324/11,SME,M8404,H3106,N,
0000375830,TRITON GROUP T/A TRITON SECURITY & FACIL,"1,983.75",Sheltered Accommodation,Misc Supplies & Services Costs,11 Dec 2023,2324/11,SME,M8404,H3106,N,
0000375831,TRITON GROUP T/A TRITON SECURITY & FACIL,"2,032.50",Sheltered Accommodation,Misc Supplies & Services Costs,12 Dec 2023,2324/11,SME,M8404,H3106,N,
0000375832,TRITON GROUP T/A TRITON SECURITY & FACIL,"2,032.50",Sheltered Accommodation,Misc Supplies & Services Costs,20 Dec 2023,2324/11,SME,M8404,H3106,N,
